Trans No.,Service Area Categorisation,Service Division Categorisation,Responsible Unit,Unit Code,Expenses Type,Expenses Sub Type,Expense Code,Narrative,Amount,InvoiceDate,Cap/Rev,Supplier Name
1,Central Services,SupS Facilities,FM External Fees,E02239,Premises Related Expenditure  ,RepairsAlterations&MtceOfBldgs,BA29,Build Maint Mgt Fees                    ,500,08/07/2013,Rev,PRIORITY RISK LTD             
2,Cultural Env Reg&Plan Services,Parks & Open Spaces,"Pks,Rec Grds (Unloc)",P05005,Premises Related Expenditure  ,RepairsAlterations&MtceOfBldgs,BA06,REPAIRS & MAINTENANCE GENERAL           ,573,09/10/2014,Rev,REDDICK FORGE                 
3,Childrens & Education Services,,ART Residential Secure accommo,W1DE58,Third Party Payments          ,Private Contractors           ,EH01,Miscellaneous Agency Services           ,800,05/11/2014,Rev,FUTURE FOUNDATIONS LTD        
4,Childrens & Education Services,,ART Residential Secure accommo,W1DE58,Third Party Payments          ,Private Contractors           ,EH01,Miscellaneous Agency Services           ,800,05/11/2014,Rev,FUTURE FOUNDATIONS LTD        
5,Childrens & Education Services,,ART Residential Secure accommo,W1DE58,Third Party Payments          ,Private Contractors           ,EH01,Miscellaneous Agency Services           ,800,05/11/2014,Rev,FUTURE FOUNDATIONS LTD        
6,Central Services,SupS Legal,Achieving for Children (AFC),E10295,Supplies & Services           ,Services                      ,DF14,Doctors and Other Fees                  ,691.83,19/11/2014,Rev,INDEP PSYCHOL CONSULT LTD     
7,Central Services,SupS Legal,Achieving for Children (AFC),E10295,Supplies & Services           ,Services                      ,DF14,Doctors and Other Fees                  ,900,19/11/2014,Rev,INDEP PSYCHOL CONSULT LTD     
8,Adult Social Care,LD u65 Home Care,LD Comm -Home Care-Campus Hm,W2KS49,Third Party Payments          ,Private Contractors           ,EH01,Miscellaneous Agency Services           ,514.5,29/12/2014,Rev,CHOICE SUPPORT                
9,Adult Social Care,LD u65 Home Care,LD Comm -Home Care-Campus Hm,W2KS49,Third Party Payments          ,Private Contractors           ,EH01,Miscellaneous Agency Services           ,514.5,29/12/2014,Rev,CHOICE SUPPORT                
10,Adult Social Care,LD u65 Home Care,LD Comm -Home Care-Campus Hm,W2KS49,Third Party Payments          ,Private Contractors           ,EH01,Miscellaneous Agency Services           ,514.5,29/12/2014,Rev,CHOICE SUPPORT                
11,Adult Social Care,LD u65 Home Care,LD Comm -Home Care-Campus Hm,W2KS49,Third Party Payments          ,Private Contractors           ,EH01,Miscellaneous Agency Services           ,514.5,29/12/2014,Rev,CHOICE SUPPORT                
12,Adult Social Care,LD u65 Home Care,LD Comm -Home Care-Orch Hill,W2KR49,Third Party Payments          ,Private Contractors           ,EH01,Miscellaneous Agency Services           ,877.5,29/12/2014,Rev,CHOICE SUPPORT                
13,Adult Social Care,LD u65 Home Care,LD Comm -Home Care-Orch Hill,W2KR49,Third Party Payments          ,Private Contractors           ,EH01,Miscellaneous Agency Services           ,877.5,29/12/2014,Rev,CHOICE SUPPORT                
14,Adult Social Care,LD u65 Home Care,LD Comm -Home Care-Orch Hill,W2KR49,Third Party Payments          ,Private Contractors           ,EH01,Miscellaneous Agency Services           ,877.5,29/12/2014,Rev,CHOICE SUPPORT                
15,Adult Social Care,LD u65 Home Care,LD Comm -Home Care-Orch Hill,W2KR49,Third Party Payments          ,Private Contractors           ,EH01,Miscellaneous Agency Services           ,877.5,29/12/2014,Rev,CHOICE SUPPORT                
16,Adult Social Care,LD u65 Home Care,LD Comm -Home Care-Campus Hm,W2KS49,Third Party Payments          ,Private Contractors           ,EH01,Miscellaneous Agency Services           ,1233.38,29/12/2014,Rev,CHOICE SUPPORT                
17,Adult Social Care,LD u65 Home Care,LD Comm -Home Care-Campus Hm,W2KS49,Third Party Payments          ,Private Contractors           ,EH01,Miscellaneous Agency Services           ,1233.38,29/12/2014,Rev,CHOICE SUPPORT                
18,Adult Social Care,LD u65 Home Care,LD Comm -Home Care-Campus Hm,W2KS49,Third Party Payments          ,Private Contractors           ,EH01,Miscellaneous Agency Services           ,1233.38,29/12/2014,Rev,CHOICE SUPPORT                
19,Adult Social Care,LD u65 Home Care,LD Comm -Home Care-Campus Hm,W2KS49,Third Party Payments          ,Private Contractors           ,EH01,Miscellaneous Agency Services           ,1233.38,29/12/2014,Rev,CHOICE SUPPORT                
20,Adult Social Care,LD u65 Home Care,LD Comm -Home Care-Campus Hm,W2KS49,Third Party Payments          ,Private Contractors           ,EH01,Miscellaneous Agency Services           ,1355.25,29/12/2014,Rev,CHOICE SUPPORT                
21,Adult Social Care,LD u65 Home Care,LD Comm -Home Care-Campus Hm,W2KS49,Third Party Payments          ,Private Contractors           ,EH01,Miscellaneous Agency Services           ,1355.25,29/12/2014,Rev,CHOICE SUPPORT                
22,Adult Social Care,LD u65 Home Care,LD Comm -Home Care-Campus Hm,W2KS49,Third Party Payments          ,Private Contractors           ,EH01,Miscellaneous Agency Services           ,1355.25,29/12/2014,Rev,CHOICE SUPPORT                
23,Adult Social Care,LD u65 Home Care,LD Comm -Home Care-Campus Hm,W2KS49,Third Party Payments          ,Private Contractors           ,EH01,Miscellaneous Agency Services           ,1355.25,29/12/2014,Rev,CHOICE SUPPORT                
24,Adult Social Care,LD u65 Home Care,LD Comm -Home Care-Campus Hm,W2KS49,Third Party Payments          ,Private Contractors           ,EH01,Miscellaneous Agency Services           ,1360.13,29/12/2014,Rev,CHOICE SUPPORT                
25,Adult Social Care,LD u65 Home Care,LD Comm -Home Care-Campus Hm,W2KS49,Third Party Payments          ,Private Contractors           ,EH01,Miscellaneous Agency Services           ,1360.13,29/12/2014,Rev,CHOICE SUPPORT                
26,Adult Social Care,LD u65 Home Care,LD Comm -Home Care-Campus Hm,W2KS49,Third Party Payments          ,Private Contractors           ,EH01,Miscellaneous Agency Services           ,1360.13,29/12/2014,Rev,CHOICE SUPPORT                
27,Adult Social Care,LD u65 Home Care,LD Comm -Home Care-Campus Hm,W2KS49,Third Party Payments          ,Private Contractors           ,EH01,Miscellaneous Agency Services           ,1360.13,29/12/2014,Rev,CHOICE SUPPORT                
28,Adult Social Care,LD u65 Home Care,LD Comm -Home Care-Campus Hm,W2KS49,Third Party Payments          ,Private Contractors           ,EH01,Miscellaneous Agency Services           ,1384.5,29/12/2014,Rev,CHOICE SUPPORT                
29,Adult Social Care,LD u65 Home Care,LD Comm -Home Care-Campus Hm,W2KS49,Third Party Payments          ,Private Contractors           ,EH01,Miscellaneous Agency Services           ,1384.5,29/12/2014,Rev,CHOICE SUPPORT                
30,Adult Social Care,LD u65 Home Care,LD Comm -Home Care-Campus Hm,W2KS49,Third Party Payments          ,Private Contractors           ,EH01,Miscellaneous Agency Services           ,1384.5,29/12/2014,Rev,CHOICE SUPPORT                
31,Adult Social Care,LD u65 Home Care,LD Comm -Home Care-Campus Hm,W2KS49,Third Party Payments          ,Private Contractors           ,EH01,Miscellaneous Agency Services           ,1384.5,29/12/2014,Rev,CHOICE SUPPORT                
32,Adult Social Care,LD u65 Home Care,LD Comm -Home Care-Campus Hm,W2KS49,Third Party Payments          ,Private Contractors           ,EH01,Miscellaneous Agency Services           ,1418.63,29/12/2014,Rev,CHOICE SUPPORT                
33,Adult Social Care,LD u65 Home Care,LD Comm -Home Care-Campus Hm,W2KS49,Third Party Payments          ,Private Contractors           ,EH01,Miscellaneous Agency Services           ,1418.63,29/12/2014,Rev,CHOICE SUPPORT                
34,Adult Social Care,LD u65 Home Care,LD Comm -Home Care-Campus Hm,W2KS49,Third Party Payments          ,Private Contractors           ,EH01,Miscellaneous Agency Services           ,1418.63,29/12/2014,Rev,CHOICE SUPPORT                
35,Adult Social Care,LD u65 Home Care,LD Comm -Home Care-Campus Hm,W2KS49,Third Party Payments          ,Private Contractors           ,EH01,Miscellaneous Agency Services           ,1418.63,29/12/2014,Rev,CHOICE SUPPORT                
36,Adult Social Care,LD u65 Home Care,LD Comm -Home Care-Campus Hm,W2KS49,Third Party Payments          ,Private Contractors           ,EH01,Miscellaneous Agency Services           ,1443,29/12/2014,Rev,CHOICE SUPPORT                
37,Adult Social Care,LD u65 Home Care,LD Comm -Home Care-Campus Hm,W2KS49,Third Party Payments          ,Private Contractors           ,EH01,Miscellaneous Agency Services           ,1443,29/12/2014,Rev,CHOICE SUPPORT                
38,Adult Social Care,LD u65 Home Care,LD Comm -Home Care-Campus Hm,W2KS49,Third Party Payments          ,Private Contractors           ,EH01,Miscellaneous Agency Services           ,1443,29/12/2014,Rev,CHOICE SUPPORT                
39,Adult Social Care,LD u65 Home Care,LD Comm -Home Care-Campus Hm,W2KS49,Third Party Payments          ,Private Contractors           ,EH01,Miscellaneous Agency Services           ,1443,29/12/2014,Rev,CHOICE SUPPORT                
40,Adult Social Care,LD u65 Home Care,LD Comm -Home Care-Orch Hill,W2KR49,Third Party Payments          ,Private Contractors           ,EH01,Miscellaneous Agency Services           ,1482,29/12/2014,Rev,CHOICE SUPPORT                
41,Adult Social Care,LD u65 Home Care,LD Comm -Home Care-Orch Hill,W2KR49,Third Party Payments          ,Private Contractors           ,EH01,Miscellaneous Agency Services           ,1482,29/12/2014,Rev,CHOICE SUPPORT                
42,Adult Social Care,LD u65 Home Care,LD Comm -Home Care-Orch Hill,W2KR49,Third Party Payments          ,Private Contractors           ,EH01,Miscellaneous Agency Services           ,1482,29/12/2014,Rev,CHOICE SUPPORT                
43,Adult Social Care,LD u65 Home Care,LD Comm -Home Care-Orch Hill,W2KR49,Third Party Payments          ,Private Contractors           ,EH01,Miscellaneous Agency Services           ,1482,29/12/2014,Rev,CHOICE SUPPORT                
44,Adult Social Care,LD u65 Home Care,LD Comm -Home Care-Campus Hm,W2KS49,Third Party Payments          ,Private Contractors           ,EH01,Miscellaneous Agency Services           ,1482,29/12/2014,Rev,CHOICE SUPPORT                
45,Adult Social Care,LD u65 Home Care,LD Comm -Home Care-Campus Hm,W2KS49,Third Party Payments          ,Private Contractors           ,EH01,Miscellaneous Agency Services           ,1482,29/12/2014,Rev,CHOICE SUPPORT                
46,Adult Social Care,LD u65 Home Care,LD Comm -Home Care-Campus Hm,W2KS49,Third Party Payments          ,Private Contractors           ,EH01,Miscellaneous Agency Services           ,1482,29/12/2014,Rev,CHOICE SUPPORT                
47,Adult Social Care,LD u65 Home Care,LD Comm -Home Care-Campus Hm,W2KS49,Third Party Payments          ,Private Contractors           ,EH01,Miscellaneous Agency Services           ,1482,29/12/2014,Rev,CHOICE SUPPORT                
48,Adult Social Care,LD u65 Home Care,LD Comm -Home Care-Orch Hill,W2KR49,Third Party Payments          ,Private Contractors           ,EH01,Miscellaneous Agency Services           ,1657.5,29/12/2014,Rev,CHOICE SUPPORT                
49,Adult Social Care,LD u65 Home Care,LD Comm -Home Care-Orch Hill,W2KR49,Third Party Payments          ,Private Contractors           ,EH01,Miscellaneous Agency Services           ,1657.5,29/12/2014,Rev,CHOICE SUPPORT                
50,Adult Social Care,LD u65 Home Care,LD Comm -Home Care-Orch Hill,W2KR49,Third Party Payments          ,Private Contractors           ,EH01,Miscellaneous Agency Services           ,1657.5,29/12/2014,Rev,CHOICE SUPPORT                
51,Adult Social Care,LD u65 Home Care,LD Comm -Home Care-Orch Hill,W2KR49,Third Party Payments          ,Private Contractors           ,EH01,Miscellaneous Agency Services           ,1657.5,29/12/2014,Rev,CHOICE SUPPORT                
52,Adult Social Care,LD u65 Home Care,LD Comm -Home Care-Campus Hm,W2KS49,Third Party Payments          ,Private Contractors           ,EH01,Miscellaneous Agency Services           ,1672.13,29/12/2014,Rev,CHOICE SUPPORT                
53,Adult Social Care,LD u65 Home Care,LD Comm -Home Care-Campus Hm,W2KS49,Third Party Payments          ,Private Contractors           ,EH01,Miscellaneous Agency Services           ,1672.13,29/12/2014,Rev,CHOICE SUPPORT                
54,Adult Social Care,LD u65 Home Care,LD Comm -Home Care-Campus Hm,W2KS49,Third Party Payments          ,Private Contractors           ,EH01,Miscellaneous Agency Services           ,1672.13,29/12/2014,Rev,CHOICE SUPPORT                
55,Adult Social Care,LD u65 Home Care,LD Comm -Home Care-Campus Hm,W2KS49,Third Party Payments          ,Private Contractors           ,EH01,Miscellaneous Agency Services           ,1672.13,29/12/2014,Rev,CHOICE SUPPORT                
56,Adult Social Care,LD u65 Home Care,LD Comm -Home Care-Campus Hm,W2KS49,Third Party Payments          ,Private Contractors           ,EH01,Miscellaneous Agency Services           ,1735.5,29/12/2014,Rev,CHOICE SUPPORT                
57,Adult Social Care,LD u65 Home Care,LD Comm -Home Care-Campus Hm,W2KS49,Third Party Payments          ,Private Contractors           ,EH01,Miscellaneous Agency Services           ,1735.5,29/12/2014,Rev,CHOICE SUPPORT                
58,Adult Social Care,LD u65 Home Care,LD Comm -Home Care-Campus Hm,W2KS49,Third Party Payments          ,Private Contractors           ,EH01,Miscellaneous Agency Services           ,1735.5,29/12/2014,Rev,CHOICE SUPPORT                
59,Adult Social Care,LD u65 Home Care,LD Comm -Home Care-Campus Hm,W2KS49,Third Party Payments          ,Private Contractors           ,EH01,Miscellaneous Agency Services           ,1735.5,29/12/2014,Rev,CHOICE SUPPORT                
60,Adult Social Care,LD u65 Home Care,LD Comm -Home Care-Orch Hill,W2KR49,Third Party Payments          ,Private Contractors           ,EH01,Miscellaneous Agency Services           ,1755,29/12/2014,Rev,CHOICE SUPPORT                
61,Adult Social Care,LD u65 Home Care,LD Comm -Home Care-Orch Hill,W2KR49,Third Party Payments          ,Private Contractors           ,EH01,Miscellaneous Agency Services           ,1755,29/12/2014,Rev,CHOICE SUPPORT                
62,Adult Social Care,LD u65 Home Care,LD Comm -Home Care-Orch Hill,W2KR49,Third Party Payments          ,Private Contractors           ,EH01,Miscellaneous Agency Services           ,1755,29/12/2014,Rev,CHOICE SUPPORT                
63,Adult Social Care,LD u65 Home Care,LD Comm -Home Care-Orch Hill,W2KR49,Third Party Payments          ,Private Contractors           ,EH01,Miscellaneous Agency Services           ,1755,29/12/2014,Rev,CHOICE SUPPORT                
64,Adult Social Care,LD u65 Home Care,LD Comm -Home Care-Campus Hm,W2KS49,Third Party Payments          ,Private Contractors           ,EH01,Miscellaneous Agency Services           ,1755,29/12/2014,Rev,CHOICE SUPPORT                
65,Adult Social Care,LD u65 Home Care,LD Comm -Home Care-Campus Hm,W2KS49,Third Party Payments          ,Private Contractors           ,EH01,Miscellaneous Agency Services           ,1755,29/12/2014,Rev,CHOICE SUPPORT                
66,Adult Social Care,LD u65 Home Care,LD Comm -Home Care-Campus Hm,W2KS49,Third Party Payments          ,Private Contractors           ,EH01,Miscellaneous Agency Services           ,1755,29/12/2014,Rev,CHOICE SUPPORT                
67,Adult Social Care,LD u65 Home Care,LD Comm -Home Care-Campus Hm,W2KS49,Third Party Payments          ,Private Contractors           ,EH01,Miscellaneous Agency Services           ,1755,29/12/2014,Rev,CHOICE SUPPORT                
68,Central Services,SupS Facilities,FM External Fees,E02239,Premises Related Expenditure  ,RepairsAlterations&MtceOfBldgs,BA29,Build Maint Mgt Fees                    ,735,19/01/2015,Rev,PRIORITY RISK LTD             
69,Childrens & Education Services,CS - Commiss'ing & Social Work,CL IndepAssess Expert Witness,W1DJ63,Supplies & Services           ,Services                      ,DF14,Doctors and Other Fees                  ,568,21/01/2015,Rev,TRICHO-TECH LIMITED           
70,Childrens & Education Services,Strategic Management,DS Director SSR Costs,W0AA01,Supplies & Services           ,Services                      ,DF14,Doctors and Other Fees                  ,1072.67,27/01/2015,Rev,REDACTED
71,Central Services,SupS Legal,Achieving for Children (AFC),E10295,Supplies & Services           ,Services                      ,DF14,Doctors and Other Fees                  ,1125,30/01/2015,Rev,REDACTED
72,Childrens & Education Services,Services for Under 8s,CS Family Support at Bond Road,W1CD00,Supplies & Services           ,Grants and Subscriptions      ,DJ54,Contributions                           ,975,09/02/2015,Rev,RACE EQUALITY FOUNDATION      
73,Childrens & Education Services,Support for SEN Pupils,Non-Delegated Statements,K90024,Third Party Payments          ,Other Local Authorities       ,EB50,OLA-Payments - Day Schools              ,3849.99,03/03/2015,Rev,WANDLE VALLEY SCHOOL          
74,Central Services,SupS Facilities,FM External Fees,E02239,Premises Related Expenditure  ,RepairsAlterations&MtceOfBldgs,BA29,Build Maint Mgt Fees                    ,735,09/03/2015,Rev,PRIORITY RISK LTD             
75,Adult Social Care,LD u65 Residentl Care Placemnt,LD Comm-Residential-Surrey Oak,W2KT55,Third Party Payments          ,Private Contractors           ,EH01,MISCELLANEOUS AGENCY SERVICES           ,1226.64,17/03/2015,Rev,SURREY & BORDERS PARTNERSHIP  
76,Adult Social Care,LD u65 Residentl Care Placemnt,LD Comm-Residential-Surrey Oak,W2KT55,Third Party Payments          ,Private Contractors           ,EH01,MISCELLANEOUS AGENCY SERVICES           ,2044.45,17/03/2015,Rev,SURREY & BORDERS PARTNERSHIP  
77,Adult Social Care,LD u65 Residentl Care Placemnt,LD Comm-Residential-Surrey Oak,W2KT55,Third Party Payments          ,Private Contractors           ,EH01,MISCELLANEOUS AGENCY SERVICES           ,2862.18,17/03/2015,Rev,SURREY & BORDERS PARTNERSHIP  
78,Adult Social Care,LD u65 Residentl Care Placemnt,LD Comm-Residential-Surrey Oak,W2KT55,Third Party Payments          ,Private Contractors           ,EH01,MISCELLANEOUS AGENCY SERVICES           ,2862.18,17/03/2015,Rev,SURREY & BORDERS PARTNERSHIP  
79,Adult Social Care,LD u65 Residentl Care Placemnt,LD Comm-Residential-Surrey Oak,W2KT55,Third Party Payments          ,Private Contractors           ,EH01,MISCELLANEOUS AGENCY SERVICES           ,2862.18,17/03/2015,Rev,SURREY & BORDERS PARTNERSHIP  
80,Childrens & Education Services,Support for SEN Pupils,ART SEN Residential (DSG),K90050,Third Party Payments          ,Other Establishments          ,EG51,Ind Resid Schs Payments                 ,16400,30/03/2015,Rev,ST MARY'S WRESTWOOD CHILDRENS 
81,Central Services,SupS Legal,Richmond Legal,E10289,Supplies & Services           ,Services                      ,DF95,Services from Provider                  ,3878,31/03/2015,Rev,SHARPE PRITCHARD SOLICITORS   
82,Public Health,PH - Sexual Health,PH � STI Testing and Treatment          ,WPHS02,Supplies & Services           ,Public Health Subjectives,DQ04,GUM                                     ,93161.49,01/04/2015,Rev,ST GEORGES HEALTHCARE TRUST   
83,Cultural Env Reg&Plan Services,Civic Amenity Sites,Garth Road Site,G00580,Premises Related Expenditure  ,Energy Costs                  ,BB02,Electricity                             ,1101.09,09/04/2015,Rev,SCOTTISHPOWER                 
84,Public Health,PH - Sexual Health,PH � STI Testing and Treatment          ,WPHS02,Supplies & Services           ,Public Health Subjectives,DQ04,GUM                                     ,85960,13/04/2015,Rev,ST GEORGES HEALTHCARE TRUST   
85,Adult Social Care,OP 65&Over NursingCarePlacemts,OP R/Park - Nursing Care,W2LR53,Third Party Payments          ,Private Contractors           ,EH01,Miscellaneous Agency Services           ,654.55,24/04/2015,Rev,CARTER HOUSE                  
86,Adult Social Care,OP 65&Over NursingCarePlacemts,OP R/Park - Nursing Care,W2LR53,Third Party Payments          ,Private Contractors           ,EH01,Miscellaneous Agency Services           ,654.55,24/04/2015,Rev,CARTER HOUSE                  
87,Adult Social Care,OP 65&Over NursingCarePlacemts,OP R/Park - Nursing Care,W2LR53,Third Party Payments          ,Private Contractors           ,EH01,Miscellaneous Agency Services           ,654.55,24/04/2015,Rev,CARTER HOUSE                  
88,Adult Social Care,OP 65&Over NursingCarePlacemts,OP R/Park - Nursing Care,W2LR53,Third Party Payments          ,Private Contractors           ,EH01,Miscellaneous Agency Services           ,654.55,24/04/2015,Rev,CARTER HOUSE                  
89,Childrens & Education Services,Support for SEN Pupils,Non-Maintained Post 16 SEN              ,K90052,Third Party Payments          ,Other Establishments          ,EG53,Ind Specialist Providers                ,8302,24/04/2015,Rev,DERWEN COLLEGE                
90,Central Services,SupS Legal,Sutton Legal                            ,E10293,Supplies & Services           ,Services                      ,DF95,Services from Provider                  ,731.31,27/04/2015,Rev,SEARCHFLOW LTD                
91,Central Services,SupS Legal,Achieving for Children (AFC),E10295,Supplies & Services           ,Services                      ,DF95,Services from Provider                  ,12734,29/04/2015,Rev,WARD HADAWAY                  
92,Adult Social Care,Substance Abuse (Addictions),MH Residential Care Ext - SM&D,W2PB55,Third Party Payments          ,Private Contractors           ,EH01,Miscellaneous Agency Services           ,644.4,30/04/2015,Rev,KENWARD TRUST                 
93,Adult Social Care,Substance Abuse (Addictions),MH Residential Care Ext - SM&D,W2PB55,Third Party Payments          ,Private Contractors           ,EH01,Miscellaneous Agency Services           ,644.4,30/04/2015,Rev,KENWARD TRUST                 
94,Adult Social Care,Substance Abuse (Addictions),MH Residential Care Ext - SM&D,W2PB55,Third Party Payments          ,Private Contractors           ,EH01,Miscellaneous Agency Services           ,644.4,30/04/2015,Rev,KENWARD TRUST                 
95,Adult Social Care,Substance Abuse (Addictions),MH Residential Care Ext - SM&D,W2PB55,Third Party Payments          ,Private Contractors           ,EH01,Miscellaneous Agency Services           ,644.4,30/04/2015,Rev,KENWARD TRUST                 
96,Public Health,PH - Natnl Child Measrmnt Prog,National Child Measure Program          ,WPHM01,Supplies & Services           ,Expenses                      ,DH50,Special Projects                        ,2500,06/05/2015,Rev,GORRINGE PARK PRIMARY SCHOOL  
97,Childrens & Education Services,Chidren's Homes,ART Residential Placements,W1DE57,Third Party Payments          ,Private Contractors           ,EH01,Miscellaneous Agency Services           ,-2525.7,18/05/2015,Rev,REDACTED
98,Childrens & Education Services,Chidren's Homes,ART Residential Placements,W1DE57,Third Party Payments          ,Private Contractors           ,EH01,Miscellaneous Agency Services           ,-2525.7,18/05/2015,Rev,REDACTED
99,Childrens & Education Services,Chidren's Homes,ART Residential Placements,W1DE57,Third Party Payments          ,Private Contractors           ,EH01,Miscellaneous Agency Services           ,-1010.28,18/05/2015,Rev,REDACTED
100,Childrens & Education Services,Chidren's Homes,ART Residential Placements,W1DE57,Third Party Payments          ,Private Contractors           ,EH01,Miscellaneous Agency Services           ,2525.7,18/05/2015,Rev,REDACTED
101,Childrens & Education Services,Chidren's Homes,ART Residential Placements,W1DE57,Third Party Payments          ,Private Contractors           ,EH01,Miscellaneous Agency Services           ,2525.7,18/05/2015,Rev,REDACTED
102,Childrens & Education Services,Chidren's Homes,ART Residential Placements,W1DE57,Third Party Payments          ,Private Contractors           ,EH01,Miscellaneous Agency Services           ,3535.98,18/05/2015,Rev,REDACTED
103,Childrens & Education Services,Chidren's Homes,ART Residential Placements,W1DE57,Third Party Payments          ,Private Contractors           ,EH01,Miscellaneous Agency Services           ,3535.98,18/05/2015,Rev,REDACTED
104,Childrens & Education Services,Chidren's Homes,ART Residential Placements,W1DE57,Third Party Payments          ,Private Contractors           ,EH01,Miscellaneous Agency Services           ,3535.98,18/05/2015,Rev,REDACTED
105,Childrens & Education Services,Chidren's Homes,ART Residential Placements,W1DE57,Third Party Payments          ,Private Contractors           ,EH01,Miscellaneous Agency Services           ,3535.98,18/05/2015,Rev,REDACTED
106,Childrens & Education Services,Chidren's Homes,ART Residential Placements,W1DE57,Third Party Payments          ,Private Contractors           ,EH01,Miscellaneous Agency Services           ,3535.98,18/05/2015,Rev,REDACTED
107,Childrens & Education Services,Chidren's Homes,ART Residential Placements,W1DE57,Third Party Payments          ,Private Contractors           ,EH01,Miscellaneous Agency Services           ,3535.98,18/05/2015,Rev,REDACTED
108,Childrens & Education Services,Chidren's Homes,ART Residential Placements,W1DE57,Third Party Payments          ,Private Contractors           ,EH01,Miscellaneous Agency Services           ,3535.98,18/05/2015,Rev,REDACTED
109,Childrens & Education Services,Chidren's Homes,ART Residential Placements,W1DE57,Third Party Payments          ,Private Contractors           ,EH01,Miscellaneous Agency Services           ,3535.98,18/05/2015,Rev,REDACTED
110,Childrens & Education Services,Chidren's Homes,ART Residential Placements,W1DE57,Third Party Payments          ,Private Contractors           ,EH01,Miscellaneous Agency Services           ,3535.98,18/05/2015,Rev,REDACTED
111,Central Services,SupS Legal,Achieving for Children (AFC),E10295,Supplies & Services           ,Services                      ,DF11,Counsel's Fees                          ,510,22/05/2015,Rev,REDACTED
112,Childrens & Education Services,Asset Management,Stouthall,K09082,Premises Related Expenditure  ,RepairsAlterations&MtceOfBldgs,BA06,Repairs & Maintenance General           ,-3110,26/05/2015,Rev,CALOW LTD                     
113,CS -Oth Operating Inc & Expend,Extraordinary Items & PY Adj.,Housing Shops,J01533,Premises Related Expenditure  ,RepairsAlterations&MtceOfBldgs,BA06,REPAIRS & MAINTENANCE GENERAL           ,3110,26/05/2015,Rev,CALOW LTD                     
114,Adult Social Care,Substance Abuse (Addictions),MH Residential Care Ext - SM&D,W2PB55,Third Party Payments          ,Private Contractors           ,EH01,Miscellaneous Agency Services           ,552.34,27/05/2015,Rev,KENWARD TRUST                 
115,Adult Social Care,Substance Abuse (Addictions),MH Residential Care Ext - SM&D,W2PB55,Third Party Payments          ,Private Contractors           ,EH01,Miscellaneous Agency Services           ,644.4,27/05/2015,Rev,KENWARD TRUST                 
116,Adult Social Care,Substance Abuse (Addictions),MH Residential Care Ext - SM&D,W2PB55,Third Party Payments          ,Private Contractors           ,EH01,Miscellaneous Agency Services           ,644.4,27/05/2015,Rev,KENWARD TRUST                 
117,Central Services,SupS Facilities,FM External Fees,E02239,Premises Related Expenditure  ,RepairsAlterations&MtceOfBldgs,BA29,Build Maint Mgt Fees                    ,750,31/05/2015,Rev,BUXTON ASSOCS (CONS) ENG.LTD  
118,Childrens & Education Services,,ART Residential Secure accommo,W1DE58,Third Party Payments          ,Private Contractors           ,EH01,Miscellaneous Agency Services           ,542.86,31/05/2015,Rev,HIGHER LEVEL CARE (HLC) LTD   
119,Childrens & Education Services,,ART Residential Secure accommo,W1DE58,Third Party Payments          ,Private Contractors           ,EH01,Miscellaneous Agency Services           ,950,31/05/2015,Rev,HIGHER LEVEL CARE (HLC) LTD   
120,Childrens & Education Services,Fostering Services,ART Independent Agency Foster,W1DE46,Supplies & Services           ,Services                      ,DF53,Task Based Fostering                    ,1176,01/06/2015,Rev,SYNERGY FOSTERING LTD         
121,Childrens & Education Services,Fostering Services,ART Independent Agency Foster,W1DE46,Supplies & Services           ,Services                      ,DF53,Task Based Fostering                    ,1176,01/06/2015,Rev,SYNERGY FOSTERING LTD         
122,Childrens & Education Services,Fostering Services,ART Independent Agency Foster,W1DE46,Supplies & Services           ,Services                      ,DF53,Task Based Fostering                    ,1176,01/06/2015,Rev,SYNERGY FOSTERING LTD         
123,Childrens & Education Services,Fostering Services,ART Independent Agency Foster,W1DE46,Supplies & Services           ,Services                      ,DF53,Task Based Fostering                    ,1176,01/06/2015,Rev,SYNERGY FOSTERING LTD         
124,Central Services,SupS Facilities,Corporate Services Buildings,E02240,Premises Related Expenditure  ,RepairsAlterations&MtceOfBldgs,BA06,Repairs & Maintenance General           ,675,03/06/2015,Rev,HAZLEMERE WINDOW CO LIMITED   
125,Childrens & Education Services,Support for SEN Pupils,Non-Delegated Statements,K90024,Third Party Payments          ,Other Establishments          ,EG50,Ind Day Schs Payments                   ,18615,03/06/2015,Rev,PHILPOTS MANOR SCHOOL         
126,Central Services,SupS Legal,Achieving for Children (AFC),E10295,Supplies & Services           ,Services                      ,DF11,Counsel's Fees                          ,1130,09/06/2015,Rev,REDACTED
127,Childrens & Education Services,Support for SEN Pupils,Statementing-Transport,K04023,Transport Related Expenditure ,Public Transport              ,CD50,Home Sch/Coll Trans(Trav Exps)          ,690,10/06/2015,Rev,ST MARY'S WRESTWOOD CHILDRENS 
128,Childrens & Education Services,Support for SEN Pupils,Statementing-Transport,K04023,Transport Related Expenditure ,Public Transport              ,CD50,Home Sch/Coll Trans(Trav Exps)          ,729,10/06/2015,Rev,ST MARY'S WRESTWOOD CHILDRENS 
129,Public Health,PH - Sexual Health,PH � STI Testing and Treatment          ,WPHS02,Supplies & Services           ,Public Health Subjectives,DQ04,GUM                                     ,-2156.47,11/06/2015,Rev,CHELSEA & WESTMINSTER HOSPITAL
130,Central Services,SupS IT,Systems & Projects,E14366,Employees                     ,Direct Employee Expenses      ,AA17,Agency Staff & Casual Paymts            ,1100,16/06/2015,Rev,BIBBY FACTORS LEICESTER       
131,Adult Social Care,LD u65 Residentl Care Placemnt,LD Residential Care External,W2KB55,Third Party Payments          ,Private Contractors           ,EH01,Miscellaneous Agency Services           ,1262,16/06/2015,Rev,WALSINGHAM                    
132,Adult Social Care,LD u65 Residentl Care Placemnt,LD Residential Care External,W2KB55,Third Party Payments          ,Private Contractors           ,EH01,Miscellaneous Agency Services           ,1262,16/06/2015,Rev,WALSINGHAM                    
133,Adult Social Care,LD u65 Residentl Care Placemnt,LD Residential Care External,W2KB55,Third Party Payments          ,Private Contractors           ,EH01,Miscellaneous Agency Services           ,1262,16/06/2015,Rev,WALSINGHAM                    
134,Adult Social Care,LD u65 Residentl Care Placemnt,LD Residential Care External,W2KB55,Third Party Payments          ,Private Contractors           ,EH01,Miscellaneous Agency Services           ,1262,16/06/2015,Rev,WALSINGHAM                    
135,Childrens & Education Services,Other Ch' Looked After Serv.,ART Mother and Baby Unit,W1DE63,Third Party Payments          ,Private Contractors           ,EH01,Miscellaneous Agency Services           ,1320,19/06/2015,Rev,REDACTED
136,Childrens & Education Services,Other Ch' Looked After Serv.,ART Mother and Baby Unit,W1DE63,Third Party Payments          ,Private Contractors           ,EH01,Miscellaneous Agency Services           ,1320,19/06/2015,Rev,REDACTED
137,Childrens & Education Services,Other Ch' Looked After Serv.,ART Mother and Baby Unit,W1DE63,Third Party Payments          ,Private Contractors           ,EH01,Miscellaneous Agency Services           ,2895,19/06/2015,Rev,REDACTED
138,Childrens & Education Services,Other Ch' Looked After Serv.,ART Mother and Baby Unit,W1DE63,Third Party Payments          ,Private Contractors           ,EH01,Miscellaneous Agency Services           ,2895,19/06/2015,Rev,REDACTED
139,Childrens & Education Services,Other Ch' Looked After Serv.,ART Mother and Baby Unit,W1DE63,Third Party Payments          ,Private Contractors           ,EH01,Miscellaneous Agency Services           ,2895,19/06/2015,Rev,REDACTED
140,Childrens & Education Services,Other Ch' Looked After Serv.,ART Mother and Baby Unit,W1DE63,Third Party Payments          ,Private Contractors           ,EH01,Miscellaneous Agency Services           ,2895,19/06/2015,Rev,REDACTED
141,Cultural Env Reg&Plan Services,Economic Dev (Not separated),Capt Ambition-Suburban Opprt Z,H01231,Third Party Payments          ,Private Contractors           ,EH10,Contract Payments                       ,3820,22/06/2015,Rev,SALTASH ENTERPRISES LTD.      
142,Central Services,SupS Legal,Kingston Legal                          ,E10292,Supplies & Services           ,Services                      ,DF95,Services from Provider                  ,860.54,22/06/2015,Rev,SEARCHFLOW LTD                
143,Central Services,SupS Legal,Kingston Legal                          ,E10292,Supplies & Services           ,Services                      ,DF95,Services from Provider                  ,1038.96,22/06/2015,Rev,SEARCHFLOW LTD                
144,,,Parks Investment                        ,CE013SA,New Construction Conversion and Renovation,,B4,Contractor - Site works                 ,2255,23/06/2015,Cap,JUST METAL UK LTD             
145,Childrens & Education Services,Nursery schools,GSSG Central Administration,K05400,Supplies & Services           ,Expenses                      ,DH02,Conferences                             ,2048,29/06/2015,Rev,MENTAL H'LTH FIRST AID ENGLAND
146,Childrens & Education Services,Nursery schools,GSSG Central Administration,K05400,Supplies & Services           ,Expenses                      ,DH02,Conferences                             ,4200,29/06/2015,Rev,MENTAL H'LTH FIRST AID ENGLAND
147,Central Services,SupS Legal,Achieving for Children (AFC),E10295,Supplies & Services           ,Services                      ,DF95,Services from Provider                  ,980,30/06/2015,Rev,WARD HADAWAY                  
148,Central Services,SupS Legal,Achieving for Children (AFC),E10295,Supplies & Services           ,Services                      ,DF95,Services from Provider                  ,16466.59,30/06/2015,Rev,WARD HADAWAY                  
149,Childrens & Education Services,Support for SEN Pupils,Non-Delegated Statements,K90024,Third Party Payments          ,Other Establishments          ,EG50,Ind Day Schs Payments                   ,10100,01/07/2015,Rev,BLOSSOM HOUSE SCHOOL          
150,Childrens & Education Services,Support for SEN Pupils,Non-Delegated Statements,K90024,Third Party Payments          ,Other Establishments          ,EG50,Ind Day Schs Payments                   ,10500,01/07/2015,Rev,BLOSSOM HOUSE SCHOOL          
151,Childrens & Education Services,Support for SEN Pupils,ART SEN Residential (DSG),K90050,Third Party Payments          ,Other Establishments          ,EG51,Ind Resid Schs Payments                 ,4970.86,01/07/2015,Rev,COXLEASE SCHOOL PRIORY        
152,Highways & Transport Services,Off-street parking,"St. Mks Rd, Multi Sty",G00308,Premises Related Expenditure  ,Rents                         ,BC01,Miscellaneous Rents                     ,3898.96,01/07/2015,Rev,FISHER PROPERTY CONSULTANTS   
153,Central Services,SupS Legal,Sutton Legal                            ,E10293,Supplies & Services           ,Services                      ,DF95,Services from Provider                  ,1759.8,01/07/2015,Rev,K J DESBOTTES & CO            
154,Childrens & Education Services,Family - Other Services,CS Residential Care School CWD,W1CF57,Third Party Payments          ,Private Contractors           ,EH01,Miscellaneous Agency Services           ,2100,02/07/2015,Rev,ST JOSEPHS SCHOOL             
155,Childrens & Education Services,Family - Other Services,CS Residential Care School CWD,W1CF57,Third Party Payments          ,Private Contractors           ,EH01,Miscellaneous Agency Services           ,2100,02/07/2015,Rev,ST JOSEPHS SCHOOL             
156,Childrens & Education Services,Family - Other Services,CS SWD Personal support                 ,W1CF49,Third Party Payments          ,Private Contractors           ,EH01,Miscellaneous Contrct Services          ,4864,02/07/2015,Rev,ST JOSEPHS SCHOOL             
157,Public Health,PH - Natnl Child Measrmnt Prog,National Child Measure Program          ,WPHM01,Supplies & Services           ,Expenses                      ,DH50,Special Projects                        ,4940,06/07/2015,Rev,GREENWICH LEISURE LTD         
158,Central Services,SupS Facilities,Post Room,E02220,Supplies & Services           ,Comms and Computing           ,DG04,Postage - General                       ,990.9,06/07/2015,Rev,STREETWISE COURIERS           
159,Adult Social Care,LD u65 Assessment & Care Mgt,LD Business Support,W2KA02,Supplies & Services           ,Expenses                      ,DH50,Special Projects                        ,10000,06/07/2015,Rev,VOICEABILITY                  
160,Childrens & Education Services,Fostering Services,ART Independent Agency Foster,W1DE46,Supplies & Services           ,Services                      ,DF53,Task Based Fostering                    ,670,12/07/2015,Rev,THE NATIONAL FOSTERING AGENCY 
161,Childrens & Education Services,Fostering Services,ART Independent Agency Foster,W1DE46,Supplies & Services           ,Services                      ,DF53,Task Based Fostering                    ,670,12/07/2015,Rev,THE NATIONAL FOSTERING AGENCY 
162,Adult Social Care,OP 65&Over NursingCarePlacemts,OP R/Park - Nursing Care,W2LR53,Third Party Payments          ,Private Contractors           ,EH01,Miscellaneous Agency Services           ,574.29,13/07/2015,Rev,LIFE STYLE CARE (2011) PLC    
163,Adult Social Care,OP 65&Over NursingCarePlacemts,OP West - Nursing Care,W2LG53,Third Party Payments          ,Private Contractors           ,EH01,Miscellaneous Agency Services           ,670,13/07/2015,Rev,LIFE STYLE CARE (2011) PLC    
164,Adult Social Care,OP 65&Over NursingCarePlacemts,OP West - Nursing Care,W2LG53,Third Party Payments          ,Private Contractors           ,EH01,Miscellaneous Agency Services           ,670,13/07/2015,Rev,LIFE STYLE CARE (2011) PLC    
165,Adult Social Care,OP 65&Over NursingCarePlacemts,OP West - Nursing Care,W2LG53,Third Party Payments          ,Private Contractors           ,EH01,Miscellaneous Agency Services           ,670,13/07/2015,Rev,LIFE STYLE CARE (2011) PLC    
166,Adult Social Care,OP 65&Over NursingCarePlacemts,OP West - Nursing Care,W2LG53,Third Party Payments          ,Private Contractors           ,EH01,Miscellaneous Agency Services           ,670,13/07/2015,Rev,LIFE STYLE CARE (2011) PLC    
167,Adult Social Care,OP 65&Over NursingCarePlacemts,OP West - Nursing Care,W2LG53,Third Party Payments          ,Private Contractors           ,EH01,Miscellaneous Agency Services           ,670,13/07/2015,Rev,LIFE STYLE CARE (2011) PLC    
168,Adult Social Care,OP 65&Over NursingCarePlacemts,OP West - Nursing Care,W2LG53,Third Party Payments          ,Private Contractors           ,EH01,Miscellaneous Agency Services           ,670,13/07/2015,Rev,LIFE STYLE CARE (2011) PLC    
169,Adult Social Care,OP 65&Over NursingCarePlacemts,OP East - Nursing Care,W2LH53,Third Party Payments          ,Private Contractors           ,EH01,Miscellaneous Agency Services           ,670,13/07/2015,Rev,LIFE STYLE CARE (2011) PLC    
170,Adult Social Care,OP 65&Over NursingCarePlacemts,OP East - Nursing Care,W2LH53,Third Party Payments          ,Private Contractors           ,EH01,Miscellaneous Agency Services           ,670,13/07/2015,Rev,LIFE STYLE CARE (2011) PLC    
171,Adult Social Care,OP 65&Over NursingCarePlacemts,OP East - Nursing Care,W2LH53,Third Party Payments          ,Private Contractors           ,EH01,Miscellaneous Agency Services           ,670,13/07/2015,Rev,LIFE STYLE CARE (2011) PLC    
172,Adult Social Care,OP 65&Over NursingCarePlacemts,OP East - Nursing Care,W2LH53,Third Party Payments          ,Private Contractors           ,EH01,Miscellaneous Agency Services           ,670,13/07/2015,Rev,LIFE STYLE CARE (2011) PLC    
173,Adult Social Care,OP 65&Over NursingCarePlacemts,OP East - Nursing Care,W2LH53,Third Party Payments          ,Private Contractors           ,EH01,Miscellaneous Agency Services           ,670,13/07/2015,Rev,LIFE STYLE CARE (2011) PLC    
174,Adult Social Care,OP 65&Over NursingCarePlacemts,OP East - Nursing Care,W2LH53,Third Party Payments          ,Private Contractors           ,EH01,Miscellaneous Agency Services           ,670,13/07/2015,Rev,LIFE STYLE CARE (2011) PLC    
175,Adult Social Care,OP 65&Over NursingCarePlacemts,OP R/Park - Nursing Care,W2LR53,Third Party Payments          ,Private Contractors           ,EH01,Miscellaneous Agency Services           ,670,13/07/2015,Rev,LIFE STYLE CARE (2011) PLC    
176,Adult Social Care,OP 65&Over NursingCarePlacemts,OP R/Park - Nursing Care,W2LR53,Third Party Payments          ,Private Contractors           ,EH01,Miscellaneous Agency Services           ,670,13/07/2015,Rev,LIFE STYLE CARE (2011) PLC    
177,Adult Social Care,OP 65&Over NursingCarePlacemts,OP R/Park - Nursing Care,W2LR53,Third Party Payments          ,Private Contractors           ,EH01,Miscellaneous Agency Services           ,670,13/07/2015,Rev,LIFE STYLE CARE (2011) PLC    
178,Adult Social Care,OP 65&Over NursingCarePlacemts,OP R/Park - Nursing Care,W2LR53,Third Party Payments          ,Private Contractors           ,EH01,Miscellaneous Agency Services           ,670,13/07/2015,Rev,LIFE STYLE CARE (2011) PLC    
179,Adult Social Care,OP 65&Over NursingCarePlacemts,OP R/Park - Nursing Care,W2LR53,Third Party Payments          ,Private Contractors           ,EH01,Miscellaneous Agency Services           ,670,13/07/2015,Rev,LIFE STYLE CARE (2011) PLC    
180,Adult Social Care,OP 65&Over NursingCarePlacemts,OP East - Nursing Care,W2LH53,Third Party Payments          ,Private Contractors           ,EH01,Miscellaneous Agency Services           ,750,13/07/2015,Rev,LIFE STYLE CARE (2011) PLC    
181,Adult Social Care,OP 65&Over NursingCarePlacemts,OP East - Nursing Care,W2LH53,Third Party Payments          ,Private Contractors           ,EH01,Miscellaneous Agency Services           ,750,13/07/2015,Rev,LIFE STYLE CARE (2011) PLC    
182,Adult Social Care,OP 65&Over NursingCarePlacemts,OP East - Nursing Care,W2LH53,Third Party Payments          ,Private Contractors           ,EH01,Miscellaneous Agency Services           ,750,13/07/2015,Rev,LIFE STYLE CARE (2011) PLC    
183,Adult Social Care,OP 65&Over NursingCarePlacemts,OP East - Nursing Care,W2LH53,Third Party Payments          ,Private Contractors           ,EH01,Miscellaneous Agency Services           ,750,13/07/2015,Rev,LIFE STYLE CARE (2011) PLC    
184,Adult Social Care,PS u65 Nursing Care Placements,PD R/Park-Nursing                       ,W2JM53,Third Party Payments          ,Private Contractors           ,EH01,Miscellaneous Contrct Services          ,774,13/07/2015,Rev,LIFE STYLE CARE (2011) PLC    
185,Adult Social Care,PS u65 Nursing Care Placements,PD R/Park-Nursing                       ,W2JM53,Third Party Payments          ,Private Contractors           ,EH01,Miscellaneous Contrct Services          ,774,13/07/2015,Rev,LIFE STYLE CARE (2011) PLC    
186,Adult Social Care,PS u65 Nursing Care Placements,PD R/Park-Nursing                       ,W2JM53,Third Party Payments          ,Private Contractors           ,EH01,Miscellaneous Contrct Services          ,774,13/07/2015,Rev,LIFE STYLE CARE (2011) PLC    
187,Adult Social Care,PS u65 Nursing Care Placements,PD R/Park-Nursing                       ,W2JM53,Third Party Payments          ,Private Contractors           ,EH01,Miscellaneous Contrct Services          ,774,13/07/2015,Rev,LIFE STYLE CARE (2011) PLC    
188,Adult Social Care,PS u65 Nursing Care Placements,PD EAST TEAM-Nursing,W2JJ53,Third Party Payments          ,Private Contractors           ,EH01,Miscellaneous Agency Services           ,800,13/07/2015,Rev,LIFE STYLE CARE (2011) PLC    
189,Adult Social Care,PS u65 Nursing Care Placements,PD EAST TEAM-Nursing,W2JJ53,Third Party Payments          ,Private Contractors           ,EH01,Miscellaneous Agency Services           ,800,13/07/2015,Rev,LIFE STYLE CARE (2011) PLC    
190,Adult Social Care,PS u65 Nursing Care Placements,PD EAST TEAM-Nursing,W2JJ53,Third Party Payments          ,Private Contractors           ,EH01,Miscellaneous Agency Services           ,800,13/07/2015,Rev,LIFE STYLE CARE (2011) PLC    
191,Adult Social Care,PS u65 Nursing Care Placements,PD EAST TEAM-Nursing,W2JJ53,Third Party Payments          ,Private Contractors           ,EH01,Miscellaneous Agency Services           ,800,13/07/2015,Rev,LIFE STYLE CARE (2011) PLC    
192,Adult Social Care,PS u65 Residentl Care Placemnt,PD EAST TEAM-Residential,W2JJ55,Third Party Payments          ,Private Contractors           ,EH01,Miscellaneous Agency Services           ,800,13/07/2015,Rev,LIFE STYLE CARE (2011) PLC    
193,Adult Social Care,PS u65 Residentl Care Placemnt,PD EAST TEAM-Residential,W2JJ55,Third Party Payments          ,Private Contractors           ,EH01,Miscellaneous Agency Services           ,800,13/07/2015,Rev,LIFE STYLE CARE (2011) PLC    
194,Adult Social Care,PS u65 Residentl Care Placemnt,PD EAST TEAM-Residential,W2JJ55,Third Party Payments          ,Private Contractors           ,EH01,Miscellaneous Agency Services           ,800,13/07/2015,Rev,LIFE STYLE CARE (2011) PLC    
195,Adult Social Care,PS u65 Residentl Care Placemnt,PD EAST TEAM-Residential,W2JJ55,Third Party Payments          ,Private Contractors           ,EH01,Miscellaneous Agency Services           ,800,13/07/2015,Rev,LIFE STYLE CARE (2011) PLC    
196,Adult Social Care,PS u65 Nursing Care Placements,PD WEST TEAM-Nursing,W2JK53,Third Party Payments          ,Private Contractors           ,EH01,Miscellaneous Agency Services           ,800,13/07/2015,Rev,LIFE STYLE CARE (2011) PLC    
197,Adult Social Care,PS u65 Nursing Care Placements,PD WEST TEAM-Nursing,W2JK53,Third Party Payments          ,Private Contractors           ,EH01,Miscellaneous Agency Services           ,800,13/07/2015,Rev,LIFE STYLE CARE (2011) PLC    
198,Adult Social Care,PS u65 Nursing Care Placements,PD WEST TEAM-Nursing,W2JK53,Third Party Payments          ,Private Contractors           ,EH01,Miscellaneous Agency Services           ,800,13/07/2015,Rev,LIFE STYLE CARE (2011) PLC    
199,Adult Social Care,PS u65 Nursing Care Placements,PD WEST TEAM-Nursing,W2JK53,Third Party Payments          ,Private Contractors           ,EH01,Miscellaneous Agency Services           ,800,13/07/2015,Rev,LIFE STYLE CARE (2011) PLC    
200,Adult Social Care,PS u65 Nursing Care Placements,PD WEST TEAM-Nursing,W2JK53,Third Party Payments          ,Private Contractors           ,EH01,Miscellaneous Agency Services           ,850,13/07/2015,Rev,LIFE STYLE CARE (2011) PLC    
201,Adult Social Care,PS u65 Nursing Care Placements,PD WEST TEAM-Nursing,W2JK53,Third Party Payments          ,Private Contractors           ,EH01,Miscellaneous Agency Services           ,850,13/07/2015,Rev,LIFE STYLE CARE (2011) PLC    
202,Adult Social Care,PS u65 Nursing Care Placements,PD WEST TEAM-Nursing,W2JK53,Third Party Payments          ,Private Contractors           ,EH01,Miscellaneous Agency Services           ,850,13/07/2015,Rev,LIFE STYLE CARE (2011) PLC    
203,Adult Social Care,PS u65 Nursing Care Placements,PD WEST TEAM-Nursing,W2JK53,Third Party Payments          ,Private Contractors           ,EH01,Miscellaneous Agency Services           ,850,13/07/2015,Rev,LIFE STYLE CARE (2011) PLC    
204,Central Services,SupS Legal,Achieving for Children (AFC),E10295,Supplies & Services           ,Services                      ,DF11,Counsel's Fees                          ,520,14/07/2015,Rev,REDACTED
205,Childrens & Education Services,Support for SEN Pupils,ART SEN Residential (DSG),K90050,Third Party Payments          ,Other Establishments          ,EG51,Ind Resid Schs Payments                 ,11116.66,15/07/2015,Rev,COXLEASE SCHOOL PRIORY        
206,Childrens & Education Services,Chidren's Homes,ART Residential Placements,W1DE57,Third Party Payments          ,Private Contractors           ,EH01,Miscellaneous Agency Services           ,1010.28,15/07/2015,Rev,REDACTED
207,Childrens & Education Services,Chidren's Homes,ART Residential Placements,W1DE57,Third Party Payments          ,Private Contractors           ,EH01,Miscellaneous Agency Services           ,1808.57,15/07/2015,Rev,REDACTED
208,Childrens & Education Services,Chidren's Homes,ART Residential Placements,W1DE57,Third Party Payments          ,Private Contractors           ,EH01,Miscellaneous Agency Services           ,3535.98,15/07/2015,Rev,REDACTED
209,Childrens & Education Services,Chidren's Homes,ART Residential Placements,W1DE57,Third Party Payments          ,Private Contractors           ,EH01,Miscellaneous Agency Services           ,3535.98,15/07/2015,Rev,REDACTED
210,Childrens & Education Services,Chidren's Homes,ART Residential Placements,W1DE57,Third Party Payments          ,Private Contractors           ,EH01,Miscellaneous Agency Services           ,3535.98,15/07/2015,Rev,REDACTED
211,Childrens & Education Services,Chidren's Homes,ART Residential Placements,W1DE57,Third Party Payments          ,Private Contractors           ,EH01,Miscellaneous Agency Services           ,3535.98,15/07/2015,Rev,REDACTED
212,Public Health,PH - Sexual Health,PH � STI Testing and Treatment          ,WPHS02,Supplies & Services           ,Public Health Subjectives,DQ04,GUM                                     ,554.54,17/07/2015,Rev,VIRGIN CARE SRV LTD NON SURREY
213,Adult Social Care,MH u65 Assessment & Care Mgt,MH Waldemar Road,W2HQ00,Third Party Payments          ,Private Contractors           ,EH10,Contract Payments                       ,3681,21/07/2015,Rev,FAMILY MOSAIC HOUSING         
214,Cultural Env Reg&Plan Services,Library DoS not split,Libraries Service-Civic Centre,L50001,Supplies & Services           ,Services                      ,DF95,Services from Provider                  ,532.28,22/07/2015,Rev,SEARCHFLOW LTD                
215,Cultural Env Reg&Plan Services,Trade Waste Collection,Commercial Waste,G00663,Supplies & Services           ,Equip Furniture/Materials     ,DA31,Waste Sacks & Bags                      ,933.6,27/07/2015,Rev,GELPACK EXCELSIOR             
216,Adult Social Care,LD u65 Residentl Care Placemnt,LD Comm -Residential-Orch Hill,W2KR55,Third Party Payments          ,Private Contractors           ,EH01,Miscellaneous Agency Services           ,-1089.86,27/07/2015,Rev,UNITED RESPONSE               
217,Adult Social Care,LD u65 Residentl Care Placemnt,LD Comm -Residential-Orch Hill,W2KR55,Third Party Payments          ,Private Contractors           ,EH01,Miscellaneous Agency Services           ,-1089.86,27/07/2015,Rev,UNITED RESPONSE               
218,Adult Social Care,LD u65 Residentl Care Placemnt,LD Comm -Residential-Orch Hill,W2KR55,Third Party Payments          ,Private Contractors           ,EH01,Miscellaneous Agency Services           ,-1089.86,27/07/2015,Rev,UNITED RESPONSE               
219,Adult Social Care,LD u65 Residentl Care Placemnt,LD Comm -Residential-Orch Hill,W2KR55,Third Party Payments          ,Private Contractors           ,EH01,Miscellaneous Agency Services           ,-1089.86,27/07/2015,Rev,UNITED RESPONSE               
220,Adult Social Care,LD u65 Residentl Care Placemnt,LD Residential Care External,W2KB55,Third Party Payments          ,Private Contractors           ,EH01,Miscellaneous Agency Services           ,778.47,27/07/2015,Rev,UNITED RESPONSE               
221,Adult Social Care,LD u65 Residentl Care Placemnt,LD Residential Care External,W2KB55,Third Party Payments          ,Private Contractors           ,EH01,Miscellaneous Agency Services           ,1089.86,27/07/2015,Rev,UNITED RESPONSE               
222,Adult Social Care,LD u65 Residentl Care Placemnt,LD Residential Care External,W2KB55,Third Party Payments          ,Private Contractors           ,EH01,Miscellaneous Agency Services           ,1089.86,27/07/2015,Rev,UNITED RESPONSE               
223,Adult Social Care,LD u65 Residentl Care Placemnt,LD Residential Care External,W2KB55,Third Party Payments          ,Private Contractors           ,EH01,Miscellaneous Agency Services           ,1089.86,27/07/2015,Rev,UNITED RESPONSE               
224,Adult Social Care,LD u65 Residentl Care Placemnt,LD Residential Care External,W2KB55,Third Party Payments          ,Private Contractors           ,EH01,Miscellaneous Agency Services           ,1089.86,27/07/2015,Rev,UNITED RESPONSE               
225,Adult Social Care,LD u65 Residentl Care Placemnt,LD Residential Care External,W2KB55,Third Party Payments          ,Private Contractors           ,EH01,Miscellaneous Agency Services           ,1089.86,27/07/2015,Rev,UNITED RESPONSE               
226,Adult Social Care,LD u65 Residentl Care Placemnt,LD Residential Care External,W2KB55,Third Party Payments          ,Private Contractors           ,EH01,Miscellaneous Agency Services           ,1089.86,27/07/2015,Rev,UNITED RESPONSE               
227,Adult Social Care,LD u65 Residentl Care Placemnt,LD Residential Care External,W2KB55,Third Party Payments          ,Private Contractors           ,EH01,Miscellaneous Agency Services           ,1089.86,27/07/2015,Rev,UNITED RESPONSE               
228,Adult Social Care,LD u65 Residentl Care Placemnt,LD Residential Care External,W2KB55,Third Party Payments          ,Private Contractors           ,EH01,Miscellaneous Agency Services           ,1089.86,27/07/2015,Rev,UNITED RESPONSE               
229,Adult Social Care,LD u65 Residentl Care Placemnt,LD Residential Care External,W2KB55,Third Party Payments          ,Private Contractors           ,EH01,Miscellaneous Agency Services           ,1089.86,27/07/2015,Rev,UNITED RESPONSE               
230,Adult Social Care,LD u65 Residentl Care Placemnt,LD Residential Care External,W2KB55,Third Party Payments          ,Private Contractors           ,EH01,Miscellaneous Agency Services           ,1089.86,27/07/2015,Rev,UNITED RESPONSE               
231,Adult Social Care,LD u65 Residentl Care Placemnt,LD Residential Care External,W2KB55,Third Party Payments          ,Private Contractors           ,EH01,Miscellaneous Agency Services           ,1089.86,27/07/2015,Rev,UNITED RESPONSE               
232,Adult Social Care,LD u65 Residentl Care Placemnt,LD Residential Care External,W2KB55,Third Party Payments          ,Private Contractors           ,EH01,Miscellaneous Agency Services           ,1089.86,27/07/2015,Rev,UNITED RESPONSE               
233,Adult Social Care,LD u65 Residentl Care Placemnt,LD Residential Care External,W2KB55,Third Party Payments          ,Private Contractors           ,EH01,Miscellaneous Agency Services           ,1089.86,27/07/2015,Rev,UNITED RESPONSE               
234,Adult Social Care,LD u65 Residentl Care Placemnt,LD Residential Care External,W2KB55,Third Party Payments          ,Private Contractors           ,EH01,Miscellaneous Agency Services           ,1089.86,27/07/2015,Rev,UNITED RESPONSE               
235,Adult Social Care,LD u65 Residentl Care Placemnt,LD Comm -Residential-Orch Hill,W2KR55,Third Party Payments          ,Private Contractors           ,EH01,Miscellaneous Agency Services           ,1089.86,27/07/2015,Rev,UNITED RESPONSE               
236,Adult Social Care,LD u65 Residentl Care Placemnt,LD Comm -Residential-Orch Hill,W2KR55,Third Party Payments          ,Private Contractors           ,EH01,Miscellaneous Agency Services           ,1089.86,27/07/2015,Rev,UNITED RESPONSE               
237,Adult Social Care,LD u65 Residentl Care Placemnt,LD Comm -Residential-Orch Hill,W2KR55,Third Party Payments          ,Private Contractors           ,EH01,Miscellaneous Agency Services           ,1089.86,27/07/2015,Rev,UNITED RESPONSE               
238,Adult Social Care,LD u65 Residentl Care Placemnt,LD Comm -Residential-Orch Hill,W2KR55,Third Party Payments          ,Private Contractors           ,EH01,Miscellaneous Agency Services           ,1089.86,27/07/2015,Rev,UNITED RESPONSE               
239,Public Health,PH - Sexual Health,PH � STI Testing and Treatment          ,WPHS02,Supplies & Services           ,Public Health Subjectives,DQ04,GUM                                     ,21232.74,28/07/2015,Rev,CHELSEA & WESTMINSTER HOSPITAL
240,Childrens & Education Services,Other - Other Ch & Fam,CL CAMHS Mental Health Grant,W1DA01,Third Party Payments          ,Private Contractors           ,EH01,Miscellaneous Agency Services           ,23092.9,28/07/2015,Rev,SW LONDON ST GEORGES NHS TRUST
241,Adult Social Care,OP 65&Over NursingCarePlacemts,OP East - Nursing Care,W2LH53,Third Party Payments          ,Private Contractors           ,EH01,Miscellaneous Agency Services           ,585.46,29/07/2015,Rev,BRIDGE HOUSE CARE CENTRE      
242,Adult Social Care,OP 65&Over NursingCarePlacemts,OP East - Nursing Care,W2LH53,Third Party Payments          ,Private Contractors           ,EH01,Miscellaneous Agency Services           ,585.46,29/07/2015,Rev,BRIDGE HOUSE CARE CENTRE      
243,Adult Social Care,OP 65&Over NursingCarePlacemts,OP East - Nursing Care,W2LH53,Third Party Payments          ,Private Contractors           ,EH01,Miscellaneous Agency Services           ,585.46,29/07/2015,Rev,BRIDGE HOUSE CARE CENTRE      
244,Adult Social Care,OP 65&Over NursingCarePlacemts,OP East - Nursing Care,W2LH53,Third Party Payments          ,Private Contractors           ,EH01,Miscellaneous Agency Services           ,585.46,29/07/2015,Rev,BRIDGE HOUSE CARE CENTRE      
245,Adult Social Care,OP 65&Over NursingCarePlacemts,OP East - Nursing Care,W2LH53,Third Party Payments          ,Private Contractors           ,EH01,Miscellaneous Agency Services           ,585.46,29/07/2015,Rev,BRIDGE HOUSE CARE CENTRE      
246,Adult Social Care,OP 65&Over NursingCarePlacemts,OP East - Nursing Care,W2LH53,Third Party Payments          ,Private Contractors           ,EH01,Miscellaneous Agency Services           ,585.46,29/07/2015,Rev,BRIDGE HOUSE CARE CENTRE      
247,Adult Social Care,OP 65&Over NursingCarePlacemts,OP East - Nursing Care,W2LH53,Third Party Payments          ,Private Contractors           ,EH01,Miscellaneous Agency Services           ,585.46,29/07/2015,Rev,BRIDGE HOUSE CARE CENTRE      
248,Adult Social Care,OP 65&Over NursingCarePlacemts,OP East - Nursing Care,W2LH53,Third Party Payments          ,Private Contractors           ,EH01,Miscellaneous Agency Services           ,585.46,29/07/2015,Rev,BRIDGE HOUSE CARE CENTRE      
249,Adult Social Care,OP 65&Over NursingCarePlacemts,OP East - Nursing Care,W2LH53,Third Party Payments          ,Private Contractors           ,EH01,Miscellaneous Agency Services           ,585.46,29/07/2015,Rev,BRIDGE HOUSE CARE CENTRE      
250,Adult Social Care,OP 65&Over NursingCarePlacemts,OP East - Nursing Care,W2LH53,Third Party Payments          ,Private Contractors           ,EH01,Miscellaneous Agency Services           ,585.46,29/07/2015,Rev,BRIDGE HOUSE CARE CENTRE      
251,Adult Social Care,OP 65&Over NursingCarePlacemts,OP East - Nursing Care,W2LH53,Third Party Payments          ,Private Contractors           ,EH01,Miscellaneous Agency Services           ,585.46,29/07/2015,Rev,BRIDGE HOUSE CARE CENTRE      
252,Adult Social Care,OP 65&Over NursingCarePlacemts,OP East - Nursing Care,W2LH53,Third Party Payments          ,Private Contractors           ,EH01,Miscellaneous Agency Services           ,585.46,29/07/2015,Rev,BRIDGE HOUSE CARE CENTRE      
253,Adult Social Care,OP 65&Over NursingCarePlacemts,OP East - Nursing Care,W2LH53,Third Party Payments          ,Private Contractors           ,EH01,Miscellaneous Agency Services           ,585.46,29/07/2015,Rev,BRIDGE HOUSE CARE CENTRE      
254,Adult Social Care,OP 65&Over NursingCarePlacemts,OP East - Nursing Care,W2LH53,Third Party Payments          ,Private Contractors           ,EH01,Miscellaneous Agency Services           ,585.46,29/07/2015,Rev,BRIDGE HOUSE CARE CENTRE      
255,Adult Social Care,OP 65&Over NursingCarePlacemts,OP East - Nursing Care,W2LH53,Third Party Payments          ,Private Contractors           ,EH01,Miscellaneous Agency Services           ,585.46,29/07/2015,Rev,BRIDGE HOUSE CARE CENTRE      
256,Adult Social Care,OP 65&Over NursingCarePlacemts,OP East - Nursing Care,W2LH53,Third Party Payments          ,Private Contractors           ,EH01,Miscellaneous Agency Services           ,585.46,29/07/2015,Rev,BRIDGE HOUSE CARE CENTRE      
257,Central Services,GENERATED ACCOUNT,Parking Cash Collect'n Contrct,E06225,Third Party Payments          ,Private Contractors           ,EH02,Miscellaneous Hired Services            ,9049.99,31/07/2015,Rev,BANKING AUTOMATION LTD        
258,Childrens & Education Services,Fostering Services,ART Independent Agency Foster,W1DE46,Supplies & Services           ,Services                      ,DF53,Task Based Fostering                    ,525,31/07/2015,Rev,HORIZON FOSTERING SERVICES    
259,Childrens & Education Services,Fostering Services,ART Independent Agency Foster,W1DE46,Supplies & Services           ,Services                      ,DF53,Task Based Fostering                    ,735,31/07/2015,Rev,HORIZON FOSTERING SERVICES    
260,Childrens & Education Services,Fostering Services,ART Independent Agency Foster,W1DE46,Supplies & Services           ,Services                      ,DF53,Task Based Fostering                    ,735,31/07/2015,Rev,HORIZON FOSTERING SERVICES    
261,Childrens & Education Services,Fostering Services,ART Independent Agency Foster,W1DE46,Supplies & Services           ,Services                      ,DF53,Task Based Fostering                    ,735,31/07/2015,Rev,HORIZON FOSTERING SERVICES    
262,Childrens & Education Services,Family - Other Services,CS R&AssessDiscretionary Pymts,W1CE41,Third Party Payments          ,Private Contractors           ,EH01,Miscellaneous Agency Services           ,-1328.35,31/07/2015,Rev,ROOMS & STUDIOS MANAGEMENT    
263,Childrens & Education Services,Family - Other Services,CS R&AssessDiscretionary Pymts,W1CE41,Third Party Payments          ,Private Contractors           ,EH01,Miscellaneous Agency Services           ,-1328.35,31/07/2015,Rev,ROOMS & STUDIOS MANAGEMENT    
264,Childrens & Education Services,Family - Other Services,CS R&AssessDiscretionary Pymts,W1CE41,Third Party Payments          ,Private Contractors           ,EH01,Miscellaneous Agency Services           ,-1328.35,31/07/2015,Rev,ROOMS & STUDIOS MANAGEMENT    
265,Childrens & Education Services,Family - Other Services,CS R&AssessDiscretionary Pymts,W1CE41,Third Party Payments          ,Private Contractors           ,EH01,Miscellaneous Agency Services           ,-1328.35,31/07/2015,Rev,ROOMS & STUDIOS MANAGEMENT    
266,Childrens & Education Services,Family - Other Services,CS R&AssessDiscretionary Pymts,W1CE41,Third Party Payments          ,Private Contractors           ,EH01,Miscellaneous Agency Services           ,1328.35,31/07/2015,Rev,ROOMS & STUDIOS MANAGEMENT    
267,Childrens & Education Services,Family - Other Services,CS R&AssessDiscretionary Pymts,W1CE41,Third Party Payments          ,Private Contractors           ,EH01,Miscellaneous Agency Services           ,1328.35,31/07/2015,Rev,ROOMS & STUDIOS MANAGEMENT    
268,Childrens & Education Services,Family - Other Services,CS R&AssessDiscretionary Pymts,W1CE41,Third Party Payments          ,Private Contractors           ,EH01,Miscellaneous Agency Services           ,1328.35,31/07/2015,Rev,ROOMS & STUDIOS MANAGEMENT    
269,Childrens & Education Services,Family - Other Services,CS R&AssessDiscretionary Pymts,W1CE41,Third Party Payments          ,Private Contractors           ,EH01,Miscellaneous Agency Services           ,1328.35,31/07/2015,Rev,ROOMS & STUDIOS MANAGEMENT    
270,Childrens & Education Services,Family - Other Services,CS R&AssessDiscretionary Pymts,W1CE41,Third Party Payments          ,Private Contractors           ,EH01,Miscellaneous Agency Services           ,1328.35,31/07/2015,Rev,ROOMS & STUDIOS MANAGEMENT    
271,Childrens & Education Services,CS - Commiss'ing & Social Work,SG & CP T4 Section 17                   ,W1FE38,Transfer Payments             ,Schoolchildren/Students       ,FF02,Childr Act 1989 S17                     ,1328.35,31/07/2015,Rev,ROOMS & STUDIOS MANAGEMENT    
272,Central Services,SupS IT,Operations & Telecomms,E14367,Supplies & Services           ,Equip Furniture/Materials     ,DA01,Equipment - R & M                       ,898,31/07/2015,Rev,SHENTON GROUP                 
273,Central Services,SupS Legal,Achieving for Children (AFC),E10295,Supplies & Services           ,Services                      ,DF95,Services from Provider                  ,8311.5,31/07/2015,Rev,WARD HADAWAY                  
274,Adult Social Care,OP 65&Over NursingCarePlacemts,OP West - Nursing Care,W2LG53,Third Party Payments          ,Private Contractors           ,EH01,Miscellaneous Agency Services           ,654.55,01/08/2015,Rev,ASLOCKTON HALL                
275,Adult Social Care,OP 65&Over NursingCarePlacemts,OP West - Nursing Care,W2LG53,Third Party Payments          ,Private Contractors           ,EH01,Miscellaneous Agency Services           ,654.55,01/08/2015,Rev,ASLOCKTON HALL                
276,Adult Social Care,OP 65&Over NursingCarePlacemts,OP West - Nursing Care,W2LG53,Third Party Payments          ,Private Contractors           ,EH01,Miscellaneous Agency Services           ,654.55,01/08/2015,Rev,ASLOCKTON HALL                
277,Adult Social Care,OP 65&Over NursingCarePlacemts,OP West - Nursing Care,W2LG53,Third Party Payments          ,Private Contractors           ,EH01,Miscellaneous Agency Services           ,654.55,01/08/2015,Rev,ASLOCKTON HALL                
278,Adult Social Care,OP 65&Over NursingCarePlacemts,OP West - Nursing Care,W2LG53,Third Party Payments          ,Private Contractors           ,EH01,Miscellaneous Agency Services           ,654.55,01/08/2015,Rev,ASLOCKTON HALL                
279,Childrens & Education Services,Fostering Services,ART Independent Agency Foster,W1DE46,Supplies & Services           ,Services                      ,DF91,Long Term Fostering                     ,-642.38,01/08/2015,Rev,FOSTER CARE ASSOCIATES LTD    
280,Childrens & Education Services,Fostering Services,ART Independent Agency Foster,W1DE46,Supplies & Services           ,Services                      ,DF91,Long Term Fostering                     ,802.97,01/08/2015,Rev,FOSTER CARE ASSOCIATES LTD    
281,Childrens & Education Services,Fostering Services,ART Independent Agency Foster,W1DE46,Supplies & Services           ,Services                      ,DF91,Long Term Fostering                     ,802.97,01/08/2015,Rev,FOSTER CARE ASSOCIATES LTD    
282,Childrens & Education Services,Fostering Services,ART Independent Agency Foster,W1DE46,Supplies & Services           ,Services                      ,DF91,Long Term Fostering                     ,802.97,01/08/2015,Rev,FOSTER CARE ASSOCIATES LTD    
283,Childrens & Education Services,Fostering Services,ART Independent Agency Foster,W1DE46,Supplies & Services           ,Services                      ,DF91,Long Term Fostering                     ,802.97,01/08/2015,Rev,FOSTER CARE ASSOCIATES LTD    
284,Childrens & Education Services,Fostering Services,ART Independent Agency Foster,W1DE46,Supplies & Services           ,Services                      ,DF91,Long Term Fostering                     ,802.97,01/08/2015,Rev,FOSTER CARE ASSOCIATES LTD    
285,Childrens & Education Services,Asset Management,S106 Bid,K08077,Premises Related Expenditure  ,RepairsAlterations&MtceOfBldgs,BA06,Repairs & Maintenance General           ,720,01/08/2015,Rev,H G HIGGINSON LTD             
286,Housing Services,Bed / breakfast accommodation,TEMPORARY ACCOMMODATION,N47160,Third Party Payments          ,Private Contractors           ,EH01,Miscellaneous Agency Services           ,561,01/08/2015,Rev,M K ACCOMMODATION             
287,Childrens & Education Services,CS - Commiss'ing & Social Work,SG & CP T2 Section 17                   ,W1FC38,Transfer Payments             ,Schoolchildren/Students       ,FF02,Childr Act 1989 S17                     ,750,01/08/2015,Rev,M K ACCOMMODATION             
288,Housing Services,Bed / breakfast accommodation,TEMPORARY ACCOMMODATION,N47160,Third Party Payments          ,Private Contractors           ,EH01,Miscellaneous Agency Services           ,816,01/08/2015,Rev,M K ACCOMMODATION             
289,Housing Services,Bed / breakfast accommodation,TEMPORARY ACCOMMODATION,N47160,Third Party Payments          ,Private Contractors           ,EH01,Miscellaneous Agency Services           ,969,01/08/2015,Rev,M K ACCOMMODATION             
290,Cultural Env Reg&Plan Services,Library DoS not split,Libraries Service-Civic Centre,L50001,Premises Related Expenditure  ,RepairsAlterations&MtceOfBldgs,BA79,Security of Premises                    ,8106.77,01/08/2015,Rev,SIGHT & SOUND                 
291,Childrens & Education Services,Support for SEN Pupils,ART SEN Residential (DSG),K90050,Third Party Payments          ,Other Establishments          ,EG51,Ind Resid Schs Payments                 ,16400.27,01/08/2015,Rev,ST MARY'S WRESTWOOD CHILDRENS 
292,Adult Social Care,OP 65&Over NursingCarePlacemts,OP East - Nursing Care,W2LH53,Third Party Payments          ,Private Contractors           ,EH01,Miscellaneous Agency Services           ,587.65,01/08/2015,Rev,SUTTON COURT CARE CENTRE      
293,Adult Social Care,OP 65&Over NursingCarePlacemts,OP East - Nursing Care,W2LH53,Third Party Payments          ,Private Contractors           ,EH01,Miscellaneous Agency Services           ,587.65,01/08/2015,Rev,SUTTON COURT CARE CENTRE      
294,Adult Social Care,OP 65&Over NursingCarePlacemts,OP East - Nursing Care,W2LH53,Third Party Payments          ,Private Contractors           ,EH01,Miscellaneous Agency Services           ,587.65,01/08/2015,Rev,SUTTON COURT CARE CENTRE      
295,Adult Social Care,OP 65&Over NursingCarePlacemts,OP East - Nursing Care,W2LH53,Third Party Payments          ,Private Contractors           ,EH01,Miscellaneous Agency Services           ,587.65,01/08/2015,Rev,SUTTON COURT CARE CENTRE      
296,Adult Social Care,OP 65&Over NursingCarePlacemts,OP East - Nursing Care,W2LH53,Third Party Payments          ,Private Contractors           ,EH01,Miscellaneous Agency Services           ,587.65,01/08/2015,Rev,SUTTON COURT CARE CENTRE      
297,Adult Social Care,OP 65&Over NursingCarePlacemts,OP East - Nursing Care,W2LH53,Third Party Payments          ,Private Contractors           ,EH01,Miscellaneous Agency Services           ,587.65,01/08/2015,Rev,SUTTON COURT CARE CENTRE      
298,Adult Social Care,OP 65&Over NursingCarePlacemts,OP East - Nursing Care,W2LH53,Third Party Payments          ,Private Contractors           ,EH01,Miscellaneous Agency Services           ,587.65,01/08/2015,Rev,SUTTON COURT CARE CENTRE      
299,Adult Social Care,OP 65&Over NursingCarePlacemts,OP East - Nursing Care,W2LH53,Third Party Payments          ,Private Contractors           ,EH01,Miscellaneous Agency Services           ,587.65,01/08/2015,Rev,SUTTON COURT CARE CENTRE      
300,Adult Social Care,OP 65&Over NursingCarePlacemts,OP East - Nursing Care,W2LH53,Third Party Payments          ,Private Contractors           ,EH01,Miscellaneous Agency Services           ,587.65,01/08/2015,Rev,SUTTON COURT CARE CENTRE      
301,Adult Social Care,OP 65&Over NursingCarePlacemts,OP East - Nursing Care,W2LH53,Third Party Payments          ,Private Contractors           ,EH01,Miscellaneous Agency Services           ,587.65,01/08/2015,Rev,SUTTON COURT CARE CENTRE      
302,Adult Social Care,OP 65&Over NursingCarePlacemts,OP East - Nursing Care,W2LH53,Third Party Payments          ,Private Contractors           ,EH01,Miscellaneous Agency Services           ,587.65,01/08/2015,Rev,SUTTON COURT CARE CENTRE      
303,Childrens & Education Services,Fostering Services,ART Independent Agency Foster,W1DE46,Supplies & Services           ,Services                      ,DF53,Task Based Fostering                    ,672,01/08/2015,Rev,SYNERGY FOSTERING LTD         
304,Childrens & Education Services,Fostering Services,ART Independent Agency Foster,W1DE46,Supplies & Services           ,Services                      ,DF53,Task Based Fostering                    ,1176,01/08/2015,Rev,SYNERGY FOSTERING LTD         
305,Childrens & Education Services,Fostering Services,ART Independent Agency Foster,W1DE46,Supplies & Services           ,Services                      ,DF53,Task Based Fostering                    ,1176,01/08/2015,Rev,SYNERGY FOSTERING LTD         
306,Childrens & Education Services,Fostering Services,ART Independent Agency Foster,W1DE46,Supplies & Services           ,Services                      ,DF53,Task Based Fostering                    ,1176,01/08/2015,Rev,SYNERGY FOSTERING LTD         
307,Childrens & Education Services,Fostering Services,ART Independent Agency Foster,W1DE46,Supplies & Services           ,Services                      ,DF53,Task Based Fostering                    ,1176,01/08/2015,Rev,SYNERGY FOSTERING LTD         
308,,,Mitcham Town Centre                     ,CE104FP,New Construction Conversion and Renovation,,B5,Suppliers - Site works                  ,3492,03/08/2015,Cap,FLUX METAL                    
309,,,8 Wilton Road                           ,CC017AA,New Construction Conversion and Renovation,,B4,Contractor - Site works                 ,59960.76,04/08/2015,Cap,OAKLAND BUILDING SERVICES LTD 
310,Childrens & Education Services,Chidren's Homes,ART Residential Placements,W1DE57,Third Party Payments          ,Private Contractors           ,EH01,Miscellaneous Agency Services           ,-2525.7,04/08/2015,Rev,REDACTED
311,Childrens & Education Services,Chidren's Homes,ART Residential Placements,W1DE57,Third Party Payments          ,Private Contractors           ,EH01,Miscellaneous Agency Services           ,-2020.56,04/08/2015,Rev,REDACTED
312,Central Services,SupS Legal,Achieving for Children (AFC),E10295,Supplies & Services           ,Services                      ,DF11,Counsel's Fees                          ,930,04/08/2015,Rev,REDACTED
313,Central Services,SupS Legal,Sutton Legal                            ,E10293,Supplies & Services           ,Services                      ,DF11,Counsel's Fees                          ,2240,04/08/2015,Rev,REDACTED
314,Childrens & Education Services,Chidren's Homes,ART Residential Placements,W1DE57,Third Party Payments          ,Private Contractors           ,EH01,Miscellaneous Agency Services           ,2525.7,04/08/2015,Rev,REDACTED
315,Childrens & Education Services,Chidren's Homes,ART Residential Placements,W1DE57,Third Party Payments          ,Private Contractors           ,EH01,Miscellaneous Agency Services           ,3535.98,04/08/2015,Rev,REDACTED
316,Childrens & Education Services,Chidren's Homes,ART Residential Placements,W1DE57,Third Party Payments          ,Private Contractors           ,EH01,Miscellaneous Agency Services           ,3535.98,04/08/2015,Rev,REDACTED
317,Childrens & Education Services,Chidren's Homes,ART Residential Placements,W1DE57,Third Party Payments          ,Private Contractors           ,EH01,Miscellaneous Agency Services           ,3535.98,04/08/2015,Rev,REDACTED
318,Childrens & Education Services,Chidren's Homes,ART Residential Placements,W1DE57,Third Party Payments          ,Private Contractors           ,EH01,Miscellaneous Agency Services           ,3535.98,04/08/2015,Rev,REDACTED
319,Childrens & Education Services,Chidren's Homes,ART Residential Placements,W1DE57,Third Party Payments          ,Private Contractors           ,EH01,Miscellaneous Agency Services           ,3535.98,04/08/2015,Rev,REDACTED
320,Adult Social Care,OP 65 & Over Home Care,HC Meals-in-the-Home,W2LM02,Third Party Payments          ,Private Contractors           ,EH10,Contract Payments                       ,1194.64,04/08/2015,Rev,SODEXO HEALTHCARE SERVICES LT 
321,Childrens & Education Services,Family - Other Services,CS SWD Personal support                 ,W1CF49,Third Party Payments          ,Private Contractors           ,EH01,Miscellaneous Contrct Services          ,1512,05/08/2015,Rev,CARESTAFF SOLUTIONS           
322,,,Schs Cap Maint & Accessibility          ,CS080SD,New Construction Conversion and Renovation,,B6,Other Costs - Site works                ,565,05/08/2015,Cap,WESTFIELD GROUP UK LTD        
323,,,Parks Investment                        ,CE013SA,New Construction Conversion and Renovation,,B4,Contractor - Site works                 ,2208,06/08/2015,Cap,REDACTED
324,,,Big Lottery Play Areas                  ,CE044MA,New Construction Conversion and Renovation,,B4,Contractor - Site works                 ,2760,06/08/2015,Cap,REDACTED
325,,,B488 Landscape Dundonald Rec G          ,CE016CA,New Construction Conversion and Renovation,,B4,Contractor - Site works                 ,4250,06/08/2015,Cap,REDACTED
326,,,Play Space Pollards Hill                ,CE013EB,New Construction Conversion and Renovation,,B4,Contractor - Site works                 ,5000,06/08/2015,Cap,REDACTED
327,,,Wimbledon Park Crazy Golf               ,CE110CG,New Construction Conversion and Renovation,,B4,Contractor - Site works                 ,7320,06/08/2015,Cap,REDACTED
328,,,Parks Investment                        ,CE013SA,New Construction Conversion and Renovation,,B4,Contractor - Site works                 ,11578.2,06/08/2015,Cap,REDACTED
329,Adult Social Care,OP 65&Over Resi Care Placement,OP West - Residential Care Ext,W2LG55,Third Party Payments          ,Private Contractors           ,EH01,Miscellaneous Agency Services           ,540,09/08/2015,Rev,LIFE STYLE CARE (2011) PLC    
330,Adult Social Care,OP 65&Over Resi Care Placement,OP West - Residential Care Ext,W2LG55,Third Party Payments          ,Private Contractors           ,EH01,Miscellaneous Agency Services           ,540,09/08/2015,Rev,LIFE STYLE CARE (2011) PLC    
331,Adult Social Care,OP 65&Over Resi Care Placement,OP West - Residential Care Ext,W2LG55,Third Party Payments          ,Private Contractors           ,EH01,Miscellaneous Agency Services           ,540,09/08/2015,Rev,LIFE STYLE CARE (2011) PLC    
332,Adult Social Care,OP 65&Over Resi Care Placement,OP West - Residential Care Ext,W2LG55,Third Party Payments          ,Private Contractors           ,EH01,Miscellaneous Agency Services           ,540,09/08/2015,Rev,LIFE STYLE CARE (2011) PLC    
333,Adult Social Care,OP 65&Over Resi Care Placement,OP West - Residential Care Ext,W2LG55,Third Party Payments          ,Private Contractors           ,EH01,Miscellaneous Agency Services           ,540,09/08/2015,Rev,LIFE STYLE CARE (2011) PLC    
334,Adult Social Care,OP 65&Over Resi Care Placement,OP West - Residential Care Ext,W2LG55,Third Party Payments          ,Private Contractors           ,EH01,Miscellaneous Agency Services           ,540,09/08/2015,Rev,LIFE STYLE CARE (2011) PLC    
335,Adult Social Care,OP 65&Over Resi Care Placement,OP West - Residential Care Ext,W2LG55,Third Party Payments          ,Private Contractors           ,EH01,Miscellaneous Agency Services           ,540,09/08/2015,Rev,LIFE STYLE CARE (2011) PLC    
336,Adult Social Care,OP 65&Over Resi Care Placement,OP West - Residential Care Ext,W2LG55,Third Party Payments          ,Private Contractors           ,EH01,Miscellaneous Agency Services           ,540,09/08/2015,Rev,LIFE STYLE CARE (2011) PLC    
337,Adult Social Care,OP 65&Over Resi Care Placement,OP West - Residential Care Ext,W2LG55,Third Party Payments          ,Private Contractors           ,EH01,Miscellaneous Agency Services           ,540,09/08/2015,Rev,LIFE STYLE CARE (2011) PLC    
338,Adult Social Care,OP 65&Over Resi Care Placement,OP West - Residential Care Ext,W2LG55,Third Party Payments          ,Private Contractors           ,EH01,Miscellaneous Agency Services           ,540,09/08/2015,Rev,LIFE STYLE CARE (2011) PLC    
339,Adult Social Care,OP 65&Over Resi Care Placement,OP West - Residential Care Ext,W2LG55,Third Party Payments          ,Private Contractors           ,EH01,Miscellaneous Agency Services           ,540,09/08/2015,Rev,LIFE STYLE CARE (2011) PLC    
340,Adult Social Care,OP 65&Over Resi Care Placement,OP West - Residential Care Ext,W2LG55,Third Party Payments          ,Private Contractors           ,EH01,Miscellaneous Agency Services           ,540,09/08/2015,Rev,LIFE STYLE CARE (2011) PLC    
341,Adult Social Care,OP 65&Over Resi Care Placement,OP West - Residential Care Ext,W2LG55,Third Party Payments          ,Private Contractors           ,EH01,Miscellaneous Agency Services           ,540,09/08/2015,Rev,LIFE STYLE CARE (2011) PLC    
342,Adult Social Care,OP 65&Over Resi Care Placement,OP West - Residential Care Ext,W2LG55,Third Party Payments          ,Private Contractors           ,EH01,Miscellaneous Agency Services           ,540,09/08/2015,Rev,LIFE STYLE CARE (2011) PLC    
343,Adult Social Care,OP 65&Over Resi Care Placement,OP West - Residential Care Ext,W2LG55,Third Party Payments          ,Private Contractors           ,EH01,Miscellaneous Agency Services           ,540,09/08/2015,Rev,LIFE STYLE CARE (2011) PLC    
344,Adult Social Care,OP 65&Over Resi Care Placement,OP West - Residential Care Ext,W2LG55,Third Party Payments          ,Private Contractors           ,EH01,Miscellaneous Agency Services           ,540,09/08/2015,Rev,LIFE STYLE CARE (2011) PLC    
345,Adult Social Care,OP 65&Over Resi Care Placement,OP West - Residential Care Ext,W2LG55,Third Party Payments          ,Private Contractors           ,EH01,Miscellaneous Agency Services           ,540,09/08/2015,Rev,LIFE STYLE CARE (2011) PLC    
346,Adult Social Care,OP 65&Over Resi Care Placement,OP West - Residential Care Ext,W2LG55,Third Party Payments          ,Private Contractors           ,EH01,Miscellaneous Agency Services           ,540,09/08/2015,Rev,LIFE STYLE CARE (2011) PLC    
347,Adult Social Care,OP 65&Over Resi Care Placement,OP West - Residential Care Ext,W2LG55,Third Party Payments          ,Private Contractors           ,EH01,Miscellaneous Agency Services           ,540,09/08/2015,Rev,LIFE STYLE CARE (2011) PLC    
348,Adult Social Care,OP 65&Over Resi Care Placement,OP West - Residential Care Ext,W2LG55,Third Party Payments          ,Private Contractors           ,EH01,Miscellaneous Agency Services           ,540,09/08/2015,Rev,LIFE STYLE CARE (2011) PLC    
349,Adult Social Care,OP 65&Over Resi Care Placement,OP East - Residential Care Ext,W2LH55,Third Party Payments          ,Private Contractors           ,EH01,Miscellaneous Agency Services           ,540,09/08/2015,Rev,LIFE STYLE CARE (2011) PLC    
350,Adult Social Care,OP 65&Over Resi Care Placement,OP East - Residential Care Ext,W2LH55,Third Party Payments          ,Private Contractors           ,EH01,Miscellaneous Agency Services           ,540,09/08/2015,Rev,LIFE STYLE CARE (2011) PLC    
351,Adult Social Care,OP 65&Over Resi Care Placement,OP East - Residential Care Ext,W2LH55,Third Party Payments          ,Private Contractors           ,EH01,Miscellaneous Agency Services           ,540,09/08/2015,Rev,LIFE STYLE CARE (2011) PLC    
352,Adult Social Care,OP 65&Over Resi Care Placement,OP East - Residential Care Ext,W2LH55,Third Party Payments          ,Private Contractors           ,EH01,Miscellaneous Agency Services           ,540,09/08/2015,Rev,LIFE STYLE CARE (2011) PLC    
353,Adult Social Care,OP 65&Over Resi Care Placement,OP East - Residential Care Ext,W2LH55,Third Party Payments          ,Private Contractors           ,EH01,Miscellaneous Agency Services           ,540,09/08/2015,Rev,LIFE STYLE CARE (2011) PLC    
354,Adult Social Care,OP 65&Over Resi Care Placement,OP East - Residential Care Ext,W2LH55,Third Party Payments          ,Private Contractors           ,EH01,Miscellaneous Agency Services           ,540,09/08/2015,Rev,LIFE STYLE CARE (2011) PLC    
355,Adult Social Care,OP 65&Over Resi Care Placement,OP East - Residential Care Ext,W2LH55,Third Party Payments          ,Private Contractors           ,EH01,Miscellaneous Agency Services           ,540,09/08/2015,Rev,LIFE STYLE CARE (2011) PLC    
356,Adult Social Care,OP 65&Over Resi Care Placement,OP East - Residential Care Ext,W2LH55,Third Party Payments          ,Private Contractors           ,EH01,Miscellaneous Agency Services           ,540,09/08/2015,Rev,LIFE STYLE CARE (2011) PLC    
357,Adult Social Care,OP 65&Over Resi Care Placement,OP East - Residential Care Ext,W2LH55,Third Party Payments          ,Private Contractors           ,EH01,Miscellaneous Agency Services           ,540,09/08/2015,Rev,LIFE STYLE CARE (2011) PLC    
358,Adult Social Care,OP 65&Over Resi Care Placement,OP East - Residential Care Ext,W2LH55,Third Party Payments          ,Private Contractors           ,EH01,Miscellaneous Agency Services           ,540,09/08/2015,Rev,LIFE STYLE CARE (2011) PLC    
359,Adult Social Care,OP 65&Over Resi Care Placement,OP East - Residential Care Ext,W2LH55,Third Party Payments          ,Private Contractors           ,EH01,Miscellaneous Agency Services           ,540,09/08/2015,Rev,LIFE STYLE CARE (2011) PLC    
360,Adult Social Care,OP 65&Over Resi Care Placement,OP East - Residential Care Ext,W2LH55,Third Party Payments          ,Private Contractors           ,EH01,Miscellaneous Agency Services           ,540,09/08/2015,Rev,LIFE STYLE CARE (2011) PLC    
361,Adult Social Care,OP 65&Over Resi Care Placement,OP East - Residential Care Ext,W2LH55,Third Party Payments          ,Private Contractors           ,EH01,Miscellaneous Agency Services           ,540,09/08/2015,Rev,LIFE STYLE CARE (2011) PLC    
362,Adult Social Care,OP 65&Over Resi Care Placement,OP East - Residential Care Ext,W2LH55,Third Party Payments          ,Private Contractors           ,EH01,Miscellaneous Agency Services           ,540,09/08/2015,Rev,LIFE STYLE CARE (2011) PLC    
363,Adult Social Care,OP 65&Over Resi Care Placement,OP East - Residential Care Ext,W2LH55,Third Party Payments          ,Private Contractors           ,EH01,Miscellaneous Agency Services           ,540,09/08/2015,Rev,LIFE STYLE CARE (2011) PLC    
364,Adult Social Care,OP 65&Over Resi Care Placement,OP East - Residential Care Ext,W2LH55,Third Party Payments          ,Private Contractors           ,EH01,Miscellaneous Agency Services           ,540,09/08/2015,Rev,LIFE STYLE CARE (2011) PLC    
365,Adult Social Care,OP 65&Over Resi Care Placement,OP East - Residential Care Ext,W2LH55,Third Party Payments          ,Private Contractors           ,EH01,Miscellaneous Agency Services           ,540,09/08/2015,Rev,LIFE STYLE CARE (2011) PLC    
366,Adult Social Care,OP 65&Over Resi Care Placement,OP East - Residential Care Ext,W2LH55,Third Party Payments          ,Private Contractors           ,EH01,Miscellaneous Agency Services           ,540,09/08/2015,Rev,LIFE STYLE CARE (2011) PLC    
367,Adult Social Care,OP 65&Over Resi Care Placement,OP East - Residential Care Ext,W2LH55,Third Party Payments          ,Private Contractors           ,EH01,Miscellaneous Agency Services           ,540,09/08/2015,Rev,LIFE STYLE CARE (2011) PLC    
368,Adult Social Care,OP 65&Over Resi Care Placement,OP East - Residential Care Ext,W2LH55,Third Party Payments          ,Private Contractors           ,EH01,Miscellaneous Agency Services           ,540,09/08/2015,Rev,LIFE STYLE CARE (2011) PLC    
369,Adult Social Care,OP 65&Over Resi Care Placement,OP East - Residential Care Ext,W2LH55,Third Party Payments          ,Private Contractors           ,EH01,Miscellaneous Agency Services           ,540,09/08/2015,Rev,LIFE STYLE CARE (2011) PLC    
370,Adult Social Care,OP 65&Over Resi Care Placement,OP East - Residential Care Ext,W2LH55,Third Party Payments          ,Private Contractors           ,EH01,Miscellaneous Agency Services           ,540,09/08/2015,Rev,LIFE STYLE CARE (2011) PLC    
371,Adult Social Care,OP 65&Over Resi Care Placement,OP East - Residential Care Ext,W2LH55,Third Party Payments          ,Private Contractors           ,EH01,Miscellaneous Agency Services           ,540,09/08/2015,Rev,LIFE STYLE CARE (2011) PLC    
372,Adult Social Care,OP 65&Over Resi Care Placement,OP East - Residential Care Ext,W2LH55,Third Party Payments          ,Private Contractors           ,EH01,Miscellaneous Agency Services           ,540,09/08/2015,Rev,LIFE STYLE CARE (2011) PLC    
373,Adult Social Care,OP 65&Over Resi Care Placement,OP East - Residential Care Ext,W2LH55,Third Party Payments          ,Private Contractors           ,EH01,Miscellaneous Agency Services           ,540,09/08/2015,Rev,LIFE STYLE CARE (2011) PLC    
374,Adult Social Care,OP 65&Over Resi Care Placement,OP East - Residential Care Ext,W2LH55,Third Party Payments          ,Private Contractors           ,EH01,Miscellaneous Agency Services           ,540,09/08/2015,Rev,LIFE STYLE CARE (2011) PLC    
375,Adult Social Care,OP 65&Over Resi Care Placement,OP East - Residential Care Ext,W2LH55,Third Party Payments          ,Private Contractors           ,EH01,Miscellaneous Agency Services           ,540,09/08/2015,Rev,LIFE STYLE CARE (2011) PLC    
376,Adult Social Care,OP 65&Over Resi Care Placement,OP East - Residential Care Ext,W2LH55,Third Party Payments          ,Private Contractors           ,EH01,Miscellaneous Agency Services           ,540,09/08/2015,Rev,LIFE STYLE CARE (2011) PLC    
377,Adult Social Care,OP 65&Over Resi Care Placement,OP East - Residential Care Ext,W2LH55,Third Party Payments          ,Private Contractors           ,EH01,Miscellaneous Agency Services           ,540,09/08/2015,Rev,LIFE STYLE CARE (2011) PLC    
378,Adult Social Care,OP 65&Over Resi Care Placement,OP East - Residential Care Ext,W2LH55,Third Party Payments          ,Private Contractors           ,EH01,Miscellaneous Agency Services           ,540,09/08/2015,Rev,LIFE STYLE CARE (2011) PLC    
379,Adult Social Care,OP 65&Over Resi Care Placement,OP East - Residential Care Ext,W2LH55,Third Party Payments          ,Private Contractors           ,EH01,Miscellaneous Agency Services           ,540,09/08/2015,Rev,LIFE STYLE CARE (2011) PLC    
380,Adult Social Care,OP 65&Over Resi Care Placement,OP East - Residential Care Ext,W2LH55,Third Party Payments          ,Private Contractors           ,EH01,Miscellaneous Agency Services           ,540,09/08/2015,Rev,LIFE STYLE CARE (2011) PLC    
381,Adult Social Care,OP 65&Over Resi Care Placement,OP East - Residential Care Ext,W2LH55,Third Party Payments          ,Private Contractors           ,EH01,Miscellaneous Agency Services           ,540,09/08/2015,Rev,LIFE STYLE CARE (2011) PLC    
382,Adult Social Care,OP 65&Over Resi Care Placement,OP R/Park-Residential Care Ext,W2LR55,Third Party Payments          ,Private Contractors           ,EH01,Miscellaneous Agency Services           ,540,09/08/2015,Rev,LIFE STYLE CARE (2011) PLC    
383,Adult Social Care,OP 65&Over Resi Care Placement,OP R/Park-Residential Care Ext,W2LR55,Third Party Payments          ,Private Contractors           ,EH01,Miscellaneous Agency Services           ,540,09/08/2015,Rev,LIFE STYLE CARE (2011) PLC    
384,Adult Social Care,OP 65&Over Resi Care Placement,OP R/Park-Residential Care Ext,W2LR55,Third Party Payments          ,Private Contractors           ,EH01,Miscellaneous Agency Services           ,540,09/08/2015,Rev,LIFE STYLE CARE (2011) PLC    
385,Adult Social Care,OP 65&Over Resi Care Placement,OP R/Park-Residential Care Ext,W2LR55,Third Party Payments          ,Private Contractors           ,EH01,Miscellaneous Agency Services           ,540,09/08/2015,Rev,LIFE STYLE CARE (2011) PLC    
386,Adult Social Care,OP 65&Over Resi Care Placement,OP R/Park-Residential Care Ext,W2LR55,Third Party Payments          ,Private Contractors           ,EH01,Miscellaneous Agency Services           ,540,09/08/2015,Rev,LIFE STYLE CARE (2011) PLC    
387,Adult Social Care,OP 65&Over Resi Care Placement,OP R/Park-Residential Care Ext,W2LR55,Third Party Payments          ,Private Contractors           ,EH01,Miscellaneous Agency Services           ,540,09/08/2015,Rev,LIFE STYLE CARE (2011) PLC    
388,Adult Social Care,OP 65&Over Resi Care Placement,OP R/Park-Residential Care Ext,W2LR55,Third Party Payments          ,Private Contractors           ,EH01,Miscellaneous Agency Services           ,540,09/08/2015,Rev,LIFE STYLE CARE (2011) PLC    
389,Adult Social Care,OP 65&Over Resi Care Placement,OP R/Park-Residential Care Ext,W2LR55,Third Party Payments          ,Private Contractors           ,EH01,Miscellaneous Agency Services           ,540,09/08/2015,Rev,LIFE STYLE CARE (2011) PLC    
390,Adult Social Care,OP 65&Over Resi Care Placement,OP R/Park-Residential Care Ext,W2LR55,Third Party Payments          ,Private Contractors           ,EH01,Miscellaneous Agency Services           ,540,09/08/2015,Rev,LIFE STYLE CARE (2011) PLC    
391,Adult Social Care,OP 65&Over Resi Care Placement,OP R/Park-Residential Care Ext,W2LR55,Third Party Payments          ,Private Contractors           ,EH01,Miscellaneous Agency Services           ,540,09/08/2015,Rev,LIFE STYLE CARE (2011) PLC    
392,Adult Social Care,OP 65&Over Resi Care Placement,OP R/Park-Residential Care Ext,W2LR55,Third Party Payments          ,Private Contractors           ,EH01,Miscellaneous Agency Services           ,540,09/08/2015,Rev,LIFE STYLE CARE (2011) PLC    
393,Adult Social Care,OP 65&Over Resi Care Placement,OP R/Park-Residential Care Ext,W2LR55,Third Party Payments          ,Private Contractors           ,EH01,Miscellaneous Agency Services           ,540,09/08/2015,Rev,LIFE STYLE CARE (2011) PLC    
394,Adult Social Care,OP 65&Over Resi Care Placement,OP R/Park-Residential Care Ext,W2LR55,Third Party Payments          ,Private Contractors           ,EH01,Miscellaneous Agency Services           ,540,09/08/2015,Rev,LIFE STYLE CARE (2011) PLC    
395,Adult Social Care,OP 65&Over Resi Care Placement,OP R/Park-Residential Care Ext,W2LR55,Third Party Payments          ,Private Contractors           ,EH01,Miscellaneous Agency Services           ,540,09/08/2015,Rev,LIFE STYLE CARE (2011) PLC    
396,Adult Social Care,OP 65&Over Resi Care Placement,OP R/Park-Residential Care Ext,W2LR55,Third Party Payments          ,Private Contractors           ,EH01,Miscellaneous Agency Services           ,540,09/08/2015,Rev,LIFE STYLE CARE (2011) PLC    
397,Adult Social Care,OP 65&Over Resi Care Placement,OP R/Park-Residential Care Ext,W2LR55,Third Party Payments          ,Private Contractors           ,EH01,Miscellaneous Agency Services           ,540,09/08/2015,Rev,LIFE STYLE CARE (2011) PLC    
398,Adult Social Care,OP 65&Over NursingCarePlacemts,OP West - Nursing Care,W2LG53,Third Party Payments          ,Private Contractors           ,EH01,Miscellaneous Agency Services           ,670,09/08/2015,Rev,LIFE STYLE CARE (2011) PLC    
399,Adult Social Care,OP 65&Over NursingCarePlacemts,OP West - Nursing Care,W2LG53,Third Party Payments          ,Private Contractors           ,EH01,Miscellaneous Agency Services           ,670,09/08/2015,Rev,LIFE STYLE CARE (2011) PLC    
400,Adult Social Care,OP 65&Over NursingCarePlacemts,OP West - Nursing Care,W2LG53,Third Party Payments          ,Private Contractors           ,EH01,Miscellaneous Agency Services           ,670,09/08/2015,Rev,LIFE STYLE CARE (2011) PLC    
401,Adult Social Care,OP 65&Over NursingCarePlacemts,OP West - Nursing Care,W2LG53,Third Party Payments          ,Private Contractors           ,EH01,Miscellaneous Agency Services           ,670,09/08/2015,Rev,LIFE STYLE CARE (2011) PLC    
402,Adult Social Care,OP 65&Over NursingCarePlacemts,OP West - Nursing Care,W2LG53,Third Party Payments          ,Private Contractors           ,EH01,Miscellaneous Agency Services           ,670,09/08/2015,Rev,LIFE STYLE CARE (2011) PLC    
403,Adult Social Care,OP 65&Over NursingCarePlacemts,OP West - Nursing Care,W2LG53,Third Party Payments          ,Private Contractors           ,EH01,Miscellaneous Agency Services           ,670,09/08/2015,Rev,LIFE STYLE CARE (2011) PLC    
404,Adult Social Care,OP 65&Over NursingCarePlacemts,OP West - Nursing Care,W2LG53,Third Party Payments          ,Private Contractors           ,EH01,Miscellaneous Agency Services           ,670,09/08/2015,Rev,LIFE STYLE CARE (2011) PLC    
405,Adult Social Care,OP 65&Over NursingCarePlacemts,OP West - Nursing Care,W2LG53,Third Party Payments          ,Private Contractors           ,EH01,Miscellaneous Agency Services           ,670,09/08/2015,Rev,LIFE STYLE CARE (2011) PLC    
406,Adult Social Care,OP 65&Over NursingCarePlacemts,OP West - Nursing Care,W2LG53,Third Party Payments          ,Private Contractors           ,EH01,Miscellaneous Agency Services           ,670,09/08/2015,Rev,LIFE STYLE CARE (2011) PLC    
407,Adult Social Care,OP 65&Over NursingCarePlacemts,OP West - Nursing Care,W2LG53,Third Party Payments          ,Private Contractors           ,EH01,Miscellaneous Agency Services           ,670,09/08/2015,Rev,LIFE STYLE CARE (2011) PLC    
408,Adult Social Care,OP 65&Over NursingCarePlacemts,OP West - Nursing Care,W2LG53,Third Party Payments          ,Private Contractors           ,EH01,Miscellaneous Agency Services           ,670,09/08/2015,Rev,LIFE STYLE CARE (2011) PLC    
409,Adult Social Care,OP 65&Over NursingCarePlacemts,OP West - Nursing Care,W2LG53,Third Party Payments          ,Private Contractors           ,EH01,Miscellaneous Agency Services           ,670,09/08/2015,Rev,LIFE STYLE CARE (2011) PLC    
410,Adult Social Care,OP 65&Over NursingCarePlacemts,OP West - Nursing Care,W2LG53,Third Party Payments          ,Private Contractors           ,EH01,Miscellaneous Agency Services           ,670,09/08/2015,Rev,LIFE STYLE CARE (2011) PLC    
411,Adult Social Care,OP 65&Over NursingCarePlacemts,OP West - Nursing Care,W2LG53,Third Party Payments          ,Private Contractors           ,EH01,Miscellaneous Agency Services           ,670,09/08/2015,Rev,LIFE STYLE CARE (2011) PLC    
412,Adult Social Care,OP 65&Over NursingCarePlacemts,OP West - Nursing Care,W2LG53,Third Party Payments          ,Private Contractors           ,EH01,Miscellaneous Agency Services           ,670,09/08/2015,Rev,LIFE STYLE CARE (2011) PLC    
413,Adult Social Care,OP 65&Over NursingCarePlacemts,OP West - Nursing Care,W2LG53,Third Party Payments          ,Private Contractors           ,EH01,Miscellaneous Agency Services           ,670,09/08/2015,Rev,LIFE STYLE CARE (2011) PLC    
414,Adult Social Care,OP 65&Over NursingCarePlacemts,OP West - Nursing Care,W2LG53,Third Party Payments          ,Private Contractors           ,EH01,Miscellaneous Agency Services           ,670,09/08/2015,Rev,LIFE STYLE CARE (2011) PLC    
415,Adult Social Care,OP 65&Over NursingCarePlacemts,OP West - Nursing Care,W2LG53,Third Party Payments          ,Private Contractors           ,EH01,Miscellaneous Agency Services           ,670,09/08/2015,Rev,LIFE STYLE CARE (2011) PLC    
416,Adult Social Care,OP 65&Over NursingCarePlacemts,OP West - Nursing Care,W2LG53,Third Party Payments          ,Private Contractors           ,EH01,Miscellaneous Agency Services           ,670,09/08/2015,Rev,LIFE STYLE CARE (2011) PLC    
417,Adult Social Care,OP 65&Over NursingCarePlacemts,OP West - Nursing Care,W2LG53,Third Party Payments          ,Private Contractors           ,EH01,Miscellaneous Agency Services           ,670,09/08/2015,Rev,LIFE STYLE CARE (2011) PLC    
418,Adult Social Care,OP 65&Over NursingCarePlacemts,OP West - Nursing Care,W2LG53,Third Party Payments          ,Private Contractors           ,EH01,Miscellaneous Agency Services           ,670,09/08/2015,Rev,LIFE STYLE CARE (2011) PLC    
419,Adult Social Care,OP 65&Over NursingCarePlacemts,OP West - Nursing Care,W2LG53,Third Party Payments          ,Private Contractors           ,EH01,Miscellaneous Agency Services           ,670,09/08/2015,Rev,LIFE STYLE CARE (2011) PLC    
420,Adult Social Care,OP 65&Over NursingCarePlacemts,OP West - Nursing Care,W2LG53,Third Party Payments          ,Private Contractors           ,EH01,Miscellaneous Agency Services           ,670,09/08/2015,Rev,LIFE STYLE CARE (2011) PLC    
421,Adult Social Care,OP 65&Over NursingCarePlacemts,OP West - Nursing Care,W2LG53,Third Party Payments          ,Private Contractors           ,EH01,Miscellaneous Agency Services           ,670,09/08/2015,Rev,LIFE STYLE CARE (2011) PLC    
422,Adult Social Care,OP 65&Over NursingCarePlacemts,OP West - Nursing Care,W2LG53,Third Party Payments          ,Private Contractors           ,EH01,Miscellaneous Agency Services           ,670,09/08/2015,Rev,LIFE STYLE CARE (2011) PLC    
423,Adult Social Care,OP 65&Over NursingCarePlacemts,OP West - Nursing Care,W2LG53,Third Party Payments          ,Private Contractors           ,EH01,Miscellaneous Agency Services           ,670,09/08/2015,Rev,LIFE STYLE CARE (2011) PLC    
424,Adult Social Care,OP 65&Over NursingCarePlacemts,OP West - Nursing Care,W2LG53,Third Party Payments          ,Private Contractors           ,EH01,Miscellaneous Agency Services           ,670,09/08/2015,Rev,LIFE STYLE CARE (2011) PLC    
425,Adult Social Care,OP 65&Over NursingCarePlacemts,OP West - Nursing Care,W2LG53,Third Party Payments          ,Private Contractors           ,EH01,Miscellaneous Agency Services           ,670,09/08/2015,Rev,LIFE STYLE CARE (2011) PLC    
426,Adult Social Care,OP 65&Over NursingCarePlacemts,OP East - Nursing Care,W2LH53,Third Party Payments          ,Private Contractors           ,EH01,Miscellaneous Agency Services           ,670,09/08/2015,Rev,LIFE STYLE CARE (2011) PLC    
427,Adult Social Care,OP 65&Over NursingCarePlacemts,OP East - Nursing Care,W2LH53,Third Party Payments          ,Private Contractors           ,EH01,Miscellaneous Agency Services           ,670,09/08/2015,Rev,LIFE STYLE CARE (2011) PLC    
428,Adult Social Care,OP 65&Over NursingCarePlacemts,OP East - Nursing Care,W2LH53,Third Party Payments          ,Private Contractors           ,EH01,Miscellaneous Agency Services           ,670,09/08/2015,Rev,LIFE STYLE CARE (2011) PLC    
429,Adult Social Care,OP 65&Over NursingCarePlacemts,OP East - Nursing Care,W2LH53,Third Party Payments          ,Private Contractors           ,EH01,Miscellaneous Agency Services           ,670,09/08/2015,Rev,LIFE STYLE CARE (2011) PLC    
430,Adult Social Care,OP 65&Over NursingCarePlacemts,OP East - Nursing Care,W2LH53,Third Party Payments          ,Private Contractors           ,EH01,Miscellaneous Agency Services           ,670,09/08/2015,Rev,LIFE STYLE CARE (2011) PLC    
431,Adult Social Care,OP 65&Over NursingCarePlacemts,OP East - Nursing Care,W2LH53,Third Party Payments          ,Private Contractors           ,EH01,Miscellaneous Agency Services           ,670,09/08/2015,Rev,LIFE STYLE CARE (2011) PLC    
432,Adult Social Care,OP 65&Over NursingCarePlacemts,OP East - Nursing Care,W2LH53,Third Party Payments          ,Private Contractors           ,EH01,Miscellaneous Agency Services           ,670,09/08/2015,Rev,LIFE STYLE CARE (2011) PLC    
433,Adult Social Care,OP 65&Over NursingCarePlacemts,OP East - Nursing Care,W2LH53,Third Party Payments          ,Private Contractors           ,EH01,Miscellaneous Agency Services           ,670,09/08/2015,Rev,LIFE STYLE CARE (2011) PLC    
434,Adult Social Care,OP 65&Over NursingCarePlacemts,OP East - Nursing Care,W2LH53,Third Party Payments          ,Private Contractors           ,EH01,Miscellaneous Agency Services           ,670,09/08/2015,Rev,LIFE STYLE CARE (2011) PLC    
435,Adult Social Care,OP 65&Over NursingCarePlacemts,OP East - Nursing Care,W2LH53,Third Party Payments          ,Private Contractors           ,EH01,Miscellaneous Agency Services           ,670,09/08/2015,Rev,LIFE STYLE CARE (2011) PLC    
436,Adult Social Care,OP 65&Over NursingCarePlacemts,OP East - Nursing Care,W2LH53,Third Party Payments          ,Private Contractors           ,EH01,Miscellaneous Agency Services           ,670,09/08/2015,Rev,LIFE STYLE CARE (2011) PLC    
437,Adult Social Care,OP 65&Over NursingCarePlacemts,OP East - Nursing Care,W2LH53,Third Party Payments          ,Private Contractors           ,EH01,Miscellaneous Agency Services           ,670,09/08/2015,Rev,LIFE STYLE CARE (2011) PLC    
438,Adult Social Care,OP 65&Over NursingCarePlacemts,OP East - Nursing Care,W2LH53,Third Party Payments          ,Private Contractors           ,EH01,Miscellaneous Agency Services           ,670,09/08/2015,Rev,LIFE STYLE CARE (2011) PLC    
439,Adult Social Care,OP 65&Over NursingCarePlacemts,OP East - Nursing Care,W2LH53,Third Party Payments          ,Private Contractors           ,EH01,Miscellaneous Agency Services           ,670,09/08/2015,Rev,LIFE STYLE CARE (2011) PLC    
440,Adult Social Care,OP 65&Over NursingCarePlacemts,OP East - Nursing Care,W2LH53,Third Party Payments          ,Private Contractors           ,EH01,Miscellaneous Agency Services           ,670,09/08/2015,Rev,LIFE STYLE CARE (2011) PLC    
441,Adult Social Care,OP 65&Over NursingCarePlacemts,OP East - Nursing Care,W2LH53,Third Party Payments          ,Private Contractors           ,EH01,Miscellaneous Agency Services           ,670,09/08/2015,Rev,LIFE STYLE CARE (2011) PLC    
442,Adult Social Care,OP 65&Over NursingCarePlacemts,OP East - Nursing Care,W2LH53,Third Party Payments          ,Private Contractors           ,EH01,Miscellaneous Agency Services           ,670,09/08/2015,Rev,LIFE STYLE CARE (2011) PLC    
443,Adult Social Care,OP 65&Over NursingCarePlacemts,OP East - Nursing Care,W2LH53,Third Party Payments          ,Private Contractors           ,EH01,Miscellaneous Agency Services           ,670,09/08/2015,Rev,LIFE STYLE CARE (2011) PLC    
444,Adult Social Care,OP 65&Over NursingCarePlacemts,OP East - Nursing Care,W2LH53,Third Party Payments          ,Private Contractors           ,EH01,Miscellaneous Agency Services           ,670,09/08/2015,Rev,LIFE STYLE CARE (2011) PLC    
445,Adult Social Care,OP 65&Over NursingCarePlacemts,OP East - Nursing Care,W2LH53,Third Party Payments          ,Private Contractors           ,EH01,Miscellaneous Agency Services           ,670,09/08/2015,Rev,LIFE STYLE CARE (2011) PLC    
446,Adult Social Care,OP 65&Over NursingCarePlacemts,OP East - Nursing Care,W2LH53,Third Party Payments          ,Private Contractors           ,EH01,Miscellaneous Agency Services           ,670,09/08/2015,Rev,LIFE STYLE CARE (2011) PLC    
447,Adult Social Care,OP 65&Over NursingCarePlacemts,OP East - Nursing Care,W2LH53,Third Party Payments          ,Private Contractors           ,EH01,Miscellaneous Agency Services           ,670,09/08/2015,Rev,LIFE STYLE CARE (2011) PLC    
448,Adult Social Care,OP 65&Over NursingCarePlacemts,OP East - Nursing Care,W2LH53,Third Party Payments          ,Private Contractors           ,EH01,Miscellaneous Agency Services           ,670,09/08/2015,Rev,LIFE STYLE CARE (2011) PLC    
449,Adult Social Care,OP 65&Over NursingCarePlacemts,OP East - Nursing Care,W2LH53,Third Party Payments          ,Private Contractors           ,EH01,Miscellaneous Agency Services           ,670,09/08/2015,Rev,LIFE STYLE CARE (2011) PLC    
450,Adult Social Care,OP 65&Over NursingCarePlacemts,OP East - Nursing Care,W2LH53,Third Party Payments          ,Private Contractors           ,EH01,Miscellaneous Agency Services           ,670,09/08/2015,Rev,LIFE STYLE CARE (2011) PLC    
451,Adult Social Care,OP 65&Over NursingCarePlacemts,OP East - Nursing Care,W2LH53,Third Party Payments          ,Private Contractors           ,EH01,Miscellaneous Agency Services           ,670,09/08/2015,Rev,LIFE STYLE CARE (2011) PLC    
452,Adult Social Care,OP 65&Over NursingCarePlacemts,OP East - Nursing Care,W2LH53,Third Party Payments          ,Private Contractors           ,EH01,Miscellaneous Agency Services           ,670,09/08/2015,Rev,LIFE STYLE CARE (2011) PLC    
453,Adult Social Care,OP 65&Over NursingCarePlacemts,OP East - Nursing Care,W2LH53,Third Party Payments          ,Private Contractors           ,EH01,Miscellaneous Agency Services           ,670,09/08/2015,Rev,LIFE STYLE CARE (2011) PLC    
454,Adult Social Care,OP 65&Over NursingCarePlacemts,OP East - Nursing Care,W2LH53,Third Party Payments          ,Private Contractors           ,EH01,Miscellaneous Agency Services           ,670,09/08/2015,Rev,LIFE STYLE CARE (2011) PLC    
455,Adult Social Care,OP 65&Over NursingCarePlacemts,OP East - Nursing Care,W2LH53,Third Party Payments          ,Private Contractors           ,EH01,Miscellaneous Agency Services           ,670,09/08/2015,Rev,LIFE STYLE CARE (2011) PLC    
456,Adult Social Care,OP 65&Over NursingCarePlacemts,OP East - Nursing Care,W2LH53,Third Party Payments          ,Private Contractors           ,EH01,Miscellaneous Agency Services           ,670,09/08/2015,Rev,LIFE STYLE CARE (2011) PLC    
457,Adult Social Care,OP 65&Over NursingCarePlacemts,OP East - Nursing Care,W2LH53,Third Party Payments          ,Private Contractors           ,EH01,Miscellaneous Agency Services           ,670,09/08/2015,Rev,LIFE STYLE CARE (2011) PLC    
458,Adult Social Care,OP 65&Over NursingCarePlacemts,OP East - Nursing Care,W2LH53,Third Party Payments          ,Private Contractors           ,EH01,Miscellaneous Agency Services           ,670,09/08/2015,Rev,LIFE STYLE CARE (2011) PLC    
459,Adult Social Care,OP 65&Over NursingCarePlacemts,OP East - Nursing Care,W2LH53,Third Party Payments          ,Private Contractors           ,EH01,Miscellaneous Agency Services           ,670,09/08/2015,Rev,LIFE STYLE CARE (2011) PLC    
460,Adult Social Care,OP 65&Over NursingCarePlacemts,OP East - Nursing Care,W2LH53,Third Party Payments          ,Private Contractors           ,EH01,Miscellaneous Agency Services           ,670,09/08/2015,Rev,LIFE STYLE CARE (2011) PLC    
461,Adult Social Care,OP 65&Over NursingCarePlacemts,OP East - Nursing Care,W2LH53,Third Party Payments          ,Private Contractors           ,EH01,Miscellaneous Agency Services           ,670,09/08/2015,Rev,LIFE STYLE CARE (2011) PLC    
462,Adult Social Care,OP 65&Over NursingCarePlacemts,OP R/Park - Nursing Care,W2LR53,Third Party Payments          ,Private Contractors           ,EH01,Miscellaneous Agency Services           ,670,09/08/2015,Rev,LIFE STYLE CARE (2011) PLC    
463,Adult Social Care,OP 65&Over NursingCarePlacemts,OP R/Park - Nursing Care,W2LR53,Third Party Payments          ,Private Contractors           ,EH01,Miscellaneous Agency Services           ,670,09/08/2015,Rev,LIFE STYLE CARE (2011) PLC    
464,Adult Social Care,OP 65&Over NursingCarePlacemts,OP R/Park - Nursing Care,W2LR53,Third Party Payments          ,Private Contractors           ,EH01,Miscellaneous Agency Services           ,670,09/08/2015,Rev,LIFE STYLE CARE (2011) PLC    
465,Adult Social Care,OP 65&Over NursingCarePlacemts,OP R/Park - Nursing Care,W2LR53,Third Party Payments          ,Private Contractors           ,EH01,Miscellaneous Agency Services           ,670,09/08/2015,Rev,LIFE STYLE CARE (2011) PLC    
466,Adult Social Care,OP 65&Over NursingCarePlacemts,OP R/Park - Nursing Care,W2LR53,Third Party Payments          ,Private Contractors           ,EH01,Miscellaneous Agency Services           ,670,09/08/2015,Rev,LIFE STYLE CARE (2011) PLC    
467,Adult Social Care,OP 65&Over NursingCarePlacemts,OP R/Park - Nursing Care,W2LR53,Third Party Payments          ,Private Contractors           ,EH01,Miscellaneous Agency Services           ,670,09/08/2015,Rev,LIFE STYLE CARE (2011) PLC    
468,Adult Social Care,OP 65&Over NursingCarePlacemts,OP R/Park - Nursing Care,W2LR53,Third Party Payments          ,Private Contractors           ,EH01,Miscellaneous Agency Services           ,670,09/08/2015,Rev,LIFE STYLE CARE (2011) PLC    
469,Adult Social Care,OP 65&Over NursingCarePlacemts,OP R/Park - Nursing Care,W2LR53,Third Party Payments          ,Private Contractors           ,EH01,Miscellaneous Agency Services           ,670,09/08/2015,Rev,LIFE STYLE CARE (2011) PLC    
470,Adult Social Care,OP 65&Over NursingCarePlacemts,OP R/Park - Nursing Care,W2LR53,Third Party Payments          ,Private Contractors           ,EH01,Miscellaneous Agency Services           ,670,09/08/2015,Rev,LIFE STYLE CARE (2011) PLC    
471,Adult Social Care,OP 65&Over NursingCarePlacemts,OP R/Park - Nursing Care,W2LR53,Third Party Payments          ,Private Contractors           ,EH01,Miscellaneous Agency Services           ,670,09/08/2015,Rev,LIFE STYLE CARE (2011) PLC    
472,Childrens & Education Services,Fostering Services,ART Independent Agency Foster,W1DE46,Supplies & Services           ,Services                      ,DF53,Task Based Fostering                    ,748.37,09/08/2015,Rev,THE NATIONAL FOSTERING AGENCY 
473,Childrens & Education Services,Fostering Services,ART Independent Agency Foster,W1DE46,Supplies & Services           ,Services                      ,DF53,Task Based Fostering                    ,748.37,09/08/2015,Rev,THE NATIONAL FOSTERING AGENCY 
474,Childrens & Education Services,Fostering Services,ART Independent Agency Foster,W1DE46,Supplies & Services           ,Services                      ,DF53,Task Based Fostering                    ,748.37,09/08/2015,Rev,THE NATIONAL FOSTERING AGENCY 
475,Childrens & Education Services,Fostering Services,ART Independent Agency Foster,W1DE46,Supplies & Services           ,Services                      ,DF53,Task Based Fostering                    ,748.37,09/08/2015,Rev,THE NATIONAL FOSTERING AGENCY 
476,Childrens & Education Services,Fostering Services,ART Independent Agency Foster,W1DE46,Supplies & Services           ,Services                      ,DF53,Task Based Fostering                    ,780,09/08/2015,Rev,THE NATIONAL FOSTERING AGENCY 
477,Childrens & Education Services,Fostering Services,ART Independent Agency Foster,W1DE46,Supplies & Services           ,Services                      ,DF53,Task Based Fostering                    ,780,09/08/2015,Rev,THE NATIONAL FOSTERING AGENCY 
478,Childrens & Education Services,Fostering Services,ART Independent Agency Foster,W1DE46,Supplies & Services           ,Services                      ,DF53,Task Based Fostering                    ,780,09/08/2015,Rev,THE NATIONAL FOSTERING AGENCY 
479,Childrens & Education Services,Fostering Services,ART Independent Agency Foster,W1DE46,Supplies & Services           ,Services                      ,DF53,Task Based Fostering                    ,780.01,09/08/2015,Rev,THE NATIONAL FOSTERING AGENCY 
480,Childrens & Education Services,Fostering Services,ART Independent Agency Foster,W1DE46,Supplies & Services           ,Services                      ,DF53,Task Based Fostering                    ,780.01,09/08/2015,Rev,THE NATIONAL FOSTERING AGENCY 
481,Childrens & Education Services,Fostering Services,ART Independent Agency Foster,W1DE46,Supplies & Services           ,Services                      ,DF53,Task Based Fostering                    ,780.01,09/08/2015,Rev,THE NATIONAL FOSTERING AGENCY 
482,Childrens & Education Services,Fostering Services,ART Independent Agency Foster,W1DE46,Supplies & Services           ,Services                      ,DF53,Task Based Fostering                    ,780.01,09/08/2015,Rev,THE NATIONAL FOSTERING AGENCY 
483,Childrens & Education Services,Fostering Services,ART Independent Agency Foster,W1DE46,Supplies & Services           ,Services                      ,DF53,Task Based Fostering                    ,806.61,09/08/2015,Rev,THE NATIONAL FOSTERING AGENCY 
484,Childrens & Education Services,Fostering Services,ART Independent Agency Foster,W1DE46,Supplies & Services           ,Services                      ,DF53,Task Based Fostering                    ,806.61,09/08/2015,Rev,THE NATIONAL FOSTERING AGENCY 
485,Childrens & Education Services,Fostering Services,ART Independent Agency Foster,W1DE46,Supplies & Services           ,Services                      ,DF53,Task Based Fostering                    ,806.61,09/08/2015,Rev,THE NATIONAL FOSTERING AGENCY 
486,Childrens & Education Services,Fostering Services,ART Independent Agency Foster,W1DE46,Supplies & Services           ,Services                      ,DF53,Task Based Fostering                    ,806.61,09/08/2015,Rev,THE NATIONAL FOSTERING AGENCY 
487,Adult Social Care,OP 65&Over NursingCarePlacemts,OP West - Nursing Care,W2LG53,Third Party Payments          ,Private Contractors           ,EH01,Miscellaneous Agency Services           ,574.29,10/08/2015,Rev,LIFE STYLE CARE (2011) PLC    
488,Adult Social Care,OP 65&Over NursingCarePlacemts,OP West - Nursing Care,W2LG53,Third Party Payments          ,Private Contractors           ,EH01,Miscellaneous Agency Services           ,670,10/08/2015,Rev,LIFE STYLE CARE (2011) PLC    
489,Adult Social Care,OP 65&Over NursingCarePlacemts,OP West - Nursing Care,W2LG53,Third Party Payments          ,Private Contractors           ,EH01,Miscellaneous Agency Services           ,670,10/08/2015,Rev,LIFE STYLE CARE (2011) PLC    
490,Adult Social Care,OP 65&Over NursingCarePlacemts,OP West - Nursing Care,W2LG53,Third Party Payments          ,Private Contractors           ,EH01,Miscellaneous Agency Services           ,728.57,10/08/2015,Rev,LIFE STYLE CARE (2011) PLC    
491,Adult Social Care,OP 65&Over NursingCarePlacemts,OP West - Nursing Care,W2LG53,Third Party Payments          ,Private Contractors           ,EH01,Miscellaneous Agency Services           ,850,10/08/2015,Rev,LIFE STYLE CARE (2011) PLC    
492,Adult Social Care,OP 65&Over NursingCarePlacemts,OP West - Nursing Care,W2LG53,Third Party Payments          ,Private Contractors           ,EH01,Miscellaneous Agency Services           ,850,10/08/2015,Rev,LIFE STYLE CARE (2011) PLC    
493,Adult Social Care,OP 65&Over NursingCarePlacemts,OP West - Nursing Care,W2LG53,Third Party Payments          ,Private Contractors           ,EH01,Miscellaneous Agency Services           ,850,10/08/2015,Rev,LIFE STYLE CARE (2011) PLC    
494,Childrens & Education Services,Support for SEN Pupils,ART SEN Residential (DSG),K90050,Third Party Payments          ,Other Establishments          ,EG51,Ind Resid Schs Payments                 ,38182.67,10/08/2015,Rev,PRIORS COURT FOUNDATION       
495,Central Services,SupS Strategic Finance,Treasury & Insurance,E06222,Employees                     ,Direct Employee Expenses      ,AA17,Agency Staff & Casual Paymts            ,2350,10/08/2015,Rev,REDACTED
496,Childrens & Education Services,Support for SEN Pupils,Non-Delegated Statements,K90024,Supplies & Services           ,Services                      ,DF09,Miscellaneous Fees                      ,990,11/08/2015,Rev,BISHOPS THOMAS GRANT SCHOOL   
497,Childrens & Education Services,Family - Other Services,CS SWD Personal support                 ,W1CF49,Third Party Payments          ,Private Contractors           ,EH01,Miscellaneous Contrct Services          ,1512,11/08/2015,Rev,CARESTAFF SOLUTIONS           
498,Childrens & Education Services,Other Ch' Looked After Serv.,ART Mother and Baby Unit,W1DE63,Third Party Payments          ,Private Contractors           ,EH01,Miscellaneous Agency Services           ,-872,11/08/2015,Rev,REDACTED
499,Childrens & Education Services,Other Ch' Looked After Serv.,ART Mother and Baby Unit,W1DE63,Third Party Payments          ,Private Contractors           ,EH01,Miscellaneous Agency Services           ,-500,11/08/2015,Rev,REDACTED
500,Childrens & Education Services,Other Ch' Looked After Serv.,ART Mother and Baby Unit,W1DE63,Third Party Payments          ,Private Contractors           ,EH01,Miscellaneous Agency Services           ,1500,11/08/2015,Rev,REDACTED
501,Childrens & Education Services,Other Ch' Looked After Serv.,ART Mother and Baby Unit,W1DE63,Third Party Payments          ,Private Contractors           ,EH01,Miscellaneous Agency Services           ,1750,11/08/2015,Rev,REDACTED
502,Childrens & Education Services,Other Ch' Looked After Serv.,ART Mother and Baby Unit,W1DE63,Third Party Payments          ,Private Contractors           ,EH01,Miscellaneous Agency Services           ,2616,11/08/2015,Rev,REDACTED
503,Childrens & Education Services,Other Ch' Looked After Serv.,ART Mother and Baby Unit,W1DE63,Third Party Payments          ,Private Contractors           ,EH01,Miscellaneous Agency Services           ,3052,11/08/2015,Rev,REDACTED
504,Adult Social Care,PS u65 Residentl Care Placemnt,PD EAST TEAM-Residential,W2JJ55,Third Party Payments          ,Private Contractors           ,EH01,Miscellaneous Agency Services           ,1559.95,12/08/2015,Rev,BRAMBLEDOWN CARE HOME         
505,Adult Social Care,PS u65 Residentl Care Placemnt,PD EAST TEAM-Residential,W2JJ55,Third Party Payments          ,Private Contractors           ,EH01,Miscellaneous Agency Services           ,1559.95,12/08/2015,Rev,BRAMBLEDOWN CARE HOME         
506,Adult Social Care,PS u65 Residentl Care Placemnt,PD EAST TEAM-Residential,W2JJ55,Third Party Payments          ,Private Contractors           ,EH01,Miscellaneous Agency Services           ,1559.95,12/08/2015,Rev,BRAMBLEDOWN CARE HOME         
507,Adult Social Care,PS u65 Residentl Care Placemnt,PD EAST TEAM-Residential,W2JJ55,Third Party Payments          ,Private Contractors           ,EH01,Miscellaneous Agency Services           ,1559.95,12/08/2015,Rev,BRAMBLEDOWN CARE HOME         
508,,,Cranmer expansion                       ,CS010AA,New Construction Conversion and Renovation,,B1,Consultants Fees D&S Structure          ,3844.85,13/08/2015,Cap,ATKINS LIMITED                
509,Adult Social Care,OP 65&OverAssessment&Care Mgt,OP Ass&Care Mgt,W2LA01,Employees                     ,Direct Employee Expenses      ,AA51,Emergency Social Workers (AP)           ,25835.83,14/08/2015,Rev,L.B.RICHMOND UPON THAMES      
510,Childrens & Education Services,Fostering Services,ART Independent Agency Foster,W1DE46,Supplies & Services           ,Services                      ,DF53,Task Based Fostering                    ,658.26,14/08/2015,Rev,MOMENTS FOSTERING             
511,Childrens & Education Services,Fostering Services,ART Independent Agency Foster,W1DE46,Supplies & Services           ,Services                      ,DF53,Task Based Fostering                    ,767.97,14/08/2015,Rev,MOMENTS FOSTERING             
512,Childrens & Education Services,Fostering Services,ART Independent Agency Foster,W1DE46,Supplies & Services           ,Services                      ,DF53,Task Based Fostering                    ,767.97,14/08/2015,Rev,MOMENTS FOSTERING             
513,Childrens & Education Services,Fostering Services,ART Independent Agency Foster,W1DE46,Supplies & Services           ,Services                      ,DF53,Task Based Fostering                    ,767.97,14/08/2015,Rev,MOMENTS FOSTERING             
514,Childrens & Education Services,Fostering Services,ART Independent Agency Foster,W1DE46,Supplies & Services           ,Services                      ,DF53,Task Based Fostering                    ,767.97,14/08/2015,Rev,MOMENTS FOSTERING             
515,Childrens & Education Services,Support for SEN Pupils,ART SEN Residential (DSG),K90050,Third Party Payments          ,Other Establishments          ,EG51,Ind Resid Schs Payments                 ,82088,15/08/2015,Rev,CHELFHAM SCH KILWORTHY HSE PRY
516,Childrens & Education Services,Support for SEN Pupils,Non-Delegated Statements,K90024,Third Party Payments          ,Other Establishments          ,EG50,Ind Day Schs Payments                   ,16143.2,15/08/2015,Rev,UNSTED PARK                   
517,Public Health,PH - Sexual Health,PH � STI Testing and Treatment          ,WPHS02,Supplies & Services           ,Public Health Subjectives,DQ04,GUM                                     ,4793.3,17/08/2015,Rev,CENTRAL&NORTH WEST LONDON NHS 
518,Adult Social Care,LD u65 Residentl Care Placemnt,LD Residential Care External,W2KB55,Third Party Payments          ,Private Contractors           ,EH01,Miscellaneous Agency Services           ,-3415.04,17/08/2015,Rev,ST LUKE'S HOSPITAL- OLD LEIGH 
519,Adult Social Care,LD u65 Residentl Care Placemnt,LD Residential Care External,W2KB55,Third Party Payments          ,Private Contractors           ,EH01,Miscellaneous Agency Services           ,5122.56,17/08/2015,Rev,ST LUKE'S HOSPITAL- OLD LEIGH 
520,Adult Social Care,LD u65 Residentl Care Placemnt,LD Residential Care External,W2KB55,Third Party Payments          ,Private Contractors           ,EH01,Miscellaneous Agency Services           ,5976.32,17/08/2015,Rev,ST LUKE'S HOSPITAL- OLD LEIGH 
521,Adult Social Care,LD u65 Residentl Care Placemnt,LD Residential Care External,W2KB55,Third Party Payments          ,Private Contractors           ,EH01,Miscellaneous Agency Services           ,5976.32,17/08/2015,Rev,ST LUKE'S HOSPITAL- OLD LEIGH 
522,Adult Social Care,LD u65 Residentl Care Placemnt,LD Residential Care External,W2KB55,Third Party Payments          ,Private Contractors           ,EH01,Miscellaneous Agency Services           ,5976.32,17/08/2015,Rev,ST LUKE'S HOSPITAL- OLD LEIGH 
523,Adult Social Care,LD u65 Residentl Care Placemnt,LD Residential Care External,W2KB55,Third Party Payments          ,Private Contractors           ,EH01,Miscellaneous Agency Services           ,5976.32,17/08/2015,Rev,ST LUKE'S HOSPITAL- OLD LEIGH 
524,Childrens & Education Services,Family - Other Services,CS SWD Personal support                 ,W1CF49,Third Party Payments          ,Private Contractors           ,EH01,Miscellaneous Contrct Services          ,1512,18/08/2015,Rev,CARESTAFF SOLUTIONS           
525,Childrens & Education Services,Vocational - Adult Education,AE-Adult Education Main,K06049,Premises Related Expenditure  ,Energy Costs                  ,BB03,Gas (incl. Butane)                      ,557.67,18/08/2015,Rev,GAZPROM MARKETING&TRADING LTD 
526,Central Services,SupS Corporate Finance,TRANSACTIONS,E02139,Supplies & Services           ,Comms and Computing           ,DG50,Other IT Expenditure                    ,1200,18/08/2015,Rev,LONDON BOROUGH OF SUTTON      
527,Central Services,SupS Legal,Achieving for Children (AFC),E10295,Supplies & Services           ,Services                      ,DF11,Counsel's Fees                          ,1532.5,18/08/2015,Rev,REDACTED
528,Public Health,PH - Sexual Health,PH � STI Testing and Treatment          ,WPHS02,Supplies & Services           ,Public Health Subjectives,DQ04,GUM                                     ,8449,20/08/2015,Rev,GUY'S & ST THOMAS' NHS FND'TN 
529,Central Services,SupS Legal,Achieving for Children (AFC),E10295,Supplies & Services           ,Services                      ,DF11,Counsel's Fees                          ,637.5,21/08/2015,Rev,REDACTED
530,Childrens & Education Services,,ART Residential Secure accommo,W1DE58,Third Party Payments          ,Private Contractors           ,EH01,Miscellaneous Agency Services           ,595,21/08/2015,Rev,THE ARTEMIS TEAM LIMITED      
531,Childrens & Education Services,,ART Residential Secure accommo,W1DE58,Third Party Payments          ,Private Contractors           ,EH01,Miscellaneous Agency Services           ,595,21/08/2015,Rev,THE ARTEMIS TEAM LIMITED      
532,Childrens & Education Services,,ART Residential Secure accommo,W1DE58,Third Party Payments          ,Private Contractors           ,EH01,Miscellaneous Agency Services           ,595,21/08/2015,Rev,THE ARTEMIS TEAM LIMITED      
533,Childrens & Education Services,,ART Residential Secure accommo,W1DE58,Third Party Payments          ,Private Contractors           ,EH01,Miscellaneous Agency Services           ,595,21/08/2015,Rev,THE ARTEMIS TEAM LIMITED      
534,Childrens & Education Services,,ART Residential Secure accommo,W1DE58,Third Party Payments          ,Private Contractors           ,EH01,Miscellaneous Agency Services           ,595,21/08/2015,Rev,THE ARTEMIS TEAM LIMITED      
535,,,Schs Cap Maint & Accessibility          ,CS080SD,New Construction Conversion and Renovation,,B6,Other Costs - Site works                ,700,21/08/2015,Cap,WESTFIELD GROUP UK LTD        
536,Childrens & Education Services,Family - Other Services,CS SWD Personal support                 ,W1CF49,Third Party Payments          ,Private Contractors           ,EH01,Miscellaneous Contrct Services          ,4586.43,24/08/2015,Rev,CARE O LINE                   
537,Central Services,SupS Chief Execs,NON-STATUTORY MARKETING & COMM,A02019,Supplies & Services           ,Services                      ,DF02,Misc Advertising/Publicity              ,500,24/08/2015,Rev,CORNERSTONE VISION LTD        
538,Childrens & Education Services,Fostering Services,ART Independent Agency Foster,W1DE46,Supplies & Services           ,Services                      ,DF53,Task Based Fostering                    ,-1144.52,24/08/2015,Rev,HEATH FARM CHILDRENS SERVICES 
539,Childrens & Education Services,Fostering Services,ART Independent Agency Foster,W1DE46,Supplies & Services           ,Services                      ,DF53,Task Based Fostering                    ,1335.26,24/08/2015,Rev,HEATH FARM CHILDRENS SERVICES 
540,Childrens & Education Services,Fostering Services,ART Independent Agency Foster,W1DE46,Supplies & Services           ,Services                      ,DF53,Task Based Fostering                    ,1335.26,24/08/2015,Rev,HEATH FARM CHILDRENS SERVICES 
541,Childrens & Education Services,Adoption Services,CL Permanency,W1DC00,Supplies & Services           ,Grants and Subscriptions      ,DJ04,Subscriptions                           ,2782.42,24/08/2015,Rev,INTERCOUNTRY ADOPTION CENTRE  
542,Adult Social Care,PS u65 Other Services,PD EAST TEAM-Carers Break,W2JJ40,Third Party Payments          ,Private Contractors           ,EH10,Contract Payments                       ,26475.9,24/08/2015,Rev,SOUTH THAMES CROSSROADS       
543,Public Health,PH - Sexual Health,PH � STI Testing and Treatment          ,WPHS02,Supplies & Services           ,Public Health Subjectives,DQ04,GUM                                     ,766.31,24/08/2015,Rev,VIRGIN CARE SRV LTD NON SURREY
544,Public Health,PH - Sexual Health,PH � STI Testing and Treatment          ,WPHS02,Supplies & Services           ,Public Health Subjectives,DQ04,GUM                                     ,13485.8,26/08/2015,Rev,BARTS HEALTH NHS TRUST        
545,Childrens & Education Services,Support for SEN Pupils,ART SEN Residential (DSG),K90050,Third Party Payments          ,Other Establishments          ,EG51,Ind Resid Schs Payments                 ,62666.95,26/08/2015,Rev,CAMBIAN AUTISM SERVICES LTD   
546,CS -Oth Operating Inc & Expend,Extraordinary Items & PY Adj.,Housing Shops,J01533,Premises Related Expenditure  ,RepairsAlterations&MtceOfBldgs,BA05,DDM - ELECTRICAL                        ,511.12,26/08/2015,Rev,EUROPA NATIONWIDE TECH.SER.LTD
547,Central Services,SupS Facilities,Civic Centre,E02222,Premises Related Expenditure  ,RepairsAlterations&MtceOfBldgs,BA29,BUILD MAINT MGT FEES                    ,1288.14,26/08/2015,Rev,EUROVIA INFRASTRUCTURE LTD    
548,Central Services,SupS Facilities,Civic Centre,E02222,Supplies & Services           ,Equip Furniture/Materials     ,DA09,Equip-Purchases                         ,2465.75,26/08/2015,Rev,REDACTED
549,Highways & Transport Services,Saf mtc prin/oth rds not split,Highways GM Contract                    ,P04006,Premises Related Expenditure  ,Ground Maintenance Costs      ,BL50,Nature Conservation                     ,37664,27/08/2015,Rev,BARKLANDS TREE SPECIALISTS    
550,Childrens & Education Services,Fostering Services,ART Independent Agency Foster,W1DE46,Supplies & Services           ,Services                      ,DF53,Task Based Fostering                    ,600.48,27/08/2015,Rev,CORNERWAYS FOSTERING SERV.LTD 
551,Childrens & Education Services,Fostering Services,ART Independent Agency Foster,W1DE46,Supplies & Services           ,Services                      ,DF53,Task Based Fostering                    ,600.48,27/08/2015,Rev,CORNERWAYS FOSTERING SERV.LTD 
552,Childrens & Education Services,Fostering Services,ART Independent Agency Foster,W1DE46,Supplies & Services           ,Services                      ,DF53,Task Based Fostering                    ,600.48,27/08/2015,Rev,CORNERWAYS FOSTERING SERV.LTD 
553,Childrens & Education Services,Fostering Services,ART Independent Agency Foster,W1DE46,Supplies & Services           ,Services                      ,DF53,Task Based Fostering                    ,700.56,27/08/2015,Rev,CORNERWAYS FOSTERING SERV.LTD 
554,Childrens & Education Services,Fostering Services,ART Independent Agency Foster,W1DE46,Supplies & Services           ,Services                      ,DF53,Task Based Fostering                    ,700.56,27/08/2015,Rev,CORNERWAYS FOSTERING SERV.LTD 
555,Childrens & Education Services,Fostering Services,ART Independent Agency Foster,W1DE46,Supplies & Services           ,Services                      ,DF53,Task Based Fostering                    ,700.56,27/08/2015,Rev,CORNERWAYS FOSTERING SERV.LTD 
556,Childrens & Education Services,Fostering Services,ART Independent Agency Foster,W1DE46,Supplies & Services           ,Services                      ,DF53,Task Based Fostering                    ,700.56,27/08/2015,Rev,CORNERWAYS FOSTERING SERV.LTD 
557,Childrens & Education Services,Fostering Services,ART Independent Agency Foster,W1DE46,Supplies & Services           ,Services                      ,DF53,Task Based Fostering                    ,700.56,27/08/2015,Rev,CORNERWAYS FOSTERING SERV.LTD 
558,Childrens & Education Services,Fostering Services,ART Independent Agency Foster,W1DE46,Supplies & Services           ,Services                      ,DF53,Task Based Fostering                    ,700.56,27/08/2015,Rev,CORNERWAYS FOSTERING SERV.LTD 
559,Childrens & Education Services,Fostering Services,ART Independent Agency Foster,W1DE46,Supplies & Services           ,Services                      ,DF53,Task Based Fostering                    ,700.56,27/08/2015,Rev,CORNERWAYS FOSTERING SERV.LTD 
560,Childrens & Education Services,Fostering Services,ART Independent Agency Foster,W1DE46,Supplies & Services           ,Services                      ,DF53,Task Based Fostering                    ,700.56,27/08/2015,Rev,CORNERWAYS FOSTERING SERV.LTD 
561,Childrens & Education Services,Fostering Services,ART Independent Agency Foster,W1DE46,Supplies & Services           ,Services                      ,DF53,Task Based Fostering                    ,700.56,27/08/2015,Rev,CORNERWAYS FOSTERING SERV.LTD 
562,Childrens & Education Services,Fostering Services,ART Independent Agency Foster,W1DE46,Supplies & Services           ,Services                      ,DF53,Task Based Fostering                    ,700.56,27/08/2015,Rev,CORNERWAYS FOSTERING SERV.LTD 
563,Childrens & Education Services,Fostering Services,ART Independent Agency Foster,W1DE46,Supplies & Services           ,Services                      ,DF53,Task Based Fostering                    ,700.56,27/08/2015,Rev,CORNERWAYS FOSTERING SERV.LTD 
564,Childrens & Education Services,Fostering Services,ART Independent Agency Foster,W1DE46,Supplies & Services           ,Services                      ,DF53,Task Based Fostering                    ,700.56,27/08/2015,Rev,CORNERWAYS FOSTERING SERV.LTD 
565,,,Highways bridges & structures           ,CE025FA,New Construction Conversion and Renovation,,B2,Site Surveys D&S Structure              ,850,27/08/2015,Cap,GBR PHOENIX BEARD             
566,CS -Oth Operating Inc & Expend,T/A Corporate Services,Prting Jobs - Internal,A03040,Supplies & Services           ,Prntng Stnry Gen Off Exp      ,DE05,Micro-filming                           ,1083.96,27/08/2015,Rev,MISL LTD                      
567,Childrens & Education Services,Chidren's Homes,ART Residential Placements,W1DE57,Third Party Payments          ,Private Contractors           ,EH01,Miscellaneous Agency Services           ,-505.14,27/08/2015,Rev,REDACTED
568,Childrens & Education Services,Strategic Management,DS Director SSR Costs,W0AA01,Supplies & Services           ,Services                      ,DF11,Counsel's Fees                          ,850,27/08/2015,Rev,REDACTED
569,Childrens & Education Services,Chidren's Homes,ART Residential Placements,W1DE57,Third Party Payments          ,Private Contractors           ,EH01,Miscellaneous Agency Services           ,2020.56,27/08/2015,Rev,REDACTED
570,Childrens & Education Services,Chidren's Homes,ART Residential Placements,W1DE57,Third Party Payments          ,Private Contractors           ,EH01,Miscellaneous Agency Services           ,3535.98,27/08/2015,Rev,REDACTED
571,Childrens & Education Services,Chidren's Homes,ART Residential Placements,W1DE57,Third Party Payments          ,Private Contractors           ,EH01,Miscellaneous Agency Services           ,3535.98,27/08/2015,Rev,REDACTED
572,Childrens & Education Services,Chidren's Homes,ART Residential Placements,W1DE57,Third Party Payments          ,Private Contractors           ,EH01,Miscellaneous Agency Services           ,3535.98,27/08/2015,Rev,REDACTED
573,Childrens & Education Services,Chidren's Homes,ART Residential Placements,W1DE57,Third Party Payments          ,Private Contractors           ,EH01,Miscellaneous Agency Services           ,3535.98,27/08/2015,Rev,REDACTED
574,Central Services,SupS Legal,Sutton Legal                            ,E10293,Supplies & Services           ,Services                      ,DF11,Counsel's Fees                          ,1300,28/08/2015,Rev,REDACTED
575,Central Services,SupS Legal,Kingston Legal                          ,E10292,Supplies & Services           ,Services                      ,DF95,Services from Provider                  ,1732.5,28/08/2015,Rev,REDACTED
576,Central Services,SupS Legal,Sutton Legal                            ,E10293,Supplies & Services           ,Services                      ,DF11,Counsel's Fees                          ,3141.25,28/08/2015,Rev,REDACTED
577,Childrens & Education Services,Other - Other Ch & Fam,CL CAMHS Mental Health Grant,W1DA01,Third Party Payments          ,Private Contractors           ,EH01,Miscellaneous Agency Services           ,16601.37,28/08/2015,Rev,SW LONDON ST GEORGES NHS TRUST
578,Central Services,SupS Legal,Achieving for Children (AFC),E10295,Supplies & Services           ,Services                      ,DF95,Services from Provider                  ,2461,28/08/2015,Rev,WARD HADAWAY                  
579,,,Schs Cap Maint & Accessibility          ,CS080SD,New Construction Conversion and Renovation,,B4,Contractor - Site works                 ,665.6,29/08/2015,Cap,STAMFORD CONTRACTS LIMITED    
580,,,Schs Cap Maint & Accessibility          ,CS080SD,New Construction Conversion and Renovation,,B4,Contractor - Site works                 ,803.18,29/08/2015,Cap,STAMFORD CONTRACTS LIMITED    
581,,,Schs Cap Maint & Accessibility          ,CS080SD,New Construction Conversion and Renovation,,B4,Contractor - Site works                 ,1299.43,29/08/2015,Cap,STAMFORD CONTRACTS LIMITED    
582,Cultural Env Reg&Plan Services,Library DoS not split,Libraries Service-Civic Centre,L50001,Supplies & Services           ,Comms and Computing           ,DG04,Postage - General                       ,851.76,31/08/2015,Rev,AXIELL                        
583,Central Services,GENERATED ACCOUNT,Establishments' Cash Collect'n,E06226,Third Party Payments          ,Private Contractors           ,EH02,Miscellaneous Hired Services            ,571.95,31/08/2015,Rev,BANKING AUTOMATION LTD        
584,CS -Oth Operating Inc & Expend,T/A Vehicle Maintenance etc,Transport-Contract Hire,J01374,Transport Related Expenditure ,Contract Hire and Op Leasing  ,CC67,C&H - ADULTS CABS (RK08)                ,672,31/08/2015,Rev,CAPITAL CARS                  
585,CS -Oth Operating Inc & Expend,T/A Vehicle Maintenance etc,Transport-Contract Hire,J01374,Transport Related Expenditure ,Contract Hire and Op Leasing  ,CC67,C&H - ADULTS CABS (RK08)                ,940,31/08/2015,Rev,CAPITAL CARS                  
586,CS -Oth Operating Inc & Expend,T/A Vehicle Maintenance etc,Transport-Contract Hire,J01374,Transport Related Expenditure ,Contract Hire and Op Leasing  ,CC67,C&H - ADULTS CABS (RK08)                ,944,31/08/2015,Rev,CAPITAL CARS                  
587,Childrens & Education Services,Vocational - Adult Education,AE-Neighbourhood Learning,K06043,Supplies & Services           ,Equip Furniture/Materials     ,DA02,Op. Leasing Equipment                   ,706.55,31/08/2015,Rev,COFFEE AT WORK LTD            
588,Cultural Env Reg&Plan Services,Street Clean - Not highways,Waste Enforcement,G00680,Third Party Payments          ,Private Contractors           ,EH02,Miscellaneous Hired Services            ,15750,31/08/2015,Rev,KINGDOM SECURITY              
589,Childrens & Education Services,Chidren's Homes,CS Brightwell,W1CG00,Transport Related Expenditure ,Recharge frm Transport Holding,CB01,Transport                               ,1503.9,31/08/2015,Rev,MERTON COMMUNITY TRANSPORT    
590,Cultural Env Reg&Plan Services,Mgt & Support (Env),EAMS (Env Asset Mgt Sys)                ,G00076,Employees                     ,Direct Employee Expenses      ,AA17,Agency Staff & Casual Paymts            ,7800,31/08/2015,Rev,REDACTED
591,Childrens & Education Services,Chidren's Homes,ART Residential Placements,W1DE57,Third Party Payments          ,Private Contractors           ,EH01,Miscellaneous Agency Services           ,728.57,31/08/2015,Rev,REDACTED
592,Childrens & Education Services,Chidren's Homes,ART Residential Placements,W1DE57,Third Party Payments          ,Private Contractors           ,EH01,Miscellaneous Agency Services           ,850,31/08/2015,Rev,REDACTED
593,Childrens & Education Services,Chidren's Homes,ART Residential Placements,W1DE57,Third Party Payments          ,Private Contractors           ,EH01,Miscellaneous Agency Services           ,850,31/08/2015,Rev,REDACTED
594,Childrens & Education Services,Chidren's Homes,ART Residential Placements,W1DE57,Third Party Payments          ,Private Contractors           ,EH01,Miscellaneous Agency Services           ,850,31/08/2015,Rev,REDACTED
595,Childrens & Education Services,Chidren's Homes,ART Residential Placements,W1DE57,Third Party Payments          ,Private Contractors           ,EH01,Miscellaneous Agency Services           ,850,31/08/2015,Rev,REDACTED
596,Childrens & Education Services,Chidren's Homes,ART Residential Placements,W1DE57,Third Party Payments          ,Private Contractors           ,EH01,Miscellaneous Agency Services           ,850,31/08/2015,Rev,REDACTED
597,Childrens & Education Services,Chidren's Homes,ART Residential Placements,W1DE57,Third Party Payments          ,Private Contractors           ,EH01,Miscellaneous Agency Services           ,2880,31/08/2015,Rev,REDACTED
598,Housing Services,Bed / breakfast accommodation,TEMPORARY ACCOMMODATION,N47160,Third Party Payments          ,Private Contractors           ,EH01,Miscellaneous Agency Services           ,81586.4,31/08/2015,Rev,ROOMS & STUDIOS MANAGEMENT    
599,Cultural Env Reg&Plan Services,Pest Control,Pest Control,G00724,Third Party Payments          ,Private Contractors           ,EH02,Miscellaneous Hired Services            ,704.58,31/08/2015,Rev,SDK ENVIROMENTAL LTD          
600,Cultural Env Reg&Plan Services,Pest Control,Pest Control,G00724,Third Party Payments          ,Private Contractors           ,EH02,Miscellaneous Hired Services            ,802.5,31/08/2015,Rev,SDK ENVIROMENTAL LTD          
601,Childrens & Education Services,Nursery schools,E.Years-Intergenerational Cntr,K05416,Employees                     ,Direct Employee Expenses      ,AA04,Shared Services Salaries                ,2589.25,31/08/2015,Rev,ST MARK'S C OF E ACADEMY      
602,Childrens & Education Services,,ART Secure Accommodation                ,W1DE59,Third Party Payments          ,Private Contractors           ,EH79,Private Tenant/Landlord                 ,531,31/08/2015,Rev,THE YOUTH JUSTICE BOARD       
603,Childrens & Education Services,,ART Secure Accommodation                ,W1DE59,Third Party Payments          ,Private Contractors           ,EH79,Private Tenant/Landlord                 ,1239,31/08/2015,Rev,THE YOUTH JUSTICE BOARD       
604,Childrens & Education Services,,ART Secure Accommodation                ,W1DE59,Third Party Payments          ,Private Contractors           ,EH79,Private Tenant/Landlord                 ,1239,31/08/2015,Rev,THE YOUTH JUSTICE BOARD       
605,Adult Social Care,OP 65&Over Resi Care Placement,OP East - Residential Care Ext,W2LH55,Third Party Payments          ,Private Contractors           ,EH01,Miscellaneous Agency Services           ,524.22,01/09/2015,Rev,BHAKTI SHYAMA CARE CENTRE     
606,Adult Social Care,OP 65&Over Resi Care Placement,OP East - Residential Care Ext,W2LH55,Third Party Payments          ,Private Contractors           ,EH01,Miscellaneous Agency Services           ,524.22,01/09/2015,Rev,BHAKTI SHYAMA CARE CENTRE     
607,Adult Social Care,OP 65&Over Resi Care Placement,OP East - Residential Care Ext,W2LH55,Third Party Payments          ,Private Contractors           ,EH01,Miscellaneous Agency Services           ,524.22,01/09/2015,Rev,BHAKTI SHYAMA CARE CENTRE     
608,Adult Social Care,OP 65&Over Resi Care Placement,OP East - Residential Care Ext,W2LH55,Third Party Payments          ,Private Contractors           ,EH01,Miscellaneous Agency Services           ,524.22,01/09/2015,Rev,BHAKTI SHYAMA CARE CENTRE     
609,Childrens & Education Services,Fostering Services,ART Independent Agency Foster,W1DE46,Supplies & Services           ,Services                      ,DF53,Task Based Fostering                    ,651.43,01/09/2015,Rev,BRIGHTER FUTURES FOSTER CARE  
610,Childrens & Education Services,Fostering Services,ART Independent Agency Foster,W1DE46,Supplies & Services           ,Services                      ,DF53,Task Based Fostering                    ,760,01/09/2015,Rev,BRIGHTER FUTURES FOSTER CARE  
611,Childrens & Education Services,Fostering Services,ART Independent Agency Foster,W1DE46,Supplies & Services           ,Services                      ,DF53,Task Based Fostering                    ,760,01/09/2015,Rev,BRIGHTER FUTURES FOSTER CARE  
612,Childrens & Education Services,Fostering Services,ART Independent Agency Foster,W1DE46,Supplies & Services           ,Services                      ,DF53,Task Based Fostering                    ,760,01/09/2015,Rev,BRIGHTER FUTURES FOSTER CARE  
613,Childrens & Education Services,Fostering Services,ART Independent Agency Foster,W1DE46,Supplies & Services           ,Services                      ,DF53,Task Based Fostering                    ,760,01/09/2015,Rev,BRIGHTER FUTURES FOSTER CARE  
614,Childrens & Education Services,Fostering Services,ART Independent Agency Foster,W1DE46,Supplies & Services           ,Services                      ,DF53,Task Based Fostering                    ,638.57,01/09/2015,Rev,CONNECT FOSTERING LTD         
615,Childrens & Education Services,Fostering Services,ART Independent Agency Foster,W1DE46,Supplies & Services           ,Services                      ,DF53,Task Based Fostering                    ,745,01/09/2015,Rev,CONNECT FOSTERING LTD         
616,Childrens & Education Services,Fostering Services,ART Independent Agency Foster,W1DE46,Supplies & Services           ,Services                      ,DF53,Task Based Fostering                    ,745,01/09/2015,Rev,CONNECT FOSTERING LTD         
617,Childrens & Education Services,Fostering Services,ART Independent Agency Foster,W1DE46,Supplies & Services           ,Services                      ,DF53,Task Based Fostering                    ,745,01/09/2015,Rev,CONNECT FOSTERING LTD         
618,Childrens & Education Services,Fostering Services,ART Independent Agency Foster,W1DE46,Supplies & Services           ,Services                      ,DF53,Task Based Fostering                    ,745,01/09/2015,Rev,CONNECT FOSTERING LTD         
619,Central Services,Registration of electors,Electoral Registration,E10285,Supplies & Services           ,Prntng Stnry Gen Off Exp      ,DE01,External Printing                       ,17118.48,01/09/2015,Rev,FINANCIAL DATA MANAGEMENT PLC 
620,CS -Oth Operating Inc & Expend,T/A Vehicle Maintenance etc,Vehicle Workshops,J01378,Supplies & Services           ,Grants and Subscriptions      ,DJ04,Subscriptions                           ,935,01/09/2015,Rev,FREIGHT TRANSPORT ASSOCIATION 
621,Childrens & Education Services,Fostering Services,ART Independent Agency Foster,W1DE46,Supplies & Services           ,Services                      ,DF53,Task Based Fostering                    ,-763.06,01/09/2015,Rev,HEATH FARM CHILDRENS SERVICES 
622,Childrens & Education Services,Fostering Services,ART Independent Agency Foster,W1DE46,Supplies & Services           ,Services                      ,DF53,Task Based Fostering                    ,1144.52,01/09/2015,Rev,HEATH FARM CHILDRENS SERVICES 
623,Childrens & Education Services,Fostering Services,ART Independent Agency Foster,W1DE46,Supplies & Services           ,Services                      ,DF53,Task Based Fostering                    ,1335.26,01/09/2015,Rev,HEATH FARM CHILDRENS SERVICES 
624,Childrens & Education Services,Fostering Services,ART Independent Agency Foster,W1DE46,Supplies & Services           ,Services                      ,DF53,Task Based Fostering                    ,1335.26,01/09/2015,Rev,HEATH FARM CHILDRENS SERVICES 
625,Childrens & Education Services,Fostering Services,ART Independent Agency Foster,W1DE46,Supplies & Services           ,Services                      ,DF53,Task Based Fostering                    ,1335.26,01/09/2015,Rev,HEATH FARM CHILDRENS SERVICES 
626,Childrens & Education Services,Fostering Services,ART Independent Agency Foster,W1DE46,Supplies & Services           ,Services                      ,DF53,Task Based Fostering                    ,1335.26,01/09/2015,Rev,HEATH FARM CHILDRENS SERVICES 
627,Childrens & Education Services,Fostering Services,ART Independent Agency Foster,W1DE46,Supplies & Services           ,Services                      ,DF53,Task Based Fostering                    ,-704.36,01/09/2015,Rev,INTEGRATED SERVICES PROGRAMME 
628,Childrens & Education Services,Fostering Services,ART Independent Agency Foster,W1DE46,Supplies & Services           ,Services                      ,DF53,Task Based Fostering                    ,1056.76,01/09/2015,Rev,INTEGRATED SERVICES PROGRAMME 
629,Childrens & Education Services,Fostering Services,ART Independent Agency Foster,W1DE46,Supplies & Services           ,Services                      ,DF53,Task Based Fostering                    ,1233.1,01/09/2015,Rev,INTEGRATED SERVICES PROGRAMME 
630,Childrens & Education Services,Fostering Services,ART Independent Agency Foster,W1DE46,Supplies & Services           ,Services                      ,DF53,Task Based Fostering                    ,1233.1,01/09/2015,Rev,INTEGRATED SERVICES PROGRAMME 
631,Childrens & Education Services,Fostering Services,ART Independent Agency Foster,W1DE46,Supplies & Services           ,Services                      ,DF53,Task Based Fostering                    ,1233.1,01/09/2015,Rev,INTEGRATED SERVICES PROGRAMME 
632,Childrens & Education Services,Fostering Services,ART Independent Agency Foster,W1DE46,Supplies & Services           ,Services                      ,DF53,Task Based Fostering                    ,1233.1,01/09/2015,Rev,INTEGRATED SERVICES PROGRAMME 
633,Childrens & Education Services,Chidren's Homes,ART Residential Placements,W1DE57,Third Party Payments          ,Private Contractors           ,EH01,Miscellaneous Agency Services           ,-2694.3,01/09/2015,Rev,REDACTED
634,Childrens & Education Services,Chidren's Homes,ART Residential Placements,W1DE57,Third Party Payments          ,Private Contractors           ,EH01,Miscellaneous Agency Services           ,-2509.23,01/09/2015,Rev,REDACTED
635,Childrens & Education Services,Other Ch' Looked After Serv.,ART Mother and Baby Unit,W1DE63,Third Party Payments          ,Private Contractors           ,EH01,Miscellaneous Agency Services           ,-2180,01/09/2015,Rev,REDACTED
636,Childrens & Education Services,Chidren's Homes,ART Residential Placements,W1DE57,Third Party Payments          ,Private Contractors           ,EH01,Miscellaneous Agency Services           ,-2007.43,01/09/2015,Rev,REDACTED
637,Childrens & Education Services,Chidren's Homes,ART Residential Placements,W1DE57,Third Party Payments          ,Private Contractors           ,EH01,Miscellaneous Agency Services           ,-2000,01/09/2015,Rev,REDACTED
638,Childrens & Education Services,Chidren's Homes,ART Residential Placements,W1DE57,Third Party Payments          ,Private Contractors           ,EH01,Miscellaneous Agency Services           ,-1848.56,01/09/2015,Rev,REDACTED
639,Childrens & Education Services,Chidren's Homes,ART Residential Placements,W1DE57,Third Party Payments          ,Private Contractors           ,EH01,Miscellaneous Agency Services           ,-1571.44,01/09/2015,Rev,REDACTED
640,Childrens & Education Services,Other Ch' Looked After Serv.,ART Mother and Baby Unit,W1DE63,Third Party Payments          ,Private Contractors           ,EH01,Miscellaneous Agency Services           ,-1000,01/09/2015,Rev,REDACTED
641,Childrens & Education Services,Other Ch' Looked After Serv.,ART Mother and Baby Unit,W1DE63,Third Party Payments          ,Private Contractors           ,EH01,Miscellaneous Agency Services           ,500,01/09/2015,Rev,REDACTED
642,Childrens & Education Services,Chidren's Homes,ART Residential Placements,W1DE57,Third Party Payments          ,Private Contractors           ,EH01,Miscellaneous Agency Services           ,600,01/09/2015,Rev,REDACTED
643,Childrens & Education Services,Other Ch' Looked After Serv.,ART Mother and Baby Unit,W1DE63,Third Party Payments          ,Private Contractors           ,EH01,Miscellaneous Agency Services           ,872,01/09/2015,Rev,REDACTED
644,Childrens & Education Services,Other Ch' Looked After Serv.,ART Mother and Baby Unit,W1DE63,Third Party Payments          ,Private Contractors           ,EH01,Miscellaneous Agency Services           ,1000,01/09/2015,Rev,REDACTED
645,Childrens & Education Services,Chidren's Homes,ART Residential Placements,W1DE57,Third Party Payments          ,Private Contractors           ,EH01,Miscellaneous Agency Services           ,1600,01/09/2015,Rev,REDACTED
646,Central Services,SupS Legal,Sutton Legal                            ,E10293,Supplies & Services           ,Services                      ,DF14,Doctors and Other Fees                  ,1671.2,01/09/2015,Rev,REDACTED
647,Childrens & Education Services,Other Ch' Looked After Serv.,ART Mother and Baby Unit,W1DE63,Third Party Payments          ,Private Contractors           ,EH01,Miscellaneous Agency Services           ,1750,01/09/2015,Rev,REDACTED
648,Childrens & Education Services,Chidren's Homes,ART Residential Placements,W1DE57,Third Party Payments          ,Private Contractors           ,EH01,Miscellaneous Agency Services           ,2000,01/09/2015,Rev,REDACTED
649,Childrens & Education Services,Other Ch' Looked After Serv.,ART Mother and Baby Unit,W1DE63,Third Party Payments          ,Private Contractors           ,EH01,Miscellaneous Agency Services           ,2180,01/09/2015,Rev,REDACTED
650,Childrens & Education Services,Chidren's Homes,ART Residential Placements,W1DE57,Third Party Payments          ,Private Contractors           ,EH01,Miscellaneous Agency Services           ,2357.16,01/09/2015,Rev,REDACTED
651,Childrens & Education Services,Chidren's Homes,ART Residential Placements,W1DE57,Third Party Payments          ,Private Contractors           ,EH01,Miscellaneous Agency Services           ,2694.3,01/09/2015,Rev,REDACTED
652,Childrens & Education Services,Chidren's Homes,ART Residential Placements,W1DE57,Third Party Payments          ,Private Contractors           ,EH01,Miscellaneous Agency Services           ,2750.02,01/09/2015,Rev,REDACTED
653,Childrens & Education Services,Chidren's Homes,ART Residential Placements,W1DE57,Third Party Payments          ,Private Contractors           ,EH01,Miscellaneous Agency Services           ,2750.02,01/09/2015,Rev,REDACTED
654,Childrens & Education Services,Chidren's Homes,ART Residential Placements,W1DE57,Third Party Payments          ,Private Contractors           ,EH01,Miscellaneous Agency Services           ,2750.02,01/09/2015,Rev,REDACTED
655,Childrens & Education Services,Chidren's Homes,ART Residential Placements,W1DE57,Third Party Payments          ,Private Contractors           ,EH01,Miscellaneous Agency Services           ,2750.02,01/09/2015,Rev,REDACTED
656,Childrens & Education Services,Chidren's Homes,ART Residential Placements,W1DE57,Third Party Payments          ,Private Contractors           ,EH01,Miscellaneous Agency Services           ,2772.85,01/09/2015,Rev,REDACTED
657,Childrens & Education Services,Chidren's Homes,ART Residential Placements,W1DE57,Third Party Payments          ,Private Contractors           ,EH01,Miscellaneous Agency Services           ,2800,01/09/2015,Rev,REDACTED
658,Childrens & Education Services,Chidren's Homes,ART Residential Placements,W1DE57,Third Party Payments          ,Private Contractors           ,EH01,Miscellaneous Agency Services           ,2800,01/09/2015,Rev,REDACTED
659,Childrens & Education Services,Chidren's Homes,ART Residential Placements,W1DE57,Third Party Payments          ,Private Contractors           ,EH01,Miscellaneous Agency Services           ,2800,01/09/2015,Rev,REDACTED
660,Childrens & Education Services,Chidren's Homes,ART Residential Placements,W1DE57,Third Party Payments          ,Private Contractors           ,EH01,Miscellaneous Agency Services           ,2800,01/09/2015,Rev,REDACTED
661,Childrens & Education Services,Chidren's Homes,ART Residential Placements,W1DE57,Third Party Payments          ,Private Contractors           ,EH01,Miscellaneous Agency Services           ,2800,01/09/2015,Rev,REDACTED
662,Childrens & Education Services,Chidren's Homes,ART Residential Placements,W1DE57,Third Party Payments          ,Private Contractors           ,EH01,Miscellaneous Agency Services           ,2800,01/09/2015,Rev,REDACTED
663,Childrens & Education Services,Chidren's Homes,ART Residential Placements,W1DE57,Third Party Payments          ,Private Contractors           ,EH01,Miscellaneous Agency Services           ,2800,01/09/2015,Rev,REDACTED
664,Childrens & Education Services,Chidren's Homes,ART Residential Placements,W1DE57,Third Party Payments          ,Private Contractors           ,EH01,Miscellaneous Agency Services           ,2800,01/09/2015,Rev,REDACTED
665,Childrens & Education Services,Chidren's Homes,ART Residential Placements,W1DE57,Third Party Payments          ,Private Contractors           ,EH01,Miscellaneous Agency Services           ,3011.14,01/09/2015,Rev,REDACTED
666,Childrens & Education Services,Other Ch' Looked After Serv.,ART Mother and Baby Unit,W1DE63,Third Party Payments          ,Private Contractors           ,EH01,Miscellaneous Agency Services           ,3052,01/09/2015,Rev,REDACTED
667,Childrens & Education Services,Other Ch' Looked After Serv.,ART Mother and Baby Unit,W1DE63,Third Party Payments          ,Private Contractors           ,EH01,Miscellaneous Agency Services           ,3052,01/09/2015,Rev,REDACTED
668,Childrens & Education Services,Other Ch' Looked After Serv.,ART Mother and Baby Unit,W1DE63,Third Party Payments          ,Private Contractors           ,EH01,Miscellaneous Agency Services           ,3052,01/09/2015,Rev,REDACTED
669,Childrens & Education Services,Other Ch' Looked After Serv.,ART Mother and Baby Unit,W1DE63,Third Party Payments          ,Private Contractors           ,EH01,Miscellaneous Agency Services           ,3052,01/09/2015,Rev,REDACTED
670,Childrens & Education Services,Chidren's Homes,ART Residential Placements,W1DE57,Third Party Payments          ,Private Contractors           ,EH01,Miscellaneous Agency Services           ,3235,01/09/2015,Rev,REDACTED
671,Childrens & Education Services,Chidren's Homes,ART Residential Placements,W1DE57,Third Party Payments          ,Private Contractors           ,EH01,Miscellaneous Agency Services           ,3235,01/09/2015,Rev,REDACTED
672,Childrens & Education Services,Chidren's Homes,ART Residential Placements,W1DE57,Third Party Payments          ,Private Contractors           ,EH01,Miscellaneous Agency Services           ,3235,01/09/2015,Rev,REDACTED
673,Childrens & Education Services,Chidren's Homes,ART Residential Placements,W1DE57,Third Party Payments          ,Private Contractors           ,EH01,Miscellaneous Agency Services           ,3235,01/09/2015,Rev,REDACTED
674,Childrens & Education Services,Chidren's Homes,ART Residential Placements,W1DE57,Third Party Payments          ,Private Contractors           ,EH01,Miscellaneous Agency Services           ,3512.92,01/09/2015,Rev,REDACTED
675,Childrens & Education Services,Chidren's Homes,ART Residential Placements,W1DE57,Third Party Payments          ,Private Contractors           ,EH01,Miscellaneous Agency Services           ,3512.92,01/09/2015,Rev,REDACTED
676,Childrens & Education Services,Chidren's Homes,ART Residential Placements,W1DE57,Third Party Payments          ,Private Contractors           ,EH01,Miscellaneous Agency Services           ,3512.92,01/09/2015,Rev,REDACTED
677,Childrens & Education Services,Chidren's Homes,ART Residential Placements,W1DE57,Third Party Payments          ,Private Contractors           ,EH01,Miscellaneous Agency Services           ,3512.92,01/09/2015,Rev,REDACTED
678,Childrens & Education Services,Chidren's Homes,ART Residential Placements,W1DE57,Third Party Payments          ,Private Contractors           ,EH01,Miscellaneous Agency Services           ,3512.92,01/09/2015,Rev,REDACTED
679,Childrens & Education Services,Chidren's Homes,ART Residential Placements,W1DE57,Third Party Payments          ,Private Contractors           ,EH01,Miscellaneous Agency Services           ,3513,01/09/2015,Rev,REDACTED
680,Childrens & Education Services,Chidren's Homes,ART Residential Placements,W1DE57,Third Party Payments          ,Private Contractors           ,EH01,Miscellaneous Agency Services           ,3513,01/09/2015,Rev,REDACTED
681,Childrens & Education Services,Chidren's Homes,ART Residential Placements,W1DE57,Third Party Payments          ,Private Contractors           ,EH01,Miscellaneous Agency Services           ,3513,01/09/2015,Rev,REDACTED
682,Childrens & Education Services,Chidren's Homes,ART Residential Placements,W1DE57,Third Party Payments          ,Private Contractors           ,EH01,Miscellaneous Agency Services           ,3513,01/09/2015,Rev,REDACTED
683,Childrens & Education Services,Chidren's Homes,ART Residential Placements,W1DE57,Third Party Payments          ,Private Contractors           ,EH01,Miscellaneous Agency Services           ,4750,01/09/2015,Rev,REDACTED
684,Adult Social Care,OP 65&Over Resi Care Placement,OP West - Residential Care Ext,W2LG55,Third Party Payments          ,Private Contractors           ,EH01,Miscellaneous Agency Services           ,-664.87,01/09/2015,Rev,SANCTUARY CARE LTD            
685,Cultural Env Reg&Plan Services,Library DoS not split,Libraries Service-Civic Centre,L50001,Premises Related Expenditure  ,RepairsAlterations&MtceOfBldgs,BA79,Security of Premises                    ,7679.68,01/09/2015,Rev,SIGHT & SOUND                 
686,Housing Services,Bed / breakfast accommodation,TEMPORARY ACCOMMODATION,N47160,Third Party Payments          ,Private Contractors           ,EH01,Miscellaneous Agency Services           ,6006,01/09/2015,Rev,SK HOUSING LTD                
687,Adult Social Care,OP 65&Over NursingCarePlacemts,OP West - Nursing Care,W2LG53,Third Party Payments          ,Private Contractors           ,EH01,Miscellaneous Agency Services           ,555.46,01/09/2015,Rev,SOLENT GRANGE NURSING HOME    
688,Adult Social Care,OP 65&Over NursingCarePlacemts,OP West - Nursing Care,W2LG53,Third Party Payments          ,Private Contractors           ,EH01,Miscellaneous Agency Services           ,555.46,01/09/2015,Rev,SOLENT GRANGE NURSING HOME    
689,Adult Social Care,OP 65&Over NursingCarePlacemts,OP West - Nursing Care,W2LG53,Third Party Payments          ,Private Contractors           ,EH01,Miscellaneous Agency Services           ,555.46,01/09/2015,Rev,SOLENT GRANGE NURSING HOME    
690,Adult Social Care,OP 65&Over NursingCarePlacemts,OP West - Nursing Care,W2LG53,Third Party Payments          ,Private Contractors           ,EH01,Miscellaneous Agency Services           ,555.46,01/09/2015,Rev,SOLENT GRANGE NURSING HOME    
691,Cultural Env Reg&Plan Services,Economic Dev (Not separated),Capt Ambition-Suburban Opprt Z,H01231,Third Party Payments          ,Private Contractors           ,EH10,Contract Payments                       ,3000,01/09/2015,Rev,THE FIFTH SECTOR LTD          
692,Adult Social Care,LD u65 Residentl Care Placemnt,LD Residential Care External,W2KB55,Third Party Payments          ,Private Contractors           ,EH01,Miscellaneous Agency Services           ,572.5,01/09/2015,Rev,THE FRANCES TAYLOR FOUNDATION 
693,Adult Social Care,Asylum Unacc Children,UASC Foster Care (Grant)                ,W4TC47,Supplies & Services           ,Services                      ,DF53,Task Based Fostering                    ,-797.14,01/09/2015,Rev,THE XCEL 2000 PARTNERSHIP LTD 
694,Adult Social Care,Asylum Unacc Children,UASC Foster Care (Grant)                ,W4TC47,Supplies & Services           ,Services                      ,DF53,Task Based Fostering                    ,1195.71,01/09/2015,Rev,THE XCEL 2000 PARTNERSHIP LTD 
695,Adult Social Care,Asylum Unacc Children,UASC Foster Care (Grant)                ,W4TC47,Supplies & Services           ,Services                      ,DF53,Task Based Fostering                    ,1395,01/09/2015,Rev,THE XCEL 2000 PARTNERSHIP LTD 
696,Adult Social Care,Asylum Unacc Children,UASC Foster Care (Grant)                ,W4TC47,Supplies & Services           ,Services                      ,DF53,Task Based Fostering                    ,1395,01/09/2015,Rev,THE XCEL 2000 PARTNERSHIP LTD 
697,Adult Social Care,Asylum Unacc Children,UASC Foster Care (Grant)                ,W4TC47,Supplies & Services           ,Services                      ,DF53,Task Based Fostering                    ,1395,01/09/2015,Rev,THE XCEL 2000 PARTNERSHIP LTD 
698,Adult Social Care,Asylum Unacc Children,UASC Foster Care (Grant)                ,W4TC47,Supplies & Services           ,Services                      ,DF53,Task Based Fostering                    ,1395,01/09/2015,Rev,THE XCEL 2000 PARTNERSHIP LTD 
699,Childrens & Education Services,Support for SEN Pupils,Non-Delegated Statements,K90024,Third Party Payments          ,Other Establishments          ,EG50,Ind Day Schs Payments                   ,16331.94,02/09/2015,Rev,CRESSEY OASIS EDUCATION       
700,Cultural Env Reg&Plan Services,Street Clean - Not highways,Waste Enforcement,G00680,Supplies & Services           ,Services                      ,DF30,Activities Programme                    ,700,02/09/2015,Rev,DANGEROUS THEATRE COMPANY     
701,Public Health,PH - NHS Health Check,PH � NHS Health check�                  ,WPHN01,Supplies & Services           ,Services                      ,DF14,Doctors and Other Fees                  ,1175,02/09/2015,Rev,FIGGES MARSH SURGERY          
702,Central Services,SupS Chief Execs,Democratic Services,A02023,Supplies & Services           ,Expenses                      ,DH79,INCOMING MAYOR (MAY-MARCH)              ,510,02/09/2015,Rev,GOSTO FINO PORTUGAL PATISSERIE
703,Childrens & Education Services,Chidren's Homes,ART Residential Placements,W1DE57,Third Party Payments          ,Private Contractors           ,EH01,Miscellaneous Agency Services           ,-1371.43,02/09/2015,Rev,REDACTED
704,Central Services,SupS Legal,Achieving for Children (AFC),E10295,Supplies & Services           ,Services                      ,DF11,Counsel's Fees                          ,930,02/09/2015,Rev,REDACTED
705,Childrens & Education Services,Chidren's Homes,ART Residential Placements,W1DE57,Third Party Payments          ,Private Contractors           ,EH01,Miscellaneous Agency Services           ,2057.14,02/09/2015,Rev,REDACTED
706,Childrens & Education Services,Chidren's Homes,ART Residential Placements,W1DE57,Third Party Payments          ,Private Contractors           ,EH01,Miscellaneous Agency Services           ,2400,02/09/2015,Rev,REDACTED
707,Childrens & Education Services,Chidren's Homes,ART Residential Placements,W1DE57,Third Party Payments          ,Private Contractors           ,EH01,Miscellaneous Agency Services           ,2400,02/09/2015,Rev,REDACTED
708,Childrens & Education Services,Chidren's Homes,ART Residential Placements,W1DE57,Third Party Payments          ,Private Contractors           ,EH01,Miscellaneous Agency Services           ,2400,02/09/2015,Rev,REDACTED
709,Childrens & Education Services,Chidren's Homes,ART Residential Placements,W1DE57,Third Party Payments          ,Private Contractors           ,EH01,Miscellaneous Agency Services           ,2400,02/09/2015,Rev,REDACTED
710,Childrens & Education Services,Strategic Management,CSF Buildings,E02256,Premises Related Expenditure  ,RepairsAlterations&MtceOfBldgs,BA01,DDM - General Building                  ,714.49,02/09/2015,Rev,SALTASH ENTERPRISES LTD       
711,Childrens & Education Services,Statutory & Regulatory Duties,Senior Mngt & Support Services,K01005,Supplies & Services           ,Services                      ,DF11,Counsel's Fees                          ,3000,03/09/2015,Rev,REDACTED
712,Adult Social Care,OP 65 & Over Home Care,HC Meals-in-the-Home,W2LM02,Customer and client receipts  ,Sales                         ,RA01,Miscellaneous Sales  X                  ,-11551.69,03/09/2015,Rev,SODEXO HEALTHCARE SERVICES LT 
713,Adult Social Care,OP 65 & Over Home Care,HC Meals-in-the-Home,W2LM02,Third Party Payments          ,Private Contractors           ,EH10,Contract Payments                       ,26297.48,03/09/2015,Rev,SODEXO HEALTHCARE SERVICES LT 
714,Childrens & Education Services,Support for SEN Pupils,Non-Delegated Statements,K90024,Third Party Payments          ,Other Local Authorities       ,EB50,OLA-Payments - Day Schools              ,2641.66,03/09/2015,Rev,WANDLE VALLEY SCHOOL          
715,Cultural Env Reg&Plan Services,Street Clean - Not highways,Street Cleansing (Inc. Gully),G00492,Premises Related Expenditure  ,Rents                         ,BC01,Miscellaneous Rents                     ,510.09,04/09/2015,Rev,MERTON PRIORY HOMES (RENT)    
716,Adult Social Care,PS u65 Other Services,PS Rehab,W2JB02,Third Party Payments          ,Private Contractors           ,EH10,Contract Payments                       ,4586.07,04/09/2015,Rev,MERTON VISION                 
717,Childrens & Education Services,Oth U5s Provn Not Prim or Spec,DAVID NICHOLAS CRECHE,K90045,Premises Related Expenditure  ,RepairsAlterations&MtceOfBldgs,BA01,DDM - General Building                  ,899.28,04/09/2015,Rev,SALTASH ENTERPRISES LTD       
718,Cultural Env Reg&Plan Services,Parks & Open Spaces,E & R Buildings,E02344,Premises Related Expenditure  ,RepairsAlterations&MtceOfBldgs,BA06,Repairs & Maintenance General           ,1600,04/09/2015,Rev,SALTASH ENTERPRISES LTD       
719,Central Services,SupS IT,Systems & Projects,E14366,Supplies & Services           ,Comms and Computing           ,DG50,Other IT Expenditure                    ,20081,04/09/2015,Rev,TRIBAL EDUCATION LIMITED      
720,,,Mitcham - Outer London Fund             ,CE006FC,New Construction Conversion and Renovation,,B6,Other Costs - Site works                ,1345,04/09/2015,Cap,UK POWER NETWORKS (OPERATIONS)
721,Childrens & Education Services,Chidren's Homes,ART Residential Placements,W1DE57,Third Party Payments          ,Private Contractors           ,EH01,Miscellaneous Agency Services           ,-1639.98,05/09/2015,Rev,REDACTED
722,Childrens & Education Services,Chidren's Homes,ART Residential Placements,W1DE57,Third Party Payments          ,Private Contractors           ,EH01,Miscellaneous Agency Services           ,2460.63,05/09/2015,Rev,REDACTED
723,Childrens & Education Services,Chidren's Homes,ART Residential Placements,W1DE57,Third Party Payments          ,Private Contractors           ,EH01,Miscellaneous Agency Services           ,2871.51,05/09/2015,Rev,REDACTED
724,Childrens & Education Services,Chidren's Homes,ART Residential Placements,W1DE57,Third Party Payments          ,Private Contractors           ,EH01,Miscellaneous Agency Services           ,2871.51,05/09/2015,Rev,REDACTED
725,Childrens & Education Services,Chidren's Homes,ART Residential Placements,W1DE57,Third Party Payments          ,Private Contractors           ,EH01,Miscellaneous Agency Services           ,2871.51,05/09/2015,Rev,REDACTED
726,Childrens & Education Services,Chidren's Homes,ART Residential Placements,W1DE57,Third Party Payments          ,Private Contractors           ,EH01,Miscellaneous Agency Services           ,2871.51,05/09/2015,Rev,REDACTED
727,Cultural Env Reg&Plan Services,Economic Dev (Not separated),Capt Ambition-Suburban Opprt Z,H01231,Supplies & Services           ,Expenses                      ,DH50,Special Projects                        ,6115,05/09/2015,Rev,SOCIAL ENTERPRISE MERTON CIC  
728,Adult Social Care,LD u65 Residentl Care Placemnt,LD Residential Care External,W2KB55,Third Party Payments          ,Private Contractors           ,EH01,Miscellaneous Agency Services           ,638.21,06/09/2015,Rev,FREEWAYS TRUST LTD            
729,Adult Social Care,LD u65 Residentl Care Placemnt,LD Residential Care External,W2KB55,Third Party Payments          ,Private Contractors           ,EH01,Miscellaneous Agency Services           ,638.21,06/09/2015,Rev,FREEWAYS TRUST LTD            
730,Adult Social Care,LD u65 Residentl Care Placemnt,LD Residential Care External,W2KB55,Third Party Payments          ,Private Contractors           ,EH01,Miscellaneous Agency Services           ,638.21,06/09/2015,Rev,FREEWAYS TRUST LTD            
731,Adult Social Care,LD u65 Residentl Care Placemnt,LD Residential Care External,W2KB55,Third Party Payments          ,Private Contractors           ,EH01,Miscellaneous Agency Services           ,638.21,06/09/2015,Rev,FREEWAYS TRUST LTD            
732,Adult Social Care,OP 65&Over Resi Care Placement,OP West - Residential Care Ext,W2LG55,Third Party Payments          ,Private Contractors           ,EH01,Miscellaneous Agency Services           ,540,06/09/2015,Rev,LIFE STYLE CARE (2011) PLC    
733,Adult Social Care,OP 65&Over Resi Care Placement,OP West - Residential Care Ext,W2LG55,Third Party Payments          ,Private Contractors           ,EH01,Miscellaneous Agency Services           ,540,06/09/2015,Rev,LIFE STYLE CARE (2011) PLC    
734,Adult Social Care,OP 65&Over Resi Care Placement,OP West - Residential Care Ext,W2LG55,Third Party Payments          ,Private Contractors           ,EH01,Miscellaneous Agency Services           ,540,06/09/2015,Rev,LIFE STYLE CARE (2011) PLC    
735,Adult Social Care,OP 65&Over Resi Care Placement,OP West - Residential Care Ext,W2LG55,Third Party Payments          ,Private Contractors           ,EH01,Miscellaneous Agency Services           ,540,06/09/2015,Rev,LIFE STYLE CARE (2011) PLC    
736,Adult Social Care,OP 65&Over Resi Care Placement,OP West - Residential Care Ext,W2LG55,Third Party Payments          ,Private Contractors           ,EH01,Miscellaneous Agency Services           ,540,06/09/2015,Rev,LIFE STYLE CARE (2011) PLC    
737,Adult Social Care,OP 65&Over Resi Care Placement,OP West - Residential Care Ext,W2LG55,Third Party Payments          ,Private Contractors           ,EH01,Miscellaneous Agency Services           ,540,06/09/2015,Rev,LIFE STYLE CARE (2011) PLC    
738,Adult Social Care,OP 65&Over Resi Care Placement,OP West - Residential Care Ext,W2LG55,Third Party Payments          ,Private Contractors           ,EH01,Miscellaneous Agency Services           ,540,06/09/2015,Rev,LIFE STYLE CARE (2011) PLC    
739,Adult Social Care,OP 65&Over Resi Care Placement,OP West - Residential Care Ext,W2LG55,Third Party Payments          ,Private Contractors           ,EH01,Miscellaneous Agency Services           ,540,06/09/2015,Rev,LIFE STYLE CARE (2011) PLC    
740,Adult Social Care,OP 65&Over Resi Care Placement,OP West - Residential Care Ext,W2LG55,Third Party Payments          ,Private Contractors           ,EH01,Miscellaneous Agency Services           ,540,06/09/2015,Rev,LIFE STYLE CARE (2011) PLC    
741,Adult Social Care,OP 65&Over Resi Care Placement,OP West - Residential Care Ext,W2LG55,Third Party Payments          ,Private Contractors           ,EH01,Miscellaneous Agency Services           ,540,06/09/2015,Rev,LIFE STYLE CARE (2011) PLC    
742,Adult Social Care,OP 65&Over Resi Care Placement,OP West - Residential Care Ext,W2LG55,Third Party Payments          ,Private Contractors           ,EH01,Miscellaneous Agency Services           ,540,06/09/2015,Rev,LIFE STYLE CARE (2011) PLC    
743,Adult Social Care,OP 65&Over Resi Care Placement,OP West - Residential Care Ext,W2LG55,Third Party Payments          ,Private Contractors           ,EH01,Miscellaneous Agency Services           ,540,06/09/2015,Rev,LIFE STYLE CARE (2011) PLC    
744,Adult Social Care,OP 65&Over Resi Care Placement,OP West - Residential Care Ext,W2LG55,Third Party Payments          ,Private Contractors           ,EH01,Miscellaneous Agency Services           ,540,06/09/2015,Rev,LIFE STYLE CARE (2011) PLC    
745,Adult Social Care,OP 65&Over Resi Care Placement,OP West - Residential Care Ext,W2LG55,Third Party Payments          ,Private Contractors           ,EH01,Miscellaneous Agency Services           ,540,06/09/2015,Rev,LIFE STYLE CARE (2011) PLC    
746,Adult Social Care,OP 65&Over Resi Care Placement,OP West - Residential Care Ext,W2LG55,Third Party Payments          ,Private Contractors           ,EH01,Miscellaneous Agency Services           ,540,06/09/2015,Rev,LIFE STYLE CARE (2011) PLC    
747,Adult Social Care,OP 65&Over Resi Care Placement,OP West - Residential Care Ext,W2LG55,Third Party Payments          ,Private Contractors           ,EH01,Miscellaneous Agency Services           ,540,06/09/2015,Rev,LIFE STYLE CARE (2011) PLC    
748,Adult Social Care,OP 65&Over Resi Care Placement,OP West - Residential Care Ext,W2LG55,Third Party Payments          ,Private Contractors           ,EH01,Miscellaneous Agency Services           ,540,06/09/2015,Rev,LIFE STYLE CARE (2011) PLC    
749,Adult Social Care,OP 65&Over Resi Care Placement,OP West - Residential Care Ext,W2LG55,Third Party Payments          ,Private Contractors           ,EH01,Miscellaneous Agency Services           ,540,06/09/2015,Rev,LIFE STYLE CARE (2011) PLC    
750,Adult Social Care,OP 65&Over Resi Care Placement,OP West - Residential Care Ext,W2LG55,Third Party Payments          ,Private Contractors           ,EH01,Miscellaneous Agency Services           ,540,06/09/2015,Rev,LIFE STYLE CARE (2011) PLC    
751,Adult Social Care,OP 65&Over Resi Care Placement,OP West - Residential Care Ext,W2LG55,Third Party Payments          ,Private Contractors           ,EH01,Miscellaneous Agency Services           ,540,06/09/2015,Rev,LIFE STYLE CARE (2011) PLC    
752,Adult Social Care,OP 65&Over Resi Care Placement,OP East - Residential Care Ext,W2LH55,Third Party Payments          ,Private Contractors           ,EH01,Miscellaneous Agency Services           ,540,06/09/2015,Rev,LIFE STYLE CARE (2011) PLC    
753,Adult Social Care,OP 65&Over Resi Care Placement,OP East - Residential Care Ext,W2LH55,Third Party Payments          ,Private Contractors           ,EH01,Miscellaneous Agency Services           ,540,06/09/2015,Rev,LIFE STYLE CARE (2011) PLC    
754,Adult Social Care,OP 65&Over Resi Care Placement,OP East - Residential Care Ext,W2LH55,Third Party Payments          ,Private Contractors           ,EH01,Miscellaneous Agency Services           ,540,06/09/2015,Rev,LIFE STYLE CARE (2011) PLC    
755,Adult Social Care,OP 65&Over Resi Care Placement,OP East - Residential Care Ext,W2LH55,Third Party Payments          ,Private Contractors           ,EH01,Miscellaneous Agency Services           ,540,06/09/2015,Rev,LIFE STYLE CARE (2011) PLC    
756,Adult Social Care,OP 65&Over Resi Care Placement,OP East - Residential Care Ext,W2LH55,Third Party Payments          ,Private Contractors           ,EH01,Miscellaneous Agency Services           ,540,06/09/2015,Rev,LIFE STYLE CARE (2011) PLC    
757,Adult Social Care,OP 65&Over Resi Care Placement,OP East - Residential Care Ext,W2LH55,Third Party Payments          ,Private Contractors           ,EH01,Miscellaneous Agency Services           ,540,06/09/2015,Rev,LIFE STYLE CARE (2011) PLC    
758,Adult Social Care,OP 65&Over Resi Care Placement,OP East - Residential Care Ext,W2LH55,Third Party Payments          ,Private Contractors           ,EH01,Miscellaneous Agency Services           ,540,06/09/2015,Rev,LIFE STYLE CARE (2011) PLC    
759,Adult Social Care,OP 65&Over Resi Care Placement,OP East - Residential Care Ext,W2LH55,Third Party Payments          ,Private Contractors           ,EH01,Miscellaneous Agency Services           ,540,06/09/2015,Rev,LIFE STYLE CARE (2011) PLC    
760,Adult Social Care,OP 65&Over Resi Care Placement,OP East - Residential Care Ext,W2LH55,Third Party Payments          ,Private Contractors           ,EH01,Miscellaneous Agency Services           ,540,06/09/2015,Rev,LIFE STYLE CARE (2011) PLC    
761,Adult Social Care,OP 65&Over Resi Care Placement,OP East - Residential Care Ext,W2LH55,Third Party Payments          ,Private Contractors           ,EH01,Miscellaneous Agency Services           ,540,06/09/2015,Rev,LIFE STYLE CARE (2011) PLC    
762,Adult Social Care,OP 65&Over Resi Care Placement,OP East - Residential Care Ext,W2LH55,Third Party Payments          ,Private Contractors           ,EH01,Miscellaneous Agency Services           ,540,06/09/2015,Rev,LIFE STYLE CARE (2011) PLC    
763,Adult Social Care,OP 65&Over Resi Care Placement,OP East - Residential Care Ext,W2LH55,Third Party Payments          ,Private Contractors           ,EH01,Miscellaneous Agency Services           ,540,06/09/2015,Rev,LIFE STYLE CARE (2011) PLC    
764,Adult Social Care,OP 65&Over Resi Care Placement,OP East - Residential Care Ext,W2LH55,Third Party Payments          ,Private Contractors           ,EH01,Miscellaneous Agency Services           ,540,06/09/2015,Rev,LIFE STYLE CARE (2011) PLC    
765,Adult Social Care,OP 65&Over Resi Care Placement,OP East - Residential Care Ext,W2LH55,Third Party Payments          ,Private Contractors           ,EH01,Miscellaneous Agency Services           ,540,06/09/2015,Rev,LIFE STYLE CARE (2011) PLC    
766,Adult Social Care,OP 65&Over Resi Care Placement,OP East - Residential Care Ext,W2LH55,Third Party Payments          ,Private Contractors           ,EH01,Miscellaneous Agency Services           ,540,06/09/2015,Rev,LIFE STYLE CARE (2011) PLC    
767,Adult Social Care,OP 65&Over Resi Care Placement,OP East - Residential Care Ext,W2LH55,Third Party Payments          ,Private Contractors           ,EH01,Miscellaneous Agency Services           ,540,06/09/2015,Rev,LIFE STYLE CARE (2011) PLC    
768,Adult Social Care,OP 65&Over Resi Care Placement,OP East - Residential Care Ext,W2LH55,Third Party Payments          ,Private Contractors           ,EH01,Miscellaneous Agency Services           ,540,06/09/2015,Rev,LIFE STYLE CARE (2011) PLC    
769,Adult Social Care,OP 65&Over Resi Care Placement,OP East - Residential Care Ext,W2LH55,Third Party Payments          ,Private Contractors           ,EH01,Miscellaneous Agency Services           ,540,06/09/2015,Rev,LIFE STYLE CARE (2011) PLC    
770,Adult Social Care,OP 65&Over Resi Care Placement,OP East - Residential Care Ext,W2LH55,Third Party Payments          ,Private Contractors           ,EH01,Miscellaneous Agency Services           ,540,06/09/2015,Rev,LIFE STYLE CARE (2011) PLC    
771,Adult Social Care,OP 65&Over Resi Care Placement,OP East - Residential Care Ext,W2LH55,Third Party Payments          ,Private Contractors           ,EH01,Miscellaneous Agency Services           ,540,06/09/2015,Rev,LIFE STYLE CARE (2011) PLC    
772,Adult Social Care,OP 65&Over Resi Care Placement,OP East - Residential Care Ext,W2LH55,Third Party Payments          ,Private Contractors           ,EH01,Miscellaneous Agency Services           ,540,06/09/2015,Rev,LIFE STYLE CARE (2011) PLC    
773,Adult Social Care,OP 65&Over Resi Care Placement,OP East - Residential Care Ext,W2LH55,Third Party Payments          ,Private Contractors           ,EH01,Miscellaneous Agency Services           ,540,06/09/2015,Rev,LIFE STYLE CARE (2011) PLC    
774,Adult Social Care,OP 65&Over Resi Care Placement,OP East - Residential Care Ext,W2LH55,Third Party Payments          ,Private Contractors           ,EH01,Miscellaneous Agency Services           ,540,06/09/2015,Rev,LIFE STYLE CARE (2011) PLC    
775,Adult Social Care,OP 65&Over Resi Care Placement,OP East - Residential Care Ext,W2LH55,Third Party Payments          ,Private Contractors           ,EH01,Miscellaneous Agency Services           ,540,06/09/2015,Rev,LIFE STYLE CARE (2011) PLC    
776,Adult Social Care,OP 65&Over Resi Care Placement,OP East - Residential Care Ext,W2LH55,Third Party Payments          ,Private Contractors           ,EH01,Miscellaneous Agency Services           ,540,06/09/2015,Rev,LIFE STYLE CARE (2011) PLC    
777,Adult Social Care,OP 65&Over Resi Care Placement,OP East - Residential Care Ext,W2LH55,Third Party Payments          ,Private Contractors           ,EH01,Miscellaneous Agency Services           ,540,06/09/2015,Rev,LIFE STYLE CARE (2011) PLC    
778,Adult Social Care,OP 65&Over Resi Care Placement,OP East - Residential Care Ext,W2LH55,Third Party Payments          ,Private Contractors           ,EH01,Miscellaneous Agency Services           ,540,06/09/2015,Rev,LIFE STYLE CARE (2011) PLC    
779,Adult Social Care,OP 65&Over Resi Care Placement,OP East - Residential Care Ext,W2LH55,Third Party Payments          ,Private Contractors           ,EH01,Miscellaneous Agency Services           ,540,06/09/2015,Rev,LIFE STYLE CARE (2011) PLC    
780,Adult Social Care,OP 65&Over Resi Care Placement,OP East - Residential Care Ext,W2LH55,Third Party Payments          ,Private Contractors           ,EH01,Miscellaneous Agency Services           ,540,06/09/2015,Rev,LIFE STYLE CARE (2011) PLC    
781,Adult Social Care,OP 65&Over Resi Care Placement,OP East - Residential Care Ext,W2LH55,Third Party Payments          ,Private Contractors           ,EH01,Miscellaneous Agency Services           ,540,06/09/2015,Rev,LIFE STYLE CARE (2011) PLC    
782,Adult Social Care,OP 65&Over Resi Care Placement,OP R/Park-Residential Care Ext,W2LR55,Third Party Payments          ,Private Contractors           ,EH01,Miscellaneous Agency Services           ,540,06/09/2015,Rev,LIFE STYLE CARE (2011) PLC    
783,Adult Social Care,OP 65&Over Resi Care Placement,OP R/Park-Residential Care Ext,W2LR55,Third Party Payments          ,Private Contractors           ,EH01,Miscellaneous Agency Services           ,540,06/09/2015,Rev,LIFE STYLE CARE (2011) PLC    
784,Adult Social Care,OP 65&Over Resi Care Placement,OP R/Park-Residential Care Ext,W2LR55,Third Party Payments          ,Private Contractors           ,EH01,Miscellaneous Agency Services           ,540,06/09/2015,Rev,LIFE STYLE CARE (2011) PLC    
785,Adult Social Care,OP 65&Over Resi Care Placement,OP R/Park-Residential Care Ext,W2LR55,Third Party Payments          ,Private Contractors           ,EH01,Miscellaneous Agency Services           ,540,06/09/2015,Rev,LIFE STYLE CARE (2011) PLC    
786,Adult Social Care,OP 65&Over Resi Care Placement,OP R/Park-Residential Care Ext,W2LR55,Third Party Payments          ,Private Contractors           ,EH01,Miscellaneous Agency Services           ,540,06/09/2015,Rev,LIFE STYLE CARE (2011) PLC    
787,Adult Social Care,OP 65&Over Resi Care Placement,OP R/Park-Residential Care Ext,W2LR55,Third Party Payments          ,Private Contractors           ,EH01,Miscellaneous Agency Services           ,540,06/09/2015,Rev,LIFE STYLE CARE (2011) PLC    
788,Adult Social Care,OP 65&Over Resi Care Placement,OP R/Park-Residential Care Ext,W2LR55,Third Party Payments          ,Private Contractors           ,EH01,Miscellaneous Agency Services           ,540,06/09/2015,Rev,LIFE STYLE CARE (2011) PLC    
789,Adult Social Care,OP 65&Over Resi Care Placement,OP R/Park-Residential Care Ext,W2LR55,Third Party Payments          ,Private Contractors           ,EH01,Miscellaneous Agency Services           ,540,06/09/2015,Rev,LIFE STYLE CARE (2011) PLC    
790,Adult Social Care,OP 65&Over Resi Care Placement,OP R/Park-Residential Care Ext,W2LR55,Third Party Payments          ,Private Contractors           ,EH01,Miscellaneous Agency Services           ,540,06/09/2015,Rev,LIFE STYLE CARE (2011) PLC    
791,Adult Social Care,OP 65&Over Resi Care Placement,OP R/Park-Residential Care Ext,W2LR55,Third Party Payments          ,Private Contractors           ,EH01,Miscellaneous Agency Services           ,540,06/09/2015,Rev,LIFE STYLE CARE (2011) PLC    
792,Adult Social Care,OP 65&Over Resi Care Placement,OP R/Park-Residential Care Ext,W2LR55,Third Party Payments          ,Private Contractors           ,EH01,Miscellaneous Agency Services           ,540,06/09/2015,Rev,LIFE STYLE CARE (2011) PLC    
793,Adult Social Care,OP 65&Over Resi Care Placement,OP R/Park-Residential Care Ext,W2LR55,Third Party Payments          ,Private Contractors           ,EH01,Miscellaneous Agency Services           ,540,06/09/2015,Rev,LIFE STYLE CARE (2011) PLC    
794,Adult Social Care,OP 65&Over NursingCarePlacemts,OP West - Nursing Care,W2LG53,Third Party Payments          ,Private Contractors           ,EH01,Miscellaneous Agency Services           ,670,06/09/2015,Rev,LIFE STYLE CARE (2011) PLC    
795,Adult Social Care,OP 65&Over NursingCarePlacemts,OP West - Nursing Care,W2LG53,Third Party Payments          ,Private Contractors           ,EH01,Miscellaneous Agency Services           ,670,06/09/2015,Rev,LIFE STYLE CARE (2011) PLC    
796,Adult Social Care,OP 65&Over NursingCarePlacemts,OP West - Nursing Care,W2LG53,Third Party Payments          ,Private Contractors           ,EH01,Miscellaneous Agency Services           ,670,06/09/2015,Rev,LIFE STYLE CARE (2011) PLC    
797,Adult Social Care,OP 65&Over NursingCarePlacemts,OP West - Nursing Care,W2LG53,Third Party Payments          ,Private Contractors           ,EH01,Miscellaneous Agency Services           ,670,06/09/2015,Rev,LIFE STYLE CARE (2011) PLC    
798,Adult Social Care,OP 65&Over NursingCarePlacemts,OP West - Nursing Care,W2LG53,Third Party Payments          ,Private Contractors           ,EH01,Miscellaneous Agency Services           ,670,06/09/2015,Rev,LIFE STYLE CARE (2011) PLC    
799,Adult Social Care,OP 65&Over NursingCarePlacemts,OP West - Nursing Care,W2LG53,Third Party Payments          ,Private Contractors           ,EH01,Miscellaneous Agency Services           ,670,06/09/2015,Rev,LIFE STYLE CARE (2011) PLC    
800,Adult Social Care,OP 65&Over NursingCarePlacemts,OP West - Nursing Care,W2LG53,Third Party Payments          ,Private Contractors           ,EH01,Miscellaneous Agency Services           ,670,06/09/2015,Rev,LIFE STYLE CARE (2011) PLC    
801,Adult Social Care,OP 65&Over NursingCarePlacemts,OP West - Nursing Care,W2LG53,Third Party Payments          ,Private Contractors           ,EH01,Miscellaneous Agency Services           ,670,06/09/2015,Rev,LIFE STYLE CARE (2011) PLC    
802,Adult Social Care,OP 65&Over NursingCarePlacemts,OP West - Nursing Care,W2LG53,Third Party Payments          ,Private Contractors           ,EH01,Miscellaneous Agency Services           ,670,06/09/2015,Rev,LIFE STYLE CARE (2011) PLC    
803,Adult Social Care,OP 65&Over NursingCarePlacemts,OP West - Nursing Care,W2LG53,Third Party Payments          ,Private Contractors           ,EH01,Miscellaneous Agency Services           ,670,06/09/2015,Rev,LIFE STYLE CARE (2011) PLC    
804,Adult Social Care,OP 65&Over NursingCarePlacemts,OP West - Nursing Care,W2LG53,Third Party Payments          ,Private Contractors           ,EH01,Miscellaneous Agency Services           ,670,06/09/2015,Rev,LIFE STYLE CARE (2011) PLC    
805,Adult Social Care,OP 65&Over NursingCarePlacemts,OP West - Nursing Care,W2LG53,Third Party Payments          ,Private Contractors           ,EH01,Miscellaneous Agency Services           ,670,06/09/2015,Rev,LIFE STYLE CARE (2011) PLC    
806,Adult Social Care,OP 65&Over NursingCarePlacemts,OP West - Nursing Care,W2LG53,Third Party Payments          ,Private Contractors           ,EH01,Miscellaneous Agency Services           ,670,06/09/2015,Rev,LIFE STYLE CARE (2011) PLC    
807,Adult Social Care,OP 65&Over NursingCarePlacemts,OP West - Nursing Care,W2LG53,Third Party Payments          ,Private Contractors           ,EH01,Miscellaneous Agency Services           ,670,06/09/2015,Rev,LIFE STYLE CARE (2011) PLC    
808,Adult Social Care,OP 65&Over NursingCarePlacemts,OP West - Nursing Care,W2LG53,Third Party Payments          ,Private Contractors           ,EH01,Miscellaneous Agency Services           ,670,06/09/2015,Rev,LIFE STYLE CARE (2011) PLC    
809,Adult Social Care,OP 65&Over NursingCarePlacemts,OP West - Nursing Care,W2LG53,Third Party Payments          ,Private Contractors           ,EH01,Miscellaneous Agency Services           ,670,06/09/2015,Rev,LIFE STYLE CARE (2011) PLC    
810,Adult Social Care,OP 65&Over NursingCarePlacemts,OP West - Nursing Care,W2LG53,Third Party Payments          ,Private Contractors           ,EH01,Miscellaneous Agency Services           ,670,06/09/2015,Rev,LIFE STYLE CARE (2011) PLC    
811,Adult Social Care,OP 65&Over NursingCarePlacemts,OP West - Nursing Care,W2LG53,Third Party Payments          ,Private Contractors           ,EH01,Miscellaneous Agency Services           ,670,06/09/2015,Rev,LIFE STYLE CARE (2011) PLC    
812,Adult Social Care,OP 65&Over NursingCarePlacemts,OP West - Nursing Care,W2LG53,Third Party Payments          ,Private Contractors           ,EH01,Miscellaneous Agency Services           ,670,06/09/2015,Rev,LIFE STYLE CARE (2011) PLC    
813,Adult Social Care,OP 65&Over NursingCarePlacemts,OP West - Nursing Care,W2LG53,Third Party Payments          ,Private Contractors           ,EH01,Miscellaneous Agency Services           ,670,06/09/2015,Rev,LIFE STYLE CARE (2011) PLC    
814,Adult Social Care,OP 65&Over NursingCarePlacemts,OP West - Nursing Care,W2LG53,Third Party Payments          ,Private Contractors           ,EH01,Miscellaneous Agency Services           ,670,06/09/2015,Rev,LIFE STYLE CARE (2011) PLC    
815,Adult Social Care,OP 65&Over NursingCarePlacemts,OP West - Nursing Care,W2LG53,Third Party Payments          ,Private Contractors           ,EH01,Miscellaneous Agency Services           ,670,06/09/2015,Rev,LIFE STYLE CARE (2011) PLC    
816,Adult Social Care,OP 65&Over NursingCarePlacemts,OP West - Nursing Care,W2LG53,Third Party Payments          ,Private Contractors           ,EH01,Miscellaneous Agency Services           ,670,06/09/2015,Rev,LIFE STYLE CARE (2011) PLC    
817,Adult Social Care,OP 65&Over NursingCarePlacemts,OP West - Nursing Care,W2LG53,Third Party Payments          ,Private Contractors           ,EH01,Miscellaneous Agency Services           ,670,06/09/2015,Rev,LIFE STYLE CARE (2011) PLC    
818,Adult Social Care,OP 65&Over NursingCarePlacemts,OP West - Nursing Care,W2LG53,Third Party Payments          ,Private Contractors           ,EH01,Miscellaneous Agency Services           ,670,06/09/2015,Rev,LIFE STYLE CARE (2011) PLC    
819,Adult Social Care,OP 65&Over NursingCarePlacemts,OP West - Nursing Care,W2LG53,Third Party Payments          ,Private Contractors           ,EH01,Miscellaneous Agency Services           ,670,06/09/2015,Rev,LIFE STYLE CARE (2011) PLC    
820,Adult Social Care,OP 65&Over NursingCarePlacemts,OP West - Nursing Care,W2LG53,Third Party Payments          ,Private Contractors           ,EH01,Miscellaneous Agency Services           ,670,06/09/2015,Rev,LIFE STYLE CARE (2011) PLC    
821,Adult Social Care,OP 65&Over NursingCarePlacemts,OP West - Nursing Care,W2LG53,Third Party Payments          ,Private Contractors           ,EH01,Miscellaneous Agency Services           ,670,06/09/2015,Rev,LIFE STYLE CARE (2011) PLC    
822,Adult Social Care,OP 65&Over NursingCarePlacemts,OP East - Nursing Care,W2LH53,Third Party Payments          ,Private Contractors           ,EH01,Miscellaneous Agency Services           ,670,06/09/2015,Rev,LIFE STYLE CARE (2011) PLC    
823,Adult Social Care,OP 65&Over NursingCarePlacemts,OP East - Nursing Care,W2LH53,Third Party Payments          ,Private Contractors           ,EH01,Miscellaneous Agency Services           ,670,06/09/2015,Rev,LIFE STYLE CARE (2011) PLC    
824,Adult Social Care,OP 65&Over NursingCarePlacemts,OP East - Nursing Care,W2LH53,Third Party Payments          ,Private Contractors           ,EH01,Miscellaneous Agency Services           ,670,06/09/2015,Rev,LIFE STYLE CARE (2011) PLC    
825,Adult Social Care,OP 65&Over NursingCarePlacemts,OP East - Nursing Care,W2LH53,Third Party Payments          ,Private Contractors           ,EH01,Miscellaneous Agency Services           ,670,06/09/2015,Rev,LIFE STYLE CARE (2011) PLC    
826,Adult Social Care,OP 65&Over NursingCarePlacemts,OP East - Nursing Care,W2LH53,Third Party Payments          ,Private Contractors           ,EH01,Miscellaneous Agency Services           ,670,06/09/2015,Rev,LIFE STYLE CARE (2011) PLC    
827,Adult Social Care,OP 65&Over NursingCarePlacemts,OP East - Nursing Care,W2LH53,Third Party Payments          ,Private Contractors           ,EH01,Miscellaneous Agency Services           ,670,06/09/2015,Rev,LIFE STYLE CARE (2011) PLC    
